Workbook

Sheet Spis treści
C1: 32302 | W1: Olszewski Robert
W2: Andrzejewska Aneta
W3: Sobolak Marzena
W4: Olszowski Adam
B5: Alfabetycznie | D5: Chronologicznie (wg arkuszy) | I5: liczba dni | K5: w KNF | W5: Poślad Mariusz
W6: Thiel Stanisław
B7: 3LP | D7: Polskie Towarzystwo Wspie(2023) | I7: 59 | K7: 0.5593220339 | S7: 410.1.2024 | T7: 33 | U7: 26 | W7: Fidos Piotr
B8: 3R Games SA | D8: Cavatina Holding (2024) | I8: 32 | K8: 0.71875 | S8: 410.5.2023 | T8: 23 | U8: 9 | W8: Bogatko Monika
B9: Alior Bank (obligacje) 2020 | D9: Pekao Bank Hipoteczny S.A. (2) | I9: 175 | K9: 0.2971428571 | S9: 410.26.2023 | T9: 52 | U9: 123 | W9: Zwoliński Tomasz
B10: Alior Bank S.A. (BPW) | D10: Millennium BH (2023) | I10: 86 | K10: 0.3488372093 | S10: 410.41.2023 | T10: 30 | U10: 56
B11: Alior Bank S.A. (BPW) 2020 | D11: Marvipol Development 2023(2023) | I11: 73 | K11: 0.6575342466 | S11: 410.42.2023 | T11: 48 | U11: 25
B12: Alior Bank S.A. obligacje (2022 | D12: WOODPECKER.CO SA | I12: 73 | K12: 0.6712328767 | T12: 49 | U12: 24
B13: ALL IN! GAMES SA | D13: JR Holding ASI | I13: 447 | K13: 0.4317673378 | S13: 410.20.2022 | T13: 193 | U13: 254
B14: Answear.com | D14: Bloober Team(2023) | I14: 58 | K14: 0.5862068966 | S14: 410.35.2023 | T14: 34 | U14: 24
B15: BEST SA | D15: Neptis SA(2023) | I15: 148 | K15: 0.3851351351 | S15: 410.15.2023 | T15: 57 | U15: 91
B16: BEST SA (2) | D16: Render Cube(2023) | I16: 105 | K16: 0.4571428571 | S16: 410.22.2023 | T16: 48 | U16: 57
B17: Beta ETF mWIG40TR (2022) | D17: Pure Biologics 2023(2023) | I17: 62 | K17: 0.5161290323 | S17: 410.32.2023 | T17: 32 | U17: 30
B18: Beta ETF mWIG40TR FIZ (2023) | D18: Murapol S.A.(2023) | I18: 48 | K18: 0.5 | S18: 410.33.2023 | T18: 24 | U18: 24
B19: Beta ETF mWIG40TR Portfel | D19: Beta ETF Nasdaq-100 PLN Hedged | I19: 10 | K19: 0.6 | S19: 410.36.2023 | T19: 6 | U19: 4
B20: Beta ETF Nasdaq-100 PLN Hedged | D20: Beta ETF S&P 500 PLN-Hedged | I20: 10 | K20: 0.7 | S20: 410.37.2023 | T20: 7 | U20: 3
B21: Beta ETF Nasdaq-100 PLN-H | D21: Eques Aktywnego Inwestowania FI | I21: 50 | K21: 0.5 | S21: 410.27.2023 | T21: 25 | U21: 25
B22: Beta ETF Nasdaq-100 PLN-H (2) | D22: Eques Akcji Sektora Prywatnego | I22: 50 | K22: 0.5 | S22: 410.28.2023 | T22: 25 | U22: 25
B23: BETA ETF S&P 500 PLN-Hedg | D23: Eques Akumulcji Majątku FIZ | I23: 28 | K23: 0.4642857143 | S23: 410.34.2023 | T23: 13 | U23: 15
B24: Beta ETF S&P 500 PLN-Hedg (2) | D24: Beta ETF WIG20TR(2023) | I24: 22 | K24: 0.5 | S24: 410.30.2023 | T24: 11 | U24: 11
B25: Beta ETF S&P 500 PLN-Hedged | D25: Ipopema Benefit 3 FIZ(2023) | I25: 33 | K25: 0.6060606061 | S25: 410.25.2023 | T25: 20 | U25: 13
B26: Beta ETF sWIG80TR (2023) | D26: Beta ETF TBSP PFIZ 2023 | I26: 30 | K26: 0.4666666667 | S26: 410.31.2022 | T26: 14 | U26: 16
B27: Beta ETF TBSP PFIZ | D27: Beta ETF sWIG80TR (2023) | I27: 20 | K27: 0.45 | S27: 410.29.2023 | T27: 9 | U27: 11
B28: Beta ETF TBSP PFIZ 2023 | D28: Ghelamco Invest sp. z o.o. | I28: 70 | K28: 0.4714285714 | S28: 410.20.2023 | T28: 33 | U28: 37
B29: Beta ETF uWIG80TR | D29: PragmaGO - obligacje niez(2023) | I29: 31 | K29: 0.6129032258 | S29: 410.24.2023 | T29: 19 | U29: 12
B30: Beta ETF WIG20lev | D30: PragmaGO SA 2023 obligacj(2023) | I30: 112 | K30: 0.4553571429 | S30: 410.8.2023 | T30: 51 | U30: 61
B31: Beta ETF WIG20lev (2021) | D31: Starward Industries(2023) | I31: 98 | K31: 0.7346938776 | S31: 410.10.2023 | T31: 72 | U31: 26
B32: Beta ETF WIG20lev Portf(2023) | D32: Polenergia SA (2) | I32: 92 | K32: 0.4565217391 | S32: 410.13.2023 | T32: 42 | U32: 50
B33: Beta ETF WIG20short | D33: XPlus SA | I33: 229 | K33: 0.4279475983 | S33: 410.38.2022 | T33: 98 | U33: 131
B34: Beta ETF WIG20short (2021) | D34: Ronson Development oblig (2023) | I34: 58 | K34: 0.5517241379 | S34: 410.14.2022 | T34: 32 | U34: 26
B35: Beta ETF WIG20short Portf(2023) | D35: PCC Exol S.A.(2023) | I35: 26 | K35: 0.6153846154 | S35: 410.21.2023 | T35: 16 | U35: 10
B36: Beta ETF WIG20TR | D36: PCC Rokita S.A. (2023) | I36: 58 | K36: 0.4827586207 | S36: 410.11.2023 | T36: 28 | U36: 30
B37: Beta ETF WIG20TR | D37: Kruk (2023) | I37: 34 | K37: 0.6764705882 | S37: 410.18.2023 | T37: 23 | U37: 11
B38: Beta ETF WIG20TR(2023) | D38: Beta ETF WIG20lev Portf(2023) | I38: 30 | K38: 0.4333333333 | S38: 410.17.2023 | T38: 13 | U38: 17
B39: Beta ETF WIGtech (2022) | D39: Beta ETF WIG20short Portf(2023) | I39: 30 | K39: 0.4333333333 | S39: 410.16.2023 | T39: 13 | U39: 17
B40: Beta ETF WIGtech (2023) | D40: Echo Investment SA (oblig(2023) | I40: 43 | K40: 0.6279069767 | T40: 27 | U40: 16
B41: Big Cheese Studio S.A. | D41: FDK Rentier FIZ (2023) | I41: 73 | K41: 0.1369863014 | S41: 410.6.2023 | T41: 10 | U41: 63
B42: Bio Planet SA | D42: Beta ETF mWIG40TR FIZ (2023) | I42: 28 | K42: 0.3214285714 | S42: 410.12.2023 | T42: 9 | U42: 19
B43: Bioceltix | D43: Dekpol 2023 | I43: 63 | K43: 0.5873015873 | S43: 410.1.2023 | T43: 37 | U43: 26
B44: BioMaxima S.A. | D44: Drago Entertainment(2023) | I44: 96 | K44: 0.5208333333 | S44: 410.3.2023 | T44: 50 | U44: 46
B45: Bloober Team(2023) | D45: Cavatina Holding (2023-2) | I45: 39 | K45: 0.6666666667 | S45: 410.5.2023 | T45: 26 | U45: 13
B46: Brand 24 SA | D46: Urteste S.A. | I46: 157 | K46: 0.4713375796 | S46: 410.36.2022 | T46: 74 | U46: 83
B47: Canal+ Polska S.A. | D47: Columbus Energy SA 2022 | I47: 137 | K47: 0.5182481752 | S47: 410.39.2022 | T47: 71 | U47: 66
B48: Canal+ Polska SA 2021 | D48: Beta ETF WIGtech (2023) | I48: 18 | K48: 0.5 | S48: 410.4.2023 | T48: 9 | U48: 9
B49: Captor Therapeutics SA | D49: Kredyt Inkaso SA 2022 | I49: 100 | K49: 0.59 | S49: 410.47.2022 | T49: 59 | U49: 41
B50: Caspar Asset Management S.A. | D50: LESS S.A. | I50: 92 | K50: 0.5869565217 | S50: 410.44.2022 | T50: 54 | U50: 38
B51: Cavatina Holding (2023-2) | D51: PASSUS | I51: 125 | K51: 0.376 | S51: 410.29.2022 | T51: 47 | U51: 78
B52: Cavatina Holding (2024) | D52: Ryvu Therapeutics | I52: 38 | K52: 0.5789473684 | S52: 410.49.2022 | T52: 22 | U52: 16
B53: Cavatina Holding (obligacje) | D53: EQUES Akumulacji Majątku FIZ | I53: 56 | K53: 0.5535714286 | S53: 410.45.2022 | T53: 31 | U53: 25
B54: Cavatina Holding SA | D54: Cloud Technologies SA | I54: 67 | K54: 0.6417910448 | S54: 410.37.2022 | T54: 43 | U54: 24
B55: Celon Pharma S.A. | D55: Beta ETF S&P 500 PLN-Hedg (2) | I55: 20 | K55: 0.7 | S55: 410.51.2022 | T55: 14 | U55: 6
B56: Cloud Technologies SA | D56: Beta ETF Nasdaq-100 PLN-H (2) | I56: 20 | K56: 0.7 | S56: 410.50.2022 | T56: 14 | U56: 6
B57: Columbus Energy SA 2022 | D57: BEST SA (2) | I57: 100 | K57: 0.59 | S57: 410.28.2022 | T57: 59 | U57: 41
B58: Creepy Jar S.A. | D58: DEVELIA SA | I58: 72 | K58: 0.6388888889 | S58: 410.34.2022 | T58: 46 | U58: 26
B59: Creotech Instruments S.A. | D59: Rafako SA | I59: 82 | K59: 0.4390243902 | S59: 410.32.2022 | T59: 36 | U59: 46
B60: Dadelo S.A. | D60: Tenderhut S.A. | I60: 123 | K60: 0.5365853659 | S60: 410.17.2022 | T60: 66 | U60: 57
B61: DB Energy S.A. | D61: Beta ETF WIG20TR | I61: 37 | K61: 0.6216216216 | S61: 410.40.2022 | T61: 23 | U61: 14
B62: Dekpol 2023 | D62: Beta ETF TBSP PFIZ | I62: 38 | K62: 0.6842105263 | S62: 410.42.2022 | T62: 26 | U62: 12
B63: Dekpol SA obligacje 2020 | D63: Beta ETF uWIG80TR | I63: 38 | K63: 0.6578947368 | S63: 410.41.2022 | T63: 25 | U63: 13
B64: DESA S.A. | D64: GI Group Poland S.A. | E64: 0 | I64: 185 | K64: 0.5027027027 | S64: 410.35.2022 | T64: 93 | U64: 92
B65: DEVELIA SA | D65: Alior Bank S.A. obligacje (2022 | I65: 37 | K65: 0.6216216216 | S65: 410.33.2022 | T65: 23 | U65: 14
B66: Dr Irena Eris S.A. | D66: Marvipol Development | I66: 51 | K66: 0.4117647059 | S66: 410.27.2022 | T66: 21 | U66: 30
B67: Drago Entertainment(2023) | D67: Kruk S.A. | I67: 70 | K67: 0.5428571429 | S67: 410.21.2022 | T67: 38 | U67: 32
B68: Echo Investment S.A. ( ob | D68: EQUES Aktywnego Inwestowa | I68: 82 | K68: 0.5243902439 | S68: 410.15.2022 | T68: 43 | U68: 39
B69: Echo Investment SA (oblig(2023) | D69: EQUES Akcji Sektora Prywa | I69: 55 | K69: 0.5272727273 | S69: 410.24.2022 | T69: 29 | U69: 26
B70: Elektrim SA | D70: Caspar Asset Management S.A. | I70: 74 | K70: 0.527027027 | S70: 410.14.2022 | T70: 39 | U70: 35
B71: Emitel S.A. | D71: Beta ETF WIG20short | I71: 26 | K71: 0.5769230769 | S71: 410.25.2022 | T71: 15 | U71: 11
B72: EQUES Akcji Sektora Prywa | D72: Beta ETF WIG20lev | I72: 24 | K72: 0.5416666667 | S72: 410.23.2022 | T72: 13 | U72: 11
B73: Eques Akcji Sektora Prywatnego | D73: Beta ETF mWIG40TR (2022) | I73: 27 | K73: 0.5185185185 | S73: 410.18.2022 | T73: 14 | U73: 13
B74: EQUES Aktywnego Inwestowa | D74: Movie Games | I74: 154 | K74: 0.5714285714 | S74: 410.19.2022 | T74: 88 | U74: 66
B75: Eques Aktywnego Inwestowania FI | D75: Alior Bank S.A. (BPW) | I75: 95 | K75: 0.5368421053 | S75: 410.8.2022 | T75: 51 | U75: 44
B76: EQUES Akumulacji Majątku FIZ | D76: PCC Exol S.A. | I76: 63 | K76: 0.5873015873 | S76: 410.11.2022 | T76: 37 | U76: 26
B77: Eques Akumulcji Majątku FIZ | D77: Komex SA | I77: 67 | K77: 0.552238806 | S77: 410.13.2022 | T77: 37 | U77: 30
B78: Event Horizon SA | D78: Dr Irena Eris S.A. | I78: 307 | K78: 0.1889250814 | S78: 410.12.2022 | T78: 58 | U78: 249
B79: EXCELLENCE | D79: Bioceltix | I79: 86 | K79: 0.6627906977 | S79: 410.10.2022 | T79: 57 | U79: 29
B80: ExpertSender SA | D80: DB Energy S.A. | I80: 237 | K80: 0.4852320675 | S80: 410.9.2022 | T80: 115 | U80: 122
B81: FDK Rentier FIZ | D81: Ipopema Benefit 3 FIZ | I81: 96 | K81: 0.3854166667 | S81: 410.7.2022 | T81: 37 | U81: 59
B82: FDK Rentier FIZ (2023) | D82: PragmaGO 2022 PONZ | I82: 18 | K82: 0.6111111111 | S82: 410.30.2022 | T82: 11 | U82: 7
B83: Games Operators S.A. | D83: PragmaGO obligacje 2022 POZ | I83: 102 | K83: 0.5098039216 | S83: 410.4.2022-2 | T83: 52 | U83: 50
B84: Gaming Factory | D84: Beta ETF WIGtech (2022) | I84: 16 | K84: 0.6875 | S84: 410.6.2022 | T84: 11 | U84: 5
B85: Genomtec SA | D85: ExpertSender SA | G85: zawieszone | I85: 83 | K85: 0.5662650602 | S85: 410.5.2022 | T85: 47 | U85: 36
B86: Ghelamco | D86: FDK Rentier FIZ | I86: 90 | K86: 0.4444444444 | S86: 410.2.2022 | T86: 40 | U86: 50
B87: Ghelamco Invest sp. z o.o. | D87: T-Bull SA | I87: 231 | K87: 0.2987012987 | S87: 410.1.2022 | T87: 69 | U87: 162
B88: GI Group Poland S.A. | D88: Event Horizon SA | G88: zawieszone | I88: 118 | K88: 0.6355932203 | S88: 410.53.2021 | T88: 75 | U88: 43
B89: Grupa Pracuj S.A. | D89: Hub.Tech SA | I89: 250 | K89: 0.512 | S89: 410.56.2021 | T89: 128 | U89: 122
B90: Hub.Tech SA | D90: Creotech Instruments S.A. | I90: 83 | K90: 0.6024096386 | S90: 410.55.2021 | T90: 50 | U90: 33
B91: Huuuge, Inc. | D91: SimFabric S.A. | I91: 156 | K91: 0.5064102564 | S91: 410.54.2021 | T91: 79 | U91: 77
B92: Inventionmed | D92: Millennium Bank Hipoteczny | I92: 111 | K92: 0.5495495495 | S92: 410.49.2021 | T92: 61 | U92: 50
B93: Ipopema Benefit 3 FIZ | D93: 3LP | I93: 118 | K93: 0.4915254237 | S93: 410.47.2021 | T93: 58 | U93: 60
B94: Ipopema Benefit 3 FIZ(2023) | D94: Scope Fluidics SA | I94: 295 | K94: 0.3423728814 | S94: 410.51.2021 | T94: 101 | U94: 194
B95: Ipopema Ekologii i Innowacji | D95: Genomtec SA | I95: 305 | K95: 0.3967213115 | S95: 410.48.2021 | T95: 121 | U95: 184
B96: Ipopema Medycyny i Innowa | D96: EXCELLENCE | G96: zawieszone | I96: 76 | K96: 0.5263157895 | S96: 410.50.2021 | T96: 40 | U96: 36
B97: JR Holding ASI | D97: PGF Polska Grupa Fotowolt | G97: zawieszone | I97: 10 | K97: 1 | S97: 410.49.2021 | T97: 10 | U97: 0
B98: KG Efekt SA (2021) | D98: Novavis Group | I98: 193 | K98: 0.5906735751 | S98: 410.45.2021 | T98: 114 | U98: 79
B99: Komex SA | D99: Pointpack SA | I99: 314 | K99: 0.3949044586 | S99: 410.46.2021 | T99: 124 | U99: 190
B100: KREDYT INKASO SA (obligac | D100: Skotan | I100: 115 | K100: 0.3826086957 | S100: 410.37.2021 | T100: 44 | U100: 71
B101: Kredyt Inkaso SA 2022 | D101: BETA ETF S&P 500 PLN-Hedg | I101: 28 | K101: 0.5714285714 | S101: 410.43.2021 | T101: 16 | U101: 12
B102: Kruk (2023) | D102: Beta ETF Nasdaq-100 PLN-H | I102: 28 | K102: 0.5357142857 | S102: 410.42.2021 | T102: 15 | U102: 13
B103: Kruk S.A. | D103: Polenergia SA | I103: 81 | K103: 0.5679012346 | S103: 410.24.2021 | T103: 46 | U103: 35
B104: Kruk S.A. (obligacje 2021) | D104: Oferteo 2021 | G104: zawieszone | I104: 20 | K104: 1 | S104: 410.36.2021 | T104: 20 | U104: 0
B105: Kruk S.A. (obligacje) 2020 | D105: Grupa Pracuj S.A. | I105: 48 | K105: 0.7291666667 | S105: 410.31.2021 | T105: 35 | U105: 13
B106: LESS S.A. | D106: Cavatina Holding (obligacje) | I106: 76 | K106: 0.5 | S106: 410.38.2021 | T106: 38 | U106: 38
B107: Marvipol Development | D107: Beta ETF WIG20TR | I107: 28 | K107: 0.6071428571 | S107: 410.34.2021 | T107: 17 | U107: 11
B108: Marvipol Development 2023(2023) | D108: STS Holding S.A. | I108: 54 | K108: 0.7037037037 | S108: 410.35.2021 | T108: 38 | U108: 16
B109: Marvipol Development SA O | D109: Echo Investment S.A. ( ob | I109: 60 | K109: 0.5166666667 | T109: 31 | U109: 29
B110: MCI Capital Alternatywna | D110: BioMaxima S.A. | I110: 85 | K110: 0.5647058824 | S110: 410.32.2021 | T110: 48 | U110: 37
B111: MedApp SA | D111: Transition Technologies MS SA | G111: zawieszone | I111: 135 | K111: 0.562962963 | S111: 410.28.2021 | T111: 76 | U111: 59
B112: Medinice SA | D112: Bio Planet SA | I112: 69 | K112: 0.7101449275 | S112: 410.20.2021 | T112: 49 | U112: 20
B113: Metalkas S.A. | D113: DESA S.A. | G113: zawieszone | I113: 222 | K113: 0.4369369369 | S113: 410.29.2021 | T113: 97 | U113: 125
B114: Millennium Bank Hipoteczny | D114: Vortex Energy S.A. | I114: 132 | K114: 0.6515151515 | S114: 410.22.2021 | T114: 86 | U114: 46
B115: Millennium BH (2023) | D115: 3R Games SA | I115: 88 | K115: 0.625 | S115: 410.26.2021 | T115: 55 | U115: 33
B116: Mo-BRUK SA | D116: Murapol S.A. | I116: 78 | K116: 0.5512820513 | S116: 410.23.2021 | T116: 43 | U116: 35
B117: Movie Games | D117: SpyroSoft S.A. | I117: 110 | K117: 0.5818181818 | S117: 410.18.2021 | T117: 64 | U117: 46
B118: Murapol S.A. | D118: ALL IN! GAMES SA | G118: w toku | I118: 407 | K118: 0.3022113022 | S118: 410.21.2021 | T118: 123 | U118: 284
B119: Murapol S.A.(2023) | D119: Metalkas S.A. | G119: zawieszone | I119: 131 | K119: 0.4503816794 | S119: 410.19.2021 | T119: 59 | U119: 72
B120: Neptis SA(2023) | D120: Poltreg S.A. | I120: 72 | K120: 0.6111111111 | S120: 410.17.2021 | T120: 44 | U120: 28
B121: Novavis Group | D121: Marvipol Development SA O | I121: 102 | K121: 0.4117647059 | S121: 410.16.2021 | T121: 42 | U121: 60
B122: Oferteo 2021 | D122: KG Efekt SA (2021) | I122: 387 | K122: 0.3927648579 | S122: 410.15.2021 | T122: 152 | U122: 235
B123: ONDE SA 2021 | D123: Santander Bank Polska S.A. | G123: zawieszone | I123: 165 | K123: 0.3515151515 | S123: 410.14.2021 | T123: 58 | U123: 107
B124: PASSUS | D124: Beta ETF WIG20lev (2021) | I124: 40 | K124: 0.375 | S124: 410.12.2021 | T124: 15 | U124: 25
B125: PCC Exol S.A. | D125: Beta ETF WIG20short (2021) | I125: 40 | K125: 0.375 | S125: 410.13.2021 | T125: 15 | U125: 25
B126: PCC Exol S.A.(2023) | D126: Kruk S.A. (obligacje 2021) | I126: 84 | K126: 0.4880952381 | S126: 410.11.2021 | T126: 41 | U126: 43
B127: PCC MCAA | D127: Beta ETF mWIG40TR Portfel | I127: 38 | K127: 0.5 | S127: 410.10.2021 | T127: 19 | U127: 19
B128: PCC Rokita S.A. (2023) | D128: ONDE SA 2021 | I128: 46 | K128: 0.6956521739 | S128: 410.8.2021 | T128: 32 | U128: 14
B129: PCF Group SA | D129: Ipopema Medycyny i Innowa | I129: 0 | K129: 0 | S129: 410.9.2021 | T129: 0 | U129: 0
B130: Pekao Bank Hipoteczny S.A. | D130: Cavatina Holding SA | I130: 69 | K130: 0.7391304348 | S130: 410.7.2021 | T130: 51 | U130: 18
B131: Pekao Bank Hipoteczny S.A. (2) | D131: Canal+ Polska SA 2021 | I131: 283 | K131: 0.1166077739 | S131: 410.6.2021 | T131: 33 | U131: 250
B132: PGF Polska Grupa Fotowolt | D132: Shoper S.A. | I132: 68 | K132: 0.6764705882 | S132: 410.4.2021 | T132: 46 | U132: 22
B133: PKO Bank Hipoteczny SA | D133: Big Cheese Studio S.A. | I133: 147 | K133: 0.3673469388 | S133: 410.3.2021 | T133: 54 | U133: 93
B134: PKO Leasing SA | D134: Celon Pharma S.A. | I134: 81 | K134: 0.5555555556 | S134: 410.5.2021 | T134: 45 | U134: 36
B135: Pointpack SA | D135: Emitel S.A. | G135: zawieszone | I135: 126 | K135: 0.5158730159 | S135: 410.2.2021 | T135: 65 | U135: 61
B136: Polenergia SA | D136: BEST SA | I136: 107 | K136: 0.4299065421 | S136: 410.1.2021 | T136: 46 | U136: 61
B137: Polenergia SA (2) | D137: KREDYT INKASO SA (obligac | I137: 168 | K137: 0.3988095238 | T137: 67 | U137: 101
B138: Polski Bank Komórek Macierzysty | D138: Vercom S.A. | I138: 78 | K138: 0.5769230769 | T138: 45 | U138: 33
B139: Polskie Towarzystwo Wspie(2023) | D139: Dekpol SA obligacje 2020 | I139: 86 | K139: 0.4186046512 | T139: 36 | U139: 50
B140: Poltreg S.A. | D140: Pekao Bank Hipoteczny S.A. | I140: 62 | K140: 0.5806451613 | T140: 36 | U140: 26
B141: Polwax SA | D141: MCI Capital Alternatywna | I141: 105 | K141: 0.5047619048 | T141: 53 | U141: 52
B142: PragmaGO - obligacje niez(2023) | D142: PragmaGO (obligacje) 2020 | I142: 80 | K142: 0.575 | T142: 46 | U142: 34
B143: PragmaGO (obligacje) 2020 | D143: Captor Therapeutics SA | I143: 128 | K143: 0.4765625 | T143: 61 | U143: 67
B144: PragmaGO 2022 PONZ | D144: Answear.com | I144: 57 | K144: 0.701754386 | T144: 40 | U144: 17
B145: PragmaGO obligacje 2022 POZ | D145: Dadelo S.A. | I145: 59 | K145: 0.6779661017 | T145: 40 | U145: 19
B146: PragmaGO SA 2023 obligacj(2023) | D146: PCF Group SA | I146: 56 | K146: 0.625 | T146: 35 | U146: 21
B147: Pure Biologics 2023(2023) | D147: Huuuge, Inc. | I147: 103 | K147: 0.5048543689 | T147: 52 | U147: 51
B148: Pure Biologics SA | D148: Mo-BRUK SA | I148: 64 | K148: 0.53125 | T148: 34 | U148: 30
B149: Rafako SA | D149: PKO Leasing SA | I149: 302 | K149: 0.2483443709 | T149: 75 | U149: 227
B150: Render Cube(2023) | D150: PCC MCAA | I150: 65 | K150: 0.2923076923 | T150: 19 | U150: 46
B151: Ronson Development oblig (2023) | D151: Pure Biologics SA | I151: 69 | K151: 0.7391304348 | T151: 51 | U151: 18
B152: Ryvu Therapeutics | D152: Canal+ Polska S.A. | I152: 39 | K152: 0.6923076923 | T152: 27 | U152: 12
B153: Santander Bank Polska S.A. | D153: Victoria Dom SA | I153: 693 | K153: 0.1471861472 | T153: 102 | U153: 591
B154: Scope Fluidics SA | D154: Creepy Jar S.A. | I154: 165 | K154: 0.3757575758 | T154: 62 | U154: 103
B155: Shoper S.A. | D155: MedApp SA | G155: zawieszone | I155: 412 | K155: 0.5 | T155: 206 | U155: 206
B156: SimFabric S.A. | D156: Medinice SA | I156: 106 | K156: 0.4245283019 | T156: 45 | U156: 61
B157: Skotan | D157: PKO Bank Hipoteczny SA | I157: 69 | K157: 0.4637681159 | T157: 32 | U157: 37
B158: SpyroSoft S.A. | D158: Polwax SA | I158: 320 | K158: 0.228125 | T158: 73 | U158: 247
B159: Starward Industries(2023) | D159: Inventionmed | I159: 208 | K159: 0.3173076923 | T159: 66 | U159: 142
B160: STS Holding S.A. | D160: Polski Bank Komórek Macierzysty | I160: 126 | K160: 0.3095238095 | T160: 39 | U160: 87
B161: T-Bull SA | D161: Kruk S.A. (obligacje) 2020 | I161: 84 | K161: 0.619047619 | T161: 52 | U161: 32
B162: Tenderhut S.A. | D162: Trakcja | I162: 219 | K162: 0.397260274 | T162: 87 | U162: 132
B163: Trakcja | D163: Gaming Factory | I163: 115 | K163: 0.4260869565 | T163: 49 | U163: 66
B164: Transition Technologies MS SA | D164: Elektrim SA | I164: 105 | K164: 0.3714285714 | T164: 39 | U164: 66
B165: Urteste S.A. | D165: Alior Bank S.A. (BPW) 2020 | I165: 271 | K165: 0.3985239852 | T165: 108 | U165: 163
B166: Vercom S.A. | D166: Ghelamco | I166: 88 | K166: 0.5 | T166: 44 | U166: 44
B167: Victoria Dom SA | D167: Alior Bank (obligacje) 2020 | I167: 143 | K167: 0.5944055944 | T167: 85 | U167: 58
B168: Vortex Energy S.A. | D168: Games Operators S.A. | I168: 143 | K168: 0.5384615385 | T168: 77 | U168: 66
B169: WOODPECKER.CO SA | D169: Ipopema Ekologii i Innowacji | I169: 59 | K169: 0.5254237288 | S169: 410.26.2022 | T169: 31 | U169: 28
B170: XPlus SA | D170: Brand 24 SA | I170: 486 | K170: 0.3004115226 | T170: 146 | U170: 340
A193: WZÓR!A1
A194: Zdarzenia!A1

Sheet Polskie Towarzystwo Wspie(2023)
A1: Spis treści
C2: Polskie Towarzystwo Wspierania Przedsiębiorczości SA
A3: PROSPEKT | B3: zakończone | C3: Prospekt
A5: 410.1.2024
C6: Data | E6: Czynności po stronie urzędu | F6: Czynności po stronie emitenta
E7: (w dniach roboczych)
C8: 2024-02-02 | D8: wniosek
C9: 2024-02-29 | E9: 19
C10: 2024-03-14 | F10: 10
C11: 2024-03-22 | E11: 6
C12: 2024-04-09 | F12: 11
C13: 2024-04-17 | E13: 6
C14: 2024-04-19 | F14: 2
C15: 2024-04-24 | F15: 3
C16: 2024-04-26 | D16: decyzja | E16: 2
C27: Razem | E27: =SUM(E8:E26) -> 33 | F27: =SUM(F8:F26) -> 26
A30: SUPLEMENTY | C30: =$C$2 -> Polskie Towarzystwo Wspierania Przedsiębiorczości SA
B31: zakończone | C31: Suplement nr 1
C33: Data | E33: Czynności po stronie urzędu | F33: Czynności po stronie emitenta
E34: (w dniach roboczych)
C35: 2024-05-13 | D35: wniosek
C36: 2024-05-15 | E36: 2
C37: 2024-05-15 | F37: 0
C38: 2024-05-16 | D38: decyzja | E38: 1
C39: Razem | E39: =SUM(E35:E38) -> 3 | F39: =SUM(F35:F38) -> 0

Sheet Cavatina Holding (2024)
C2: Cavatina Holding S.A.
A3: PROSPEKT | B3: zakończone | C3: Prospekt podstawowy
A5: 410.5.2023
C6: Data | E6: Czynności po stronie urzędu | F6: Czynności po stronie emitenta
E7: (w dniach roboczych)
C8: 2024-03-11 | D8: wniosek
C9: 2024-03-22 | E9: 9
C10: 2024-03-27 | F10: 3
C11: 2024-04-08 | E11: 7
C12: 2024-04-16 | F12: 6
C13: 2024-04-23 | E13: 5
C14: 2024-04-23 | F14: 0
C15: 2024-04-25 | D15: decyzja | E15: 2
C27: Razem | E27: =SUM(E8:E26) -> 23 | F27: =SUM(F8:F26) -> 9
A30: SUPLEMENTY | C30: =$C$2 -> Cavatina Holding S.A.
B31: zakończone | C31: Suplement nr 1
C33: Data | E33: Czynności po stronie urzędu | F33: Czynności po stronie emitenta
E34: (w dniach roboczych)
C35: 2024-04-30 | D35: wniosek
C36: 2024-05-06 | E36: 2
C37: 2024-05-08 | F37: 2
C38: 2024-05-09 | D38: decyzja | E38: 1
C39: Razem | E39: =SUM(E35:E38) -> 3 | F39: =SUM(F35:F38) -> 2

Sheet Pekao Bank Hipoteczny S.A. (2)
A1: Spis treści
C2: Pekao Bank Hipoteczny S.A.
A3: PROSPEKT | B3: zakończone | C3: Prospekt podstawowy listów zastawnych
A5: 410.26.2023
C6: Data | E6: Czynności po stronie urzędu | F6: Czynności po stronie emitenta
E7: (w dniach roboczych)
C8: 2023-08-17 | D8: wniosek
C9: 2023-08-31 | E9: 10
C10: 2023-09-14 | F10: 10
C11: 2023-09-28 | E11: 10
C12: 2023-10-06 | F12: 6
C13: 2023-10-16 | E13: 6
C14: 2023-10-31 | F14: 11
C15: 2023-11-08 | E15: 5
C16: 2023-12-28 | F16: 34
C17: 2024-01-03 | E17: 3
C18: 2024-01-24 | F18: 15
C19: 2024-01-31 | E19: 5
C20: 2024-02-16 | F20: 12
C21: 2024-02-22 | E21: 4
C22: 2024-03-19 | F22: 18
C23: 2024-03-25 | E23: 4
C24: 2024-04-18 | F24: 17
C25: 2024-04-25 | E25: 5
C27: Razem | E27: =SUM(E8:E26) -> 52 | F27: =SUM(F8:F26) -> 123 | H27: =F27+E27 -> 175
E30: =E27/H27 -> 0.2971428571 | F30: =F27/H27 -> 0.7028571429
C35: =$C$2 -> Pekao Bank Hipoteczny S.A.
B36: zakończone | C36: Suplement nr 1
C38: Data | E38: Czynności po stronie urzędu | F38: Czynności po stronie emitenta
E39: (w dniach roboczych)
C40: 2024-04-30 | D40: wniosek
C41: 2024-05-02 | D41: decyzja | E41: 1
C42: Razem | E42: =SUM(E40:E41) -> 1 | F42: =SUM(F40:F41) -> 0

Sheet Millennium BH (2023)
A1: Spis treści
C2: Millennium Bank Hipoteczny S.A.
A3: PROSPEKT | B3: zakończone | C3: Prospekt
A5: 410.41.2023
C6: Data | E6: Czynności po stronie urzędu | F6: Czynności po stronie emitenta
E7: (w dniach roboczych)
C8: 2023-12-11 | D8: wniosek
C9: 2023-12-20 | E9: 7
C10: 2024-01-24 | F10: 22
C11: 2024-01-31 | E11: 5
C12: 2024-02-14 | F12: 10
C13: 2024-02-28 | E13: 10
C14: 2024-03-14 | F14: 11
C15: 2024-03-26 | E15: 8
C16: 2024-04-15 | F16: 13
C17: 2024-04-15 | D17: decyzja | E17: 0
C27: Razem | E27: =SUM(E8:E26) -> 30 | F27: =SUM(F8:F26) -> 56
E30: =E27/(F27+E27) -> 0.3488372093 | F30: =1-E30 -> 0.6511627907

Sheet Marvipol Development 2023(2023)
A1: Spis treści
C2: Marvipol Development SA
A3: PROSPEKT | B3: zakończone | C3: Prospekt podstawowy
A5: 410.42.2023
C6: Data | E6: Czynności po stronie urzędu | F6: Czynności po stronie emitenta
E7: (w dniach roboczych)
C8: 2023-12-20 | D8: wniosek
C9: 2024-01-08 | E9: 10
C10: 2024-01-17 | F10: 7
C11: 2024-01-29 | E11: 8
C12: 2024-02-05 | F12: 5
C13: 2024-02-19 | E13: 10
C14: 2024-02-21 | F14: 2
C15: 2024-03-06 | E15: 10
C16: 2024-03-15 | F16: 7
C17: 2024-03-27 | E17: 8
C18: 2024-03-28 | F18: 1
C19: 2024-04-02 | F19: 2
C20: 2024-04-03 | F20: 1
C21: 2024-04-04 | E21: 1
C22: 2024-04-05 | D22: decyzja | E22: 1
C27: Razem | E27: =SUM(E8:E26) -> 48 | F27: =SUM(F8:F26) -> 25

Sheet WOODPECKER.CO SA
A1: Spis treści
C2: WOODPECKER.CO SA
A3: PROSPEKT | B3: zakończone | C3: Prospekt
C6: Data | E6: Czynności po stronie urzędu | F6: Czynności po stronie emitenta
E7: (w dniach roboczych)
C8: 2023-12-12 | D8: wniosek
C9: 2024-01-12 | E9: 20
C10: 2024-01-25 | F10: 9
C11: 2024-02-05 | E11: 7
C12: 2024-02-09 | F12: 4
C13: 2024-02-22 | E13: 9
C14: 2024-03-01 | F14: 6
C15: 2024-03-14 | E15: 9
C16: 2024-03-19 | F16: 3
C17: 2024-03-22 | E17: 3
C18: 2024-03-26 | F18: 2
C19: 2024-03-27 | D19: decyzja | E19: 1
C27: Razem | E27: =SUM(E8:E26) -> 49 | F27: =SUM(F8:F26) -> 24

Sheet JR Holding ASI
A1: Spis treści
C2: JR Holding ASI SA
A3: PROSPEKT | B3: zakończone | C3: Prospekt
A5: 410.20.2022
C6: Data | E6: Czynności po stronie urzędu | F6: Czynności po stronie emitenta
E7: (w dniach roboczych)
C8: 2022-05-23 | D8: wniosek
C9: 2022-06-21 | E9: 20
C10: 2022-07-05 | F10: 10
C11: 2022-07-15 | E11: 8
C12: 2022-07-29 | F12: 10
C13: 2022-08-11 | E13: 9
C14: 2022-08-31 | F14: 13
C15: 2022-09-14 | E15: 10
C16: 2022-10-12 | F16: 20
C17: 2022-10-25 | E17: 9
C18: 2022-11-03 | F18: 6
C19: 2022-11-17 | E19: 9
C20: 2022-12-15 | F20: 20
C21: 2022-12-30 | E21: 10
C22: 2023-01-13 | F22: 9
C23: 2023-01-24 | E23: 7
C24: 2023-01-27 | F24: 3
C25: 2023-02-02 | E25: 4
C26: 2023-02-03 | F26: 1
C27: 2023-02-07 | E27: 2
C28: 2023-02-07 | F28: 0
C29: 2023-02-09 | E29: 2
C30: 2023-02-22 | F30: 9
C31: 2023-03-08 | E31: 10
C32: 2023-03-22 | F32: 10
C33: 2023-04-05 | E33: 10
C34: 2023-04-24 | F34: 12
C35: 2023-05-08 | E35: 8
C36: 2023-06-26 | F36: 34
C37: 2023-07-10 | E37: 10
C38: 2023-07-20 | F38: 8
C39: 2023-08-03 | E39: 10
C40: 2023-08-24 | F40: 14
C41: 2023-09-06 | E41: 9
C42: 2023-09-15 | F42: 7
C43: 2023-09-29 | E43: 10
C44: 2023-11-24 | F44: 39
C45: 2023-12-08 | E45: 10
C46: 2023-12-20 | F46: 8
C47: 2024-01-08 | E47: 10
C48: 2024-01-17 | F48: 7
C49: 2024-01-26 | E49: 7
C50: 2024-02-01 | F50: 4
C51: 2024-02-13 | E51: 8
C52: 2024-02-16 | F52: 3
C53: 2024-02-27 | F53: 7
C54: 2024-02-28 | D54: decyzja | E54: 1
C56: Razem | E56: =SUM(E8:E55) -> 193 | F56: =SUM(F8:F55) -> 254

Sheet Bloober Team(2023)
A1: Spis treści
C2: Bloober Team
A3: PROSPEKT | B3: zakończone | C3: Prospekt
A5: 410.35.2023
C6: Data | E6: Czynności po stronie urzędu | F6: Czynności po stronie emitenta
E7: (w dniach roboczych)
C8: 2023-10-05 | D8: wniosek
C9: 2023-10-19 | E9: 10
C10: 2023-11-03 | F10: 10
C11: 2023-11-17 | E11: 10
C12: 2023-11-28 | F12: 7
C13: 2023-12-11 | E13: 9
C14: 2023-12-18 | F14: 5
C15: 2023-12-22 | E15: 4
C16: 2023-12-27 | F16: 1
C17: 2023-12-28 | E17: 1
C18: 2023-12-29 | D18: decyzja | F18: 1
C21: Razem | E21: =SUM(E8:E20) -> 34 | F21: =SUM(F8:F20) -> 24
A24: SUPLEMENTY | C24: =$C$2 -> Bloober Team
B25: zakończone | C25: Suplement nr 1
A26: 411.1.2024
C27: Data | E27: Czynności po stronie urzędu | F27: Czynności po stronie emitenta
E28: (w dniach roboczych)
C29: 2023-12-29 | D29: wniosek
C30: 2024-01-03 | E30: 2
C31: 2024-01-03 | F31: 1
C32: 2024-01-04 | D32: decyzja
E33: 1
C35: Razem | E35: =SUM(E29:E34) -> 3 | F35: =SUM(F29:F34) -> 1

Sheet Neptis SA(2023)
A1: Spis treści
C2: Neptis SA
A3: PROSPEKT | B3: zakończone | C3: Prospekt
A5: 410.15.2023
C6: Data | E6: Czynności po stronie urzędu | F6: Czynności po stronie emitenta
E7: (w dniach roboczych)
C8: 2023-05-25 | D8: wniosek
C9: 2023-06-14 | E9: 13
C10: 2023-07-04 | F10: 14
C11: 2023-07-18 | E11: 10
C12: 2023-08-21 | F12: 23
C13: 2023-09-04 | E13: 10
C14: 2023-10-04 | F14: 22
C15: 2023-10-16 | E15: 8
C16: 2023-10-30 | F16: 10
C17: 2023-11-10 | E17: 8
C18: 2023-11-21 | F18: 7
C19: 2023-11-27 | E19: 4
C20: 2023-12-18 | F20: 15
C21: 2023-12-22 | E21: 4
C27: Razem | E27: =SUM(E8:E26) -> 57 | F27: =SUM(F8:F26) -> 91
A30: SUPLEMENTY | C30: =$C$2 -> Neptis SA
B31: zakończone | C31: Suplement nr 1
C33: Data | E33: Czynności po stronie urzędu | F33: Czynności po stronie emitenta
E34: (w dniach roboczych)
C35: 2024-03-25 | D35: wniosek
C36: 2024-03-28 | E36: 3
C37: 2024-04-04 | F37: 4
C38: 2024-04-09 | D38: decyzja | E38: 3
C39: Razem | E39: =SUM(E35:E38) -> 6 | F39: =SUM(F35:F38) -> 4

Sheet Render Cube(2023)
A1: Spis treści
C2: Render Cube
A3: PROSPEKT | B3: zakończone | C3: Prospekt
A5: 410.22.2023
C6: Data | E6: Czynności po stronie urzędu | F6: Czynności po stronie emitenta
E7: (w dniach roboczych)
C8: 2023-07-24 | D8: wniosek
C9: 2023-08-21 | E9: 19
C10: 2023-09-22 | F10: 24
C11: 2023-10-05 | E11: 9
C12: 2023-10-19 | F12: 10
C13: 2023-10-30 | E13: 7
C14: 2023-11-14 | F14: 10
C15: 2023-11-22 | E15: 6
C16: 2023-12-06 | F16: 10
C17: 2023-12-11 | E17: 3
C18: 2023-12-14 | F18: 3
C19: 2023-12-20 | D19: decyzja | E19: 4
C22: Razem | E22: =SUM(E8:E21) -> 48 | F22: =SUM(F8:F21) -> 57
A25: SUPLEMENTY | C25: =$C$2 -> Render Cube
B26: zakończone | C26: Suplement nr 1
A27: 411.8.2024
C28: Data | E28: Czynności po stronie urzędu | F28: Czynności po stronie emitenta
E29: (w dniach roboczych)
C30: 2024-02-14 | D30: wniosek
C31: 2024-02-15 | D31: aktualizacja | F31: 1
C32: 2024-02-19 | D32: decyzja | E32: 2
C34: Razem | E34: =SUM(E30:E33) -> 2 | F34: =SUM(F30:F33) -> 1

Sheet Pure Biologics 2023(2023)
A1: Spis treści
C2: Pure Biologics
A3: PROSPEKT | B3: zakończone | C3: Prospekt
A5: 410.32.2023
C6: Data | E6: Czynności po stronie urzędu | F6: Czynności po stronie emitenta
E7: (w dniach roboczych)
C8: 2023-09-14 | D8: wniosek
C9: 2023-09-28 | E9: 10
C10: 2023-10-06 | F10: 6
C11: 2023-10-20 | E11: 10
C12: 2023-11-03 | F12: 9
C13: 2023-11-14 | E13: 7
C14: 2023-11-24 | F14: 8
C15: 2023-11-30 | E15: 4
C16: 2023-12-06 | F16: 4
C17: 2023-12-07 | E17: 1
C18: 2023-12-08 | F18: 1
C19: 2023-12-11 | F19: 1
C20: 2023-12-11 | E20: 0
C21: 2023-12-12 | F21: 1
C22: 2023-12-12 | D22: decyzja | E22: 0
C27: Razem | E27: =SUM(E8:E26) -> 32 | F27: =SUM(F8:F26) -> 30

Sheet Murapol S.A.(2023)
A1: Spis treści
C2: Murapol S.A.
A3: PROSPEKT | B3: zakończone | C3: Prospekt
A5: 410.33.2023
C6: Data | E6: Czynności po stronie urzędu | F6: Czynności po stronie emitenta
E7: (w dniach roboczych)
C8: 2023-09-18 | D8: wniosek
C9: 2023-09-29 | E9: 9
C10: 2023-10-10 | F10: 7
C11: 2023-10-23 | E11: 9
C12: 2023-11-06 | F12: 9
C13: 2023-11-13 | E13: 5
C14: 2023-11-21 | F14: 5
C15: 2023-11-22 | E15: 1
C16: 2023-11-27 | F16: 3
C17: 2023-11-27 | D17: decyzja | E17: 0
C27: Razem | E27: =SUM(E8:E26) -> 24 | F27: =SUM(F8:F26) -> 24

Sheet Beta ETF Nasdaq-100 PLN Hedged
A1: Spis treści
C2: Beta ETF Nasdaq-100 PLN-Hedged FIZ (2023)
A3: PROSPEKT | B3: zakończone | C3: Prospekt
A5: 410.36.2023
C6: Data | E6: Czynności po stronie urzędu | F6: Czynności po stronie emitenta
E7: (w dniach roboczych)
C8: 2023-10-24 | D8: wniosek
C9: 2023-10-27 | E9: 3
C10: 2023-11-02 | F10: 3
C11: 2023-11-06 | E11: 2
C12: 2023-11-07 | F12: 1
C13: 2022-11-08 | D13: decyzja | E13: 1
C29: Razem | E29: =SUM(E8:E28) -> 6 | F29: =SUM(F8:F28) -> 4

Sheet Beta ETF S&P 500 PLN-Hedged
A1: Spis treści
C2: Beta ETF S&P 500 PLN-Hedged
A3: PROSPEKT | B3: zakończone | C3: Prospekt
A5: 410.37.2023
C6: Data | E6: Czynności po stronie urzędu | F6: Czynności po stronie emitenta
E7: (w dniach roboczych)
C8: 2023-10-24 | D8: wniosek
C9: 2023-10-27 | E9: 3
C10: 2023-11-02 | F10: 3
C11: 2022-11-08 | D11: decyzja | E11: 4
C27: Razem | E27: =SUM(E8:E26) -> 7 | F27: =SUM(F8:F26) -> 3

Sheet Eques Aktywnego Inwestowania FI
A1: Spis treści
C2: Eques Aktywnego Inwestowania FIZ 2023
A3: PROSPEKT | B3: zakończone | C3: Prospekt
A5: 410.27.2023
C6: Data | E6: Czynności po stronie urzędu | F6: Czynności po stronie emitenta
E7: (w dniach roboczych)
C8: 2023-08-22 | D8: wniosek
C9: 2023-08-24 | E9: 2
C10: 2023-08-28 | F10: 2
C11: 2023-09-08 | E11: 9
C12: 2023-09-20 | F12: 8
C13: 2023-09-28 | E13: 6
C14: 2023-10-11 | F14: 9
C15: 2023-10-19 | E15: 6
C16: 2023-10-23 | F16: 2
C17: 2023-10-24 | E17: 1
C18: 2023-10-30 | F18: 4
C19: 2023-10-31 | D19: decyzja | E19: 1
C22: Razem | E22: =SUM(E8:E21) -> 25 | F22: =SUM(F8:F21) -> 25
A26: SUPLEMENTY | C26: =$C$2 -> Eques Aktywnego Inwestowania FIZ 2023
B27: zakończone | C27: Suplement nr 1
C29: Data | E29: Czynności po stronie urzędu | F29: Czynności po stronie emitenta
E30: (w dniach roboczych)
C31: 2023-11-20 | D31: wniosek
C32: 2023-11-21
C33: 2023-11-24 | D33: decyzja | E33: 3
C35: Razem | E35: =SUM(E31:E34) -> 3 | F35: =SUM(F31:F34) -> 0
A38: SUPLEMENTY | C38: =$C$2 -> Eques Aktywnego Inwestowania FIZ 2023
B39: zakończone | C39: Suplement nr 2
C41: Data | E41: Czynności po stronie urzędu | F41: Czynności po stronie emitenta
E42: (w dniach roboczych)
C43: 2024-04-19 | D43: wniosek
C44: 2024-04-22 | E44: 1
C45: 2024-04-23 | F45: 1
C46: 2024-04-25 | D46: decyzja | E46: 2
C48: Razem | E48: =SUM(E43:E47) -> 3 | F48: =SUM(F43:F47) -> 1
A53: SUPLEMENTY | C53: =$C$2 -> Eques Aktywnego Inwestowania FIZ 2023
B54: zakończone | C54: Suplement nr 3
C56: Data | E56: Czynności po stronie urzędu | F56: Czynności po stronie emitenta
E57: (w dniach roboczych)
C58: 2024-05-08 | D58: wniosek
C59: 2024-05-13 | D59: decyzja | E59: 3
C63: Razem | E63: =SUM(E58:E62) -> 3 | F63: =SUM(F58:F62) -> 0

Sheet Eques Akcji Sektora Prywatnego
A1: Spis treści
C2: Eques Akcji Sektora Prywatnego FIZ 2023
A3: PROSPEKT | B3: zakończone | C3: Prospekt
A5: 410.28.2023
C6: Data | E6: Czynności po stronie urzędu | F6: Czynności po stronie emitenta
E7: (w dniach roboczych)
C8: 2023-08-22 | D8: wniosek
C9: 2023-08-24 | E9: 2
C10: 2023-08-28 | F10: 2
C11: 2023-09-08 | E11: 9
C12: 2023-09-20 | F12: 8
C13: 2023-09-28 | E13: 6
C14: 2023-10-11 | F14: 9
C15: 2023-10-19 | E15: 6
C16: 2023-10-23 | F16: 2
C17: 2023-10-24 | E17: 1
C18: 2023-10-30 | F18: 4
C19: 2023-10-31 | D19: decyzja | E19: 1
C21: Razem | E21: =SUM(E8:E20) -> 25 | F21: =SUM(F8:F20) -> 25
A25: SUPLEMENTY | C25: =$C$2 -> Eques Akcji Sektora Prywatnego FIZ 2023
B26: zakończone | C26: Suplement nr 1
C28: Data | E28: Czynności po stronie urzędu | F28: Czynności po stronie emitenta
E29: (w dniach roboczych)
C30: 2023-11-20 | D30: wniosek
C31: 2023-11-21 | D31: aktualizacja | F31: 1
C32: 2023-11-24 | E32: 3
C34: Razem | E34: =SUM(E30:E33) -> 3 | F34: =SUM(F30:F33) -> 1
A37: SUPLEMENTY | C37: =$C$2 -> Eques Akcji Sektora Prywatnego FIZ 2023
B38: zakończone | C38: Suplement nr 2
C40: Data | E40: Czynności po stronie urzędu | F40: Czynności po stronie emitenta
E41: (w dniach roboczych)
C42: 2024-04-19 | D42: wniosek
C43: 2024-04-22 | E43: 1
C44: 2024-04-23 | F44: 1
C45: 2024-04-25 | D45: decyzja | E45: 2
C48: Razem | E48: =SUM(E42:E47) -> 3 | F48: =SUM(F42:F47) -> 1
A51: SUPLEMENTY | C51: =$C$2 -> Eques Akcji Sektora Prywatnego FIZ 2023
B52: zakończone | C52: Suplement nr 3
C54: Data | E54: Czynności po stronie urzędu | F54: Czynności po stronie emitenta
E55: (w dniach roboczych)
C56: 2024-05-08 | D56: wniosek
C57: 2024-05-13 | D57: decyzja | E57: 3
C62: Razem | E62: =SUM(E56:E61) -> 3 | F62: =SUM(F56:F61) -> 0

Sheet Eques Akumulcji Majątku FIZ
A1: Spis treści
C2: Eques Akumulacji Majątku FIZ 2023
A3: PROSPEKT | B3: zakończone | C3: Prospekt
A5: 410.34.2023
C6: Data | E6: Czynności po stronie urzędu | F6: Czynności po stronie emitenta
E7: (w dniach roboczych)
C8: 2023-09-21 | D8: wniosek
C9: 2023-09-28 | E9: 5
C10: 2023-10-11 | F10: 9
C11: 2023-10-19 | E11: 6
C12: 2023-10-23 | F12: 2
C13: 2023-10-24 | E13: 1
C14: 2023-10-30 | F14: 4
C15: 2023-10-31 | D15: decyzja | E15: 1
C21: Razem | E21: =SUM(E8:E20) -> 13 | F21: =SUM(F8:F20) -> 15
A25: SUPLEMENTY | C25: =$C$2 -> Eques Akumulacji Majątku FIZ 2023
B26: zakończone | C26: Suplement nr 1
C28: Data | E28: Czynności po stronie urzędu | F28: Czynności po stronie emitenta
E29: (w dniach roboczych)
C30: 2023-11-20 | D30: wniosek
C31: 2023-11-21 | D31: aktualizacja
C32: 2023-11-23 | D32: aktualizacja
C33: 2023-11-24 | D33: decyzja | E33: 1
C35: Razem | E35: =SUM(E30:E34) -> 1 | F35: =SUM(F30:F34) -> 0
A40: SUPLEMENTY | C40: =$C$2 -> Eques Akumulacji Majątku FIZ 2023
B41: zakończone | C41: Suplement nr 2
C43: Data | E43: Czynności po stronie urzędu | F43: Czynności po stronie emitenta
E44: (w dniach roboczych)
C45: 2023-12-05 | D45: wniosek
C46: 2023-12-07 | D46: decyzja | E46: 2
C48: Razem | E48: =SUM(E45:E47) -> 2 | F48: =SUM(F45:F47) -> 0
A50: SUPLEMENTY | C50: =$C$2 -> Eques Akumulacji Majątku FIZ 2023
B51: zakończone | C51: Suplement nr 3
C53: Data | E53: Czynności po stronie urzędu | F53: Czynności po stronie emitenta
E54: (w dniach roboczych)
C55: 2024-04-19 | D55: wniosek
C56: 2024-04-22 | E56: 1
C57: 2024-04-23 | F57: 1
C58: 2024-04-25 | D58: decyzja | E58: 2
C60: Razem | E60: =SUM(E55:E59) -> 3 | F60: =SUM(F55:F59) -> 1
A63: SUPLEMENTY | C63: =$C$2 -> Eques Akumulacji Majątku FIZ 2023
B64: zakończone | C64: Suplement nr 4
C66: Data | E66: Czynności po stronie urzędu | F66: Czynności po stronie emitenta
E67: (w dniach roboczych)
C68: 2024-05-08 | D68: wniosek
C69: 2024-05-13 | D69: decyzja | E69: 3
C73: Razem | E73: =SUM(E68:E72) -> 3 | F73: =SUM(F68:F72) -> 0

Sheet Beta ETF WIG20TR(2023)
A1: Spis treści
C2: Beta ETF WIG20TR
A3: PROSPEKT | B3: zakończone | C3: Prospekt
A5: 410.30.2023
C6: Data | E6: Czynności po stronie urzędu | F6: Czynności po stronie emitenta
E7: (w dniach roboczych)
C8: 2023-08-25 | D8: wniosek
C9: 2023-09-08 | D9: aktualizacja
C10: 2023-09-19 | E10: 7
C11: 2023-10-04 | F11: 11
C12: 2023-10-10 | E12: 4
C27: Razem | E27: =SUM(E8:E26) -> 11 | F27: =SUM(F8:F26) -> 11

Sheet Ipopema Benefit 3 FIZ(2023)
A1: Spis treści
C2: Ipopema Benefit 3 FIZ
A3: PROSPEKT | B3: zakończone | C3: Prospekt
A5: 410.25.2023
C6: Data | E6: Czynności po stronie urzędu | F6: Czynności po stronie emitenta
E7: (w dniach roboczych)
C8: 2023-08-23 | D8: wniosek
C9: 2023-09-04 | E9: 8
C10: 2023-09-07 | F10: 3
C11: 2023-09-13 | E11: 4
C12: 2023-09-26 | F12: 9
C13: 2023-10-04 | E13: 6
C14: 2023-10-05 | F14: 1
C15: 2023-10-09 | D15: decyzja | E15: 2
C27: Razem | E27: =SUM(E8:E26) -> 20 | F27: =SUM(F8:F26) -> 13
C30: Ipopema Benefit 3 FIZ
B32: zakończone | C32: Suplement nr 1
C34: Data | E34: Czynności po stronie urzędu | F34: Czynności po stronie emitenta
E35: (w dniach roboczych)
C36: 2024-04-04 | D36: wniosek
C37: 2024-04-05 | E37: 1
C38: 2024-04-08 | F38: 1
C39: 2024-04-10 | E39: 2
C41: Razem | E41: =SUM(E36:E40) -> 3 | F41: =SUM(F36:F40) -> 1
C47: Ipopema Benefit 3 FIZ
B49: zakończone | C49: Suplement nr 2
C51: Data | E51: Czynności po stronie urzędu | F51: Czynności po stronie emitenta
E52: (w dniach roboczych)
C53: 2024-04-29 | D53: wniosek
C54: 2024-04-02 | E54: 2
C55: 2024-04-06 | F55: 1
C56: 2024-04-08 | E56: 2
C58: Razem | E58: =SUM(E53:E57) -> 4 | F58: =SUM(F53:F57) -> 1

Sheet Beta ETF TBSP PFIZ 2023
A1: Spis treści
C2: Beta ETF TBSP PFIZ 2023
A3: PROSPEKT | B3: zakończone | C3: Prospekt
A5: 410.31.2022
C6: Data | E6: Czynności po stronie urzędu | F6: Czynności po stronie emitenta
E7: (w dniach roboczych)
C8: 2023-08-25 | D8: wniosek
C9: 2023-08-30 | E9: 3
C10: 2023-09-07 | F10: 6
C11: 2023-09-18 | E11: 7
C12: 2023-10-02 | F12: 10
C13: 2023-10-05 | E13: 3
C14: 2023-10-05 | F14: 0
C15: 2023-10-06 | E15: 1
C21: Razem | E21: =SUM(E8:E20) -> 14 | F21: =SUM(F8:F20) -> 16
A25: SUPLEMENTY | C25: =$C$2 -> Beta ETF TBSP PFIZ 2023
B26: zakończone | C26: Suplement nr 1
C28: Data | E28: Czynności po stronie urzędu | F28: Czynności po stronie emitenta
E29: (w dniach roboczych)
D30: wniosek
C34: Razem | E34: =SUM(E30:E33) -> 0 | F34: =SUM(F30:F33) -> 0

Sheet Beta ETF sWIG80TR (2023)
A1: Spis treści
C2: Beta ETF sWIG80TR
A3: PROSPEKT | B3: zakończone | C3: Prospekt
A5: 410.29.2023
C6: Data | E6: Czynności po stronie urzędu | F6: Czynności po stronie emitenta
E7: (w dniach roboczych)
C8: 2023-08-25 | D8: wniosek
C9: 2023-09-08 | D9: aktualizacja
C10: 2023-09-19 | E10: 7
C11: 2023-10-04 | F11: 11
C12: 2023-10-06 | E12: 2
C27: Razem | E27: =SUM(E8:E26) -> 9 | F27: =SUM(F8:F26) -> 11

Sheet Ghelamco Invest sp. z o.o.
A1: Spis treści
C2: Ghelamco Invest sp. z o.o.
A3: PROSPEKT | B3: zakończone | C3: Prospekt
A5: 410.20.2023
C6: Data | E6: Czynności po stronie urzędu | F6: Czynności po stronie emitenta
E7: (w dniach roboczych)
C8: 2023-06-02 | D8: wniosek
C9: 2023-06-13 | D9: aktualizacja
C10: 2023-06-22 | E10: 7
C11: 2023-07-06 | F11: 10
C12: 2023-07-20 | E12: 10
C13: 2023-08-03 | F13: 10
C14: 2023-08-11 | E14: 6
C15: 2023-08-23 | F15: 7
C16: 2023-08-31 | E16: 6
C17: 2023-09-13 | F17: 9
C18: 2023-09-18 | E18: 3
C19: 2023-09-22 | F19: 1
C20: 2023-09-25 | D20: decyzja | E20: 1
C27: Razem | E27: =SUM(E8:E26) -> 33 | F27: =SUM(F8:F26) -> 37
A31: SUPLEMENTY | C31: =$C$2 -> Ghelamco Invest sp. z o.o.
B32: zakończone | C32: Suplement nr 1
C34: Data | E34: Czynności po stronie urzędu | F34: Czynności po stronie emitenta
E35: (w dniach roboczych)
C36: 2023-10-06 | D36: wniosek
C37: 2023-10-12 | E37: 4
C38: 2023-10-13 | F38: 1
C39: 2023-10-17 | E39: 2
C40: 2023-10-17 | F40: 0
C41: 2023-10-18 | D41: decyzja | E41: 1
C42: Razem | E42: =SUM(E36:E41) -> 7 | F42: =SUM(F36:F41) -> 1

Sheet PragmaGO - obligacje niez(2023)
A1: Spis treści
C2: PragmaGO - obligacje niezabezpieczone (2023)
A3: PROSPEKT | B3: zakończone | C3: Prospekt podstawowy
A5: 410.24.2023
C6: Data | E6: Czynności po stronie urzędu | F6: Czynności po stronie emitenta
E7: (w dniach roboczych)
C8: 2023-08-01 | D8: wniosek
C9: 2023-08-11 | E9: 8
C10: 2023-08-17 | F10: 3
C11: 2023-08-31 | E11: 10
C12: 2023-09-12 | F12: 8
C13: 2023-09-13 | F13: 1
C14: 2023-09-14 | D14: decyzja | E14: 1
C27: Razem | E27: =SUM(E8:E26) -> 19 | F27: =SUM(F8:F26) -> 12
A30: SUPLEMENTY | C30: =$C$2 -> PragmaGO - obligacje niezabezpieczone (2023)
B31: zakończone | C31: Suplement nr 1 do dok. rejestracyjnego
C33: Data | E33: Czynności po stronie urzędu | F33: Czynności po stronie emitenta
E34: (w dniach roboczych)
C35: 2023-09-21 | D35: wniosek
C36: 2023-09-26 | D36: decyzja | E36: 3
C37: Razem | E37: =SUM(E35:E36) -> 3 | F37: =SUM(F35:F36) -> 0
C39: =$C$2 -> PragmaGO - obligacje niezabezpieczone (2023)
B40: zakończone | C40: Suplement nr 2 do dok. Rejestracyjnego
C42: Data | E42: Czynności po stronie urzędu | F42: Czynności po stronie emitenta
E43: (w dniach roboczych)
C44: 2023-11-15 | D44: wniosek
C45: 2023-11-16 | F45: 1
C46: 2023-11-17 | D46: decyzja | E46: 1
C47: Razem | E47: =SUM(E44:E46) -> 1 | F47: =SUM(F44:F46) -> 1
C49: =$C$2 -> PragmaGO - obligacje niezabezpieczone (2023)
B50: zakończone | C50: Suplement nr 3 do dok. Rejestracyjnego
C52: Data | E52: Czynności po stronie urzędu | F52: Czynności po stronie emitenta
E53: (w dniach roboczych)
C54: 2024-02-06 | D54: wniosek
C55: 2024-02-13 | D55: decyzja | E55: 5
C56: Razem | E56: =SUM(E54:E55) -> 5 | F56: =SUM(F54:F55) -> 0
C57: =$C$2 -> PragmaGO - obligacje niezabezpieczone (2023)
B58: zakończone | C58: Suplement nr 4 do dok. Rejestracyjnego
C60: Data | E60: Czynności po stronie urzędu | F60: Czynności po stronie emitenta
E61: (w dniach roboczych)
C62: 2024-04-17 | D62: wniosek
C63: 2024-04-18 | D63: decyzja | E63: 1
C64: Razem | E64: =SUM(E62:E63) -> 1 | F64: =SUM(F62:F63) -> 0
C66: =$C$2 -> PragmaGO - obligacje niezabezpieczone (2023)
B67: zakończone | C67: Suplement nr 5 do dok. Rejestracyjnego
C69: Data | E69: Czynności po stronie urzędu | F69: Czynności po stronie emitenta
E70: (w dniach roboczych)
C71: 2024-04-26 | D71: wniosek
C72: 2024-04-29 | F72: 1
C73: 2024-05-06 | D73: decyzja | E73: 3
C74: Razem | E74: =SUM(E71:E73) -> 3 | F74: =SUM(F71:F73) -> 1

Sheet PragmaGO SA 2023 obligacj(2023)
A1: Spis treści
C2: PragmaGO SA - obligacje zabezpieczone (2023)
A3: PROSPEKT | B3: zakończone | C3: Prospekt podstawowy
A5: 410.8.2023
C6: Data | E6: Czynności po stronie urzędu | F6: Czynności po stronie emitenta
E7: (w dniach roboczych)
C8: 2023-04-04 | D8: wniosek
C9: 2023-04-18 | E9: 9
C10: 2023-05-09 | F10: 13
C11: 2023-05-23 | E11: 10
C12: 2023-06-06 | F12: 10
C13: 2023-06-21 | E13: 10
C14: 2023-06-29 | F14: 6
C15: 2023-07-13 | E15: 10
C16: 2023-07-27 | F16: 10
C17: 2023-08-03 | E17: 5
C18: 2023-08-18 | F18: 10
C19: 2023-08-28 | E19: 6
C20: 2023-08-30 | F20: 2
C21: 2023-09-05 | F21: 4
C22: 2023-09-12 | F22: 5
C23: 2023-09-13 | F23: 1
C24: 2023-09-14 | E24: 1
C27: Razem | E27: =SUM(E8:E26) -> 51 | F27: =SUM(F8:F26) -> 61
A31: SUPLEMENTY | C31: =$C$2 -> PragmaGO SA - obligacje zabezpieczone (2023)
B32: zakończone | C32: Suplement nr 1 do dok. rejestracyjnego
C34: Data | E34: Czynności po stronie urzędu | F34: Czynności po stronie emitenta
E35: (w dniach roboczych)
C36: 2023-09-21 | D36: wniosek
C37: 2023-09-26 | D37: decyzja | E37: 3
C38: Razem | E38: =SUM(E36:E37) -> 3 | F38: =SUM(F36:F37) -> 0
C40: =$C$2 -> PragmaGO SA - obligacje zabezpieczone (2023)
B41: zakończone | C41: Suplement nr 2 do dok. Rejestracyjnego
C43: Data | E43: Czynności po stronie urzędu | F43: Czynności po stronie emitenta
E44: (w dniach roboczych)
C45: 2023-11-15 | D45: wniosek
C46: 2023-11-16 | F46: 1
C47: 2023-11-17 | D47: decyzja | E47: 1
C48: Razem | E48: =SUM(E45:E47) -> 1 | F48: =SUM(F45:F47) -> 1
C50: =$C$2 -> PragmaGO SA - obligacje zabezpieczone (2023)
B51: zakończone | C51: Suplement nr 3 do dok. Rejestracyjnego
C53: Data | E53: Czynności po stronie urzędu | F53: Czynności po stronie emitenta
E54: (w dniach roboczych)
C55: 2024-02-06 | D55: wniosek
C56: 2024-02-13 | D56: decyzja | E56: 5
C57: Razem | E57: =SUM(E55:E56) -> 5 | F57: =SUM(F55:F56) -> 0
C59: =$C$2 -> PragmaGO SA - obligacje zabezpieczone (2023)
B60: zakończone | C60: Suplement nr 4 do dok. Rejestracyjnego
C62: Data | E62: Czynności po stronie urzędu | F62: Czynności po stronie emitenta
E63: (w dniach roboczych)
C64: 2024-04-17 | D64: wniosek
C65: 2024-04-18 | D65: decyzja | E65: 1
C66: Razem | E66: =SUM(E64:E65) -> 1 | F66: =SUM(F64:F65) -> 0
C68: =$C$2 -> PragmaGO SA - obligacje zabezpieczone (2023)
B69: zakończone | C69: Suplement nr 5 do dok. Rejestracyjnego
C71: Data | E71: Czynności po stronie urzędu | F71: Czynności po stronie emitenta
E72: (w dniach roboczych)
C73: 2024-04-26 | D73: wniosek
C74: 2024-04-29 | F74: 1
C75: 2024-05-06 | D75: decyzja | E75: 3
C76: Razem | E76: =SUM(E73:E75) -> 3 | F76: =SUM(F73:F75) -> 1

Sheet Starward Industries(2023)
A1: Spis treści
C2: Starward Industries
A3: PROSPEKT | B3: zakończone | C3: Prospekt
A5: 410.10.2023
C6: Data | E6: Czynności po stronie urzędu | F6: Czynności po stronie emitenta
E7: (w dniach roboczych)
C8: 2023-04-20 | D8: wniosek
C9: 2023-05-22 | E9: 20
C10: 2023-06-05 | F10: 10
C11: 2023-06-20 | E11: 10
C12: 2023-06-26 | F12: 4
C13: 2023-07-10 | E13: 10
C14: 2023-07-17 | F14: 5
C15: 2023-07-26 | E15: 7
C16: 2023-07-31 | F16: 3
C17: 2023-08-10 | E17: 8
C18: 2023-08-14 | F18: 2
C19: 2023-08-28 | E19: 9
C20: 2023-08-29 | F20: 1
C21: 2023-09-04 | E21: 4
C22: 2023-09-05 | F22: 1
C23: 2023-09-07 | E23: 2
C24: 2023-09-07 | F24: 0
C25: 2023-09-11 | E25: 2
C26: 2023-09-11 | F26: 0
C27: 2023-09-11 | D27: decyzja | E27: 0
C29: Razem | E29: =SUM(E8:E28) -> 72 | F29: =SUM(F8:F28) -> 26
A33: SUPLEMENTY | C33: =$C$2 -> Starward Industries
B34: zakończone | C34: Suplement nr 1
C36: Data | E36: Czynności po stronie urzędu | F36: Czynności po stronie emitenta
E37: (w dniach roboczych)
C38: 2023-09-20 | D38: wniosek
C39: 2023-09-22 | E39: 2
C40: 2023-09-25 | F40: 1
C41: 2023-09-28 | E41: 2
C42: 2023-09-28 | F42: 0
C43: 2023-10-02 | E43: 2
C44: 2023-10-02 | F44: 0
C45: 2023-10-04 | D45: decyzja
E46: =SUM(E38:E45) -> 6 | F46: =SUM(F38:F45) -> 1
C47: Razem

Sheet Polenergia SA (2)
A1: Spis treści
C2: Polenergia SA (2023)
A3: PROSPEKT | B3: zakończone | C3: Prospekt
A5: 410.13.2023
C6: Data | E6: Czynności po stronie urzędu | F6: Czynności po stronie emitenta
E7: (w dniach roboczych)
C8: 2023-04-28 | D8: wniosek
C9: 2023-05-16 | E9: 10
C10: 2023-05-31 | F10: 11
C11: 2023-06-14 | E11: 9
C12: 2023-06-28 | F12: 10
C13: 2023-07-12 | E13: 10
C14: 2023-07-27 | F14: 11
C15: 2023-08-01 | D15: aktualizacja | F15: 3
C16: 2023-08-04 | E16: 3
C17: 2023-08-11 | F17: 5
C18: 2023-08-18 | D18: aktualizacja | F18: 4
C19: 2023-08-23 | E19: 3
C20: 2023-08-25 | F20: 2
C21: 2023-08-30 | E21: 3
C22: 2023-09-01 | F22: 2
C23: 2023-09-05 | E23: 2
C24: 2023-09-07 | F24: 2
C25: 2023-09-08 | E25: 1
C26: 2023-09-08 | F26: 0
C27: 2023-09-11 | D27: decyzja | E27: 1
C30: Razem | E30: =SUM(E8:E29) -> 42 | F30: =SUM(F8:F29) -> 50
A35: SUPLEMENTY | C35: =$C$2 -> Polenergia SA (2023)
B36: zakończone | C36: Suplement nr 1
C38: Data | E38: Czynności po stronie urzędu | F38: Czynności po stronie emitenta
E39: (w dniach roboczych)
C40: 2023-10-06 | D40: wniosek
C41: 2023-10-09 | E41: 1
C42: 2023-10-09 | F42: 0
C43: 2023-10-10 | D43: decyzja | E43: 1
C47: Razem | E47: =SUM(E40:E46) -> 2 | F47: =SUM(F40:F46) -> 0
A51: SUPLEMENTY | C51: =$C$2 -> Polenergia SA (2023)
B52: zakończone | C52: Suplement nr 2
C54: Data | E54: Czynności po stronie urzędu | F54: Czynności po stronie emitenta
E55: (w dniach roboczych)
C56: 2023-10-26 | D56: wniosek
C57: 2023-10-27 | D57: decyzja | E57: 1
C61: Razem | E61: =SUM(E56:E60) -> 1 | F61: =SUM(F56:F60) -> 0

Sheet XPlus SA
A1: Spis treści
C2: XPlus SA
A3: PROSPEKT | B3: zakończone | C3: Prospekt
A5: 410.38.2022
C6: Data | E6: Czynności po stronie urzędu | F6: Czynności po stronie emitenta
E7: (w dniach roboczych)
C8: 2022-08-30 | D8: wniosek
C9: 2022-09-19 | E9: 14
C10: 2022-10-24 | F10: 25
C11: 2022-11-08 | E11: 10
C12: 2022-12-16 | F12: 27
C13: 2023-01-02 | E13: 10
C14: 2023-01-24 | F14: 15
C15: 2023-02-06 | E15: 9
C16: 2023-02-20 | F16: 10
C17: 2023-03-03 | E17: 9
C18: 2023-04-03 | F18: 21
C19: 2023-04-17 | E19: 9
C20: 2023-04-27 | F20: 8
C21: 2023-05-12 | E21: 9
C22: 2023-05-30 | F22: 12
C23: 2023-06-12 | E23: 8
C24: 2023-06-20 | F24: 6
C25: 2023-07-03 | E25: 9
C26: 2023-07-10 | F26: 5
C27: 2023-07-17 | E27: 5
C28: 2023-07-19 | F28: 2
C29: 2023-07-27 | D29: decyzja | E29: 6
C33: Razem | E33: =SUM(E8:E32) -> 98 | F33: =SUM(F8:F32) -> 131
A37: SUPLEMENTY | C37: =$C$2 -> XPlus SA
B38: zakończone | C38: Suplement nr 1
C40: Data | E40: Czynności po stronie urzędu | F40: Czynności po stronie emitenta
E41: (w dniach roboczych)
C42: 2023-08-21 | D42: wniosek
C43: 2023-08-28 | E43: 5
C44: 2023-09-01 | F44: 4
C45: 2023-09-06 | E45: 3
C46: 2023-09-08 | F46: 2
C47: 2023-09-14 | E47: 4
C49: Razem | E49: =SUM(E42:E48) -> 12 | F49: =SUM(F42:F48) -> 6
C51: =$C$2 -> XPlus SA
B52: zakończone | C52: Suplement nr 2
C54: Data | E54: Czynności po stronie urzędu | F54: Czynności po stronie emitenta
E55: (w dniach roboczych)
C56: 2023-09-11 | D56: wniosek
C57: 2023-09-14 | D57: decyzja | E57: 3
C63: Razem | E63: =SUM(E56:E62) -> 3 | F63: =SUM(F56:F62) -> 0
A65: SUPLEMENTY | C65: =$C$2 -> XPlus SA
B66: zakończone | C66: Suplement nr 3
C68: Data | E68: Czynności po stronie urzędu | F68: Czynności po stronie emitenta
E69: (w dniach roboczych)
C70: 2023-12-03 | D70: wniosek
C71: 2023-12-07 | E71: 4
C72: 2023-12-13 | F72: 4
C73: 2023-12-15 | D73: aktualizacja | F73: 2
C74: 2023-12-18 | D74: decyzja | E74: 1
C76: Razem | E76: =SUM(E71:E75) -> 5 | F76: =SUM(F71:F75) -> 6

Sheet Ronson Development oblig (2023)
A1: Spis treści
C2: Ronson Development SE
A3: PROSPEKT | B3: zakończone | C3: Prospekt
A5: 410.14.2022
C6: Data | E6: Czynności po stronie urzędu | F6: Czynności po stronie emitenta
E7: (w dniach roboczych)
C8: 2023-04-28 | D8: wniosek
C9: 2023-05-15 | E9: 9
C10: 2023-05-29 | F10: 10
C11: 2023-06-13 | E11: 10
C12: 2023-06-22 | F12: 7
C13: 2023-07-05 | E13: 9
C14: 2023-07-07 | F14: 2
C15: 2023-07-13 | E15: 4
C16: 2023-07-18 | F16: 3
C17: 2023-07-20 | D17: aktualizacja | F17: 2
C18: 2023-07-24 | D18: aktualizacja | F18: 2
C19: 2023-07-25 | D19: decyzja
C21: Razem | E21: =SUM(E8:E20) -> 32 | F21: =SUM(F8:F20) -> 26
A25: SUPLEMENTY | C25: =$C$2 -> Ronson Development SE
B26: zakończone | C26: Suplement nr 1
C28: Data | E28: Czynności po stronie urzędu | F28: Czynności po stronie emitenta
E29: (w dniach roboczych)
C30: 2023-08-10 | D30: wniosek
C31: 2023-08-16 | E31: 3
C32: 2023-08-17 | F32: 1
C33: 2023-08-18 | D33: aktualizacja | F33: 1
C34: 2023-08-25 | D34: decyzja | E34: 5
C36: Razem | E36: =SUM(E30:E35) -> 8 | F36: =SUM(F30:F35) -> 2
C38: =$C$2 -> Ronson Development SE
B39: zakończone | C39: Suplement nr 2
A40: 411.97.2023
C41: Data | E41: Czynności po stronie urzędu | F41: Czynności po stronie emitenta
E42: (w dniach roboczych)
C43: 2023-11-10 | D43: wniosek
C44: 2023-11-17 | D44: decyzja | E44: 5
C46: Razem | E46: =SUM(E43:E45) -> 5 | F46: =SUM(F43:F45) -> 0
C49: =$C$2 -> Ronson Development SE
B50: zakończone | C50: Suplement nr 3
A51: 411.11.2024
C52: Data | E52: Czynności po stronie urzędu | F52: Czynności po stronie emitenta
E53: (w dniach roboczych)
C54: 2024-03-14 | D54: wniosek
C55: 2024-03-19 | D55: decyzja | E55: 3
C57: Razem | E57: =SUM(E54:E56) -> 3 | F57: =SUM(F54:F56) -> 0

Sheet PCC Exol S.A.(2023)
A1: Spis treści
C2: PCC Exol S.A.
A3: PROSPEKT | B3: zakończone | C3: Prospekt
A5: 410.21.2023
C6: Data | E6: Czynności po stronie urzędu | F6: Czynności po stronie emitenta
E7: (w dniach roboczych)
C8: 2023-06-14 | D8: wniosek
C9: 2023-06-28 | E9: 10
C10: 2023-07-12 | F10: 10
C11: 2023-07-20 | D11: decyzja | E11: 6
C27: Razem | E27: =SUM(E8:E26) -> 16 | F27: =SUM(F8:F26) -> 10
C31: =$C$2 -> PCC Exol S.A.
B32: zakończone | C32: Suplement nr 1
C34: Data | E34: Czynności po stronie urzędu | F34: Czynności po stronie emitenta
E35: (w dniach roboczych)
C36: 2023-07-31 | D36: wniosek
C37: 2023-08-01 | D37: decyzja | E37: 1
C39: Razem | E39: =SUM(E36:E38) -> 1 | F39: =SUM(F36:F38) -> 0
C43: =$C$2 -> PCC Exol S.A.
B44: zakończone | C44: Suplement nr 2
C46: Data | E46: Czynności po stronie urzędu | F46: Czynności po stronie emitenta
E47: (w dniach roboczych)
C48: 2023-08-23 | D48: wniosek
C49: 2023-08-30 | D49: decyzja | E49: 5
C51: Razem | E51: =SUM(E48:E50) -> 5 | F51: =SUM(F48:F50) -> 0
C53: =$C$2 -> PCC Exol S.A.
B54: zakończone | C54: Suplement nr 3
C56: Data | E56: Czynności po stronie urzędu | F56: Czynności po stronie emitenta
E57: (w dniach roboczych)
C58: 2023-09-20 | D58: wniosek
C59: 2023-09-22 | D59: decyzja | E59: 2
C61: Razem | E61: =SUM(E58:E60) -> 2 | F61: =SUM(F58:F60) -> 0
C65: =$C$2 -> PCC Exol S.A.
B66: zakończone | C66: Suplement nr 4
C68: Data | E68: Czynności po stronie urzędu | F68: Czynności po stronie emitenta
E69: (w dniach roboczych)
C70: 2023-11-15 | D70: wniosek
C71: 2023-11-17 | D71: decyzja | E71: 2 | G71: 1
C73: Razem | E73: =SUM(E70:E72) -> 2 | F73: =SUM(F70:F72) -> 0
C77: =$C$2 -> PCC Exol S.A.
B78: zakończone | C78: Suplement nr 5
C80: Data | E80: Czynności po stronie urzędu | F80: Czynności po stronie emitenta
E81: (w dniach roboczych)
C82: 2024-03-21 | D82: wniosek
C83: 2024-03-22 | D83: decyzja | E83: 1
C85: Razem | E85: =SUM(E82:E84) -> 1 | F85: =SUM(F82:F84) -> 0

Sheet PCC Rokita S.A. (2023)
A1: Spis treści
C2: PCC Rokita S.A. (2023)
A3: PROSPEKT | B3: zakończone | C3: Prospekt
A5: 410.11.2023
C6: Data | E6: Czynności po stronie urzędu | F6: Czynności po stronie emitenta
E7: (w dniach roboczych)
C8: 2023-04-26 | D8: wniosek
C9: 2023-05-10 | E9: 8
C10: 2023-05-30 | F10: 14
C11: 2023-06-13 | E11: 9
C12: 2023-06-22 | F12: 7
C13: 2023-06-28 | E13: 4
C14: 2023-07-11 | F14: 9
C15: 2023-07-20 | D15: decyzja | E15: 7
C27: Razem | E27: =SUM(E8:E26) -> 28 | F27: =SUM(F8:F26) -> 30
C31: =$C$2 -> PCC Rokita S.A. (2023)
B32: zakończone | C32: Suplement nr 1
C34: Data | E34: Czynności po stronie urzędu | F34: Czynności po stronie emitenta
E35: (w dniach roboczych)
C36: 2023-08-23 | D36: wniosek
C37: 2023-08-30 | D37: decyzja | E37: 5
C39: Razem | E39: =SUM(E36:E38) -> 5 | F39: =SUM(F36:F38) -> 0
C41: =$C$2 -> PCC Rokita S.A. (2023)
B42: zakończone | C42: Suplement nr 2
C44: Data | E44: Czynności po stronie urzędu | F44: Czynności po stronie emitenta
E45: (w dniach roboczych)
C46: 2023-09-20 | D46: wniosek
C47: 2023-09-22 | D47: decyzja | E47: 2
C49: Razem | E49: =SUM(E46:E48) -> 2 | F49: =SUM(F46:F48) -> 0
C53: =$C$2 -> PCC Rokita S.A. (2023)
B54: zakończone | C54: Suplement nr 3
C56: Data | E56: Czynności po stronie urzędu | F56: Czynności po stronie emitenta
E57: (w dniach roboczych)
C58: 2023-11-15 | D58: wniosek
C59: 2023-11-17 | D59: decyzja | E59: 2
C61: Razem | E61: =SUM(E58:E60) -> 2 | F61: =SUM(F58:F60) -> 0
C66: =$C$2 -> PCC Rokita S.A. (2023)
B67: zakończone | C67: Suplement nr 4
C69: Data | E69: Czynności po stronie urzędu | F69: Czynności po stronie emitenta
E70: (w dniach roboczych)
C71: 2024-03-21 | D71: wniosek
C72: 2024-03-22 | D72: decyzja | E72: 1
C74: Razem | E74: =SUM(E71:E73) -> 1 | F74: =SUM(F71:F73) -> 0

Sheet Kruk (2023)
A1: Spis treści
C2: Kruk (2023)
A3: PROSPEKT | B3: zakończone | C3: Prospekt podstawowy obligacji
A5: 410.18.2023
C6: Data | E6: Czynności po stronie urzędu | F6: Czynności po stronie emitenta
E7: (w dniach roboczych)
C8: 2023-05-23 | D8: wniosek
C9: 2023-06-06 | E9: 10
C10: 2023-06-19 | F10: 8
C11: 2023-06-22 | E11: 3
C12: 2023-06-27 | F12: 3
C13: 2023-07-11 | D13: decyzja | E13: 10
C16: Razem | E16: =SUM(E8:E15) -> 23 | F16: =SUM(F8:F15) -> 11
C19: =$C$2 -> Kruk (2023)
B20: zakończone | C20: Suplement nr 1
C22: Data | E22: Czynności po stronie urzędu | F22: Czynności po stronie emitenta
E23: (w dniach roboczych)
C24: 2023-08-11 | D24: wniosek
C25: 2023-08-14 | D25: decyzja | E25: 1
C29: Razem | E29: =SUM(E24:E28) -> 1 | F29: =SUM(F24:F28) -> 0
C33: =$C$2 -> Kruk (2023)
B34: zakończone | C34: Suplement nr 2
C36: Data | E36: Czynności po stronie urzędu | F36: Czynności po stronie emitenta
E37: (w dniach roboczych)
C38: 2023-09-07 | D38: wniosek
C39: 2023-09-14 | D39: decyzja | E39: 5
C43: Razem | E43: =SUM(E38:E42) -> 5 | F43: =SUM(F38:F42) -> 0
C47: =$C$2 -> Kruk (2023)
B48: zakończone | C48: Suplement nr 3
C50: Data | E50: Czynności po stronie urzędu | F50: Czynności po stronie emitenta
E51: (w dniach roboczych)
C52: 2023-10-18 | D52: wniosek
C53: 2023-10-20 | D53: decyzja | E53: 2
C57: Razem | E57: =SUM(E52:E56) -> 2 | F57: =SUM(F52:F56) -> 0
C61: =$C$2 -> Kruk (2023)
B62: zakończone | C62: Suplement nr 4
C64: Data | E64: Czynności po stronie urzędu | F64: Czynności po stronie emitenta
E65: (w dniach roboczych)
C66: 2023-11-09 | D66: wniosek
C67: 2023-11-13 | D67: decyzja | E67: 2
C71: Razem | E71: =SUM(E66:E70) -> 2 | F71: =SUM(F66:F70) -> 0
C75: =$C$2 -> Kruk (2023)
B76: zakończone | C76: Suplement nr 5
C78: Data | E78: Czynności po stronie urzędu | F78: Czynności po stronie emitenta
E79: (w dniach roboczych)
C80: 2023-12-20 | D80: wniosek
C81: 2023-12-22 | E81: 2
C82: 2023-12-27 | F82: 1
C83: 2024-01-03 | D83: decyzja | E83: 4 | G83: 0
C87: Razem | E87: =SUM(E80:E86) -> 6 | F87: =SUM(F80:F86) -> 1
C90: =$C$2 -> Kruk (2023)
B91: zakończone | C91: Suplement nr 6
C93: Data | E93: Czynności po stronie urzędu | F93: Czynności po stronie emitenta
E94: (w dniach roboczych)
C95: 2024-02-28 | D95: wniosek
C96: 2024-03-04 | D96: decyzja | E96: 3 | G96: 1
C100: Razem | E100: =SUM(E95:E99) -> 3 | F100: =SUM(F95:F99) -> 0
C105: =$C$2 -> Kruk (2023)
B106: zakończone | C106: Suplement nr 7
C108: Data | E108: Czynności po stronie urzędu | F108: Czynności po stronie emitenta
E109: (w dniach roboczych)
C110: 2024-03-28 | D110: wniosek
C111: 2024-04-02 | D111: decyzja | E111: 2
C115: Razem | E115: =SUM(E110:E114) -> 2 | F115: =SUM(F110:F114) -> 0
C120: =$C$2 -> Kruk (2023)
B121: zakończone | C121: Suplement nr 8
C123: Data | E123: Czynności po stronie urzędu | F123: Czynności po stronie emitenta
E124: (w dniach roboczych)
C125: 2024-04-29 | D125: wniosek
C126: 2024-05-02 | D126: decyzja | E126: 2
C130: Razem | E130: =SUM(E125:E129) -> 2 | F130: =SUM(F125:F129) -> 0
C135: =$C$2 -> Kruk (2023)
B136: zakończone | C136: Suplement nr 9
C138: Data | E138: Czynności po stronie urzędu | F138: Czynności po stronie emitenta
E139: (w dniach roboczych)
C140: 2024-05-09 | D140: wniosek
C141: 2024-05-14 | D141: decyzja | E141: 3
C145: Razem | E145: =SUM(E140:E144) -> 3 | F145: =SUM(F140:F144) -> 0

Sheet Beta ETF WIG20lev Portf(2023)
A1: Spis treści
C2: Beta ETF WIG20lev Portfelowy FIZ
A3: PROSPEKT | B3: zakończone | C3: Prospekt
A5: 410.17.2023
C6: Data | E6: Czynności po stronie urzędu | F6: Czynności po stronie emitenta
E7: (w dniach roboczych)
C8: 2023-05-19 | D8: wniosek
C9: 2023-05-30 | E9: 7
C10: 2023-06-23 | F10: 17
C11: 2023-07-03 | E11: 6
C14: Razem | E14: =SUM(E8:E13) -> 13 | F14: =SUM(F8:F13) -> 17

Sheet Beta ETF WIG20short Portf(2023)
A1: Spis treści
C2: Beta ETF WIG20short Portfelowy FIZ
A3: PROSPEKT | B3: zakończone | C3: Prospekt
A5: 410.16.2023
C6: Data | E6: Czynności po stronie urzędu | F6: Czynności po stronie emitenta
E7: (w dniach roboczych)
C8: 2023-05-19 | D8: wniosek
C9: 2023-05-30 | E9: 7
C10: 2023-06-23 | F10: 17
C11: 2023-07-03 | E11: 6
C14: Razem | E14: =SUM(E8:E13) -> 13 | F14: =SUM(F8:F13) -> 17

Sheet Echo Investment SA (oblig(2023)
C1: Echo Investment SA
A2: PROSPEKT | B2: zakończone | C2: Prospekt podstawowy
A4: 410.9.2023
C5: Data | E5: Czynności po stronie urzędu | F5: Czynności po stronie emitenta
E6: (w dniach roboczych)
C7: 2023-04-14 | D7: wniosek
C8: 2023-04-28 | E8: 10
C9: 2023-05-05 | F9: 3
C10: 2023-05-15 | E10: 6
C11: 2023-05-17 | F11: 2
C12: 2023-05-19 | E12: 2
C13: 2023-05-22 | F13: 1
C14: 2023-05-24 | E14: 2
C15: 2023-05-24 | F15: 0
C16: 2023-06-02 | F16: 7
C17: 2023-06-09 | E17: 4
C18: 2023-06-14 | F18: 3
C19: 2023-06-19 | D19: decyzja | E19: 3
C23: Razem | E23: =SUM(E7:E22) -> 27 | F23: =SUM(F7:F22) -> 16
C27: Echo Investment SA
A28: Suplement nr 1 | B28: zakończone | C28: Suplement nr 1
C31: Data | E31: Czynności po stronie urzędu | F31: Czynności po stronie emitenta
E32: (w dniach roboczych)
C33: 2023-10-06 | D33: wniosek
C34: 2023-10-11 | E34: 3
C35: 2023-10-16 | F35: 3
C36: 2023-10-20 | D36: decyzja | E36: 4
C39: Razem | E39: =SUM(E33:E38) -> 7 | F39: =SUM(F33:F38) -> 3
C41: Echo Investment SA
A42: Suplement nr 2 | B42: zakończone | C42: Suplement nr 2
C45: Data | E45: Czynności po stronie urzędu | F45: Czynności po stronie emitenta
E46: (w dniach roboczych)
C47: 2023-12-01 | D47: wniosek
C48: 2023-12-05 | E48: 2
C49: 2023-12-06 | F49: 1
C50: 2023-12-07 | D50: decyzja | E50: 1
C53: Razem | E53: =SUM(E47:E52) -> 3 | F53: =SUM(F47:F52) -> 1
C55: Echo Investment SA
A56: Suplement nr 3 | B56: zakończone | C56: Suplement nr 3
C59: Data | E59: Czynności po stronie urzędu | F59: Czynności po stronie emitenta
E60: (w dniach roboczych)
C61: 2024-04-04 | D61: wniosek
C62: 2024-04-05 | D62: decyzja | E62: 1
C65: Razem | E65: =SUM(E61:E64) -> 1 | F65: =SUM(F61:F64) -> 0

Sheet FDK Rentier FIZ (2023)
A1: Spis treści
C2: FDK Rentier FIZ
A3: PROSPEKT | B3: zakończone | C3: Prospekt
A5: 410.6.2023
C6: Data | E6: Czynności po stronie urzędu | F6: Czynności po stronie emitenta
E7: (w dniach roboczych)
C8: 2023-03-02 | D8: wniosek
C9: 2023-03-13 | E9: 7
C10: 2023-06-06 | F10: 58
C11: 2023-06-14 | D11: aktualizacja | F11: 5
C12: 2023-06-19 | D12: decyzja | E12: 3
C27: Razem | E27: =SUM(E8:E26) -> 10 | F27: =SUM(F8:F26) -> 63
A32: SUPLEMENTY | C32: =$C$2 -> FDK Rentier FIZ
B33: zakończone | C33: Suplement nr 1
C35: Data | E35: Czynności po stronie urzędu | F35: Czynności po stronie emitenta
E36: (w dniach roboczych)
D37: wniosek
C38: 2023-08-07
C39: 2023-08-08 | D39: decyzja | E39: 1
C41: Razem | E41: =SUM(E37:E40) -> 1 | F41: =SUM(F37:F40) -> 0
A50: SUPLEMENTY | C50: =$C$2 -> FDK Rentier FIZ
B51: zakończone | C51: Suplement nr 2
C53: Data | E53: Czynności po stronie urzędu | F53: Czynności po stronie emitenta
E54: (w dniach roboczych)
C55: 2023-08-30 | D55: wniosek
C56: 2023-09-01 | D56: decyzja | E56: 2
C58: Razem | E58: =SUM(E55:E57) -> 2 | F58: =SUM(F55:F57) -> 0
A63: SUPLEMENTY | C63: =$C$2 -> FDK Rentier FIZ
B64: zakończone | C64: Suplement nr 3
C66: Data | E66: Czynności po stronie urzędu | F66: Czynności po stronie emitenta
E67: (w dniach roboczych)
C68: 2023-09-19 | D68: wniosek
C69: 2023-09-21 | D69: decyzja | E69: 2
C72: Razem | E72: =SUM(E68:E71) -> 2 | F72: =SUM(F68:F71) -> 0
A77: SUPLEMENTY | C77: =$C$2 -> FDK Rentier FIZ
B78: zakończone | C78: Suplement nr 4
C80: Data | E80: Czynności po stronie urzędu | F80: Czynności po stronie emitenta
E81: (w dniach roboczych)
C82: 2023-09-25 | D82: wniosek
C83: 2023-09-29 | D83: decyzja | E83: 4
C86: Razem | E86: =SUM(E82:E85) -> 4 | F86: =SUM(F82:F85) -> 0
A91: SUPLEMENTY | C91: =$C$2 -> FDK Rentier FIZ
B92: zakończone | C92: Suplement nr 5
C94: Data | E94: Czynności po stronie urzędu | F94: Czynności po stronie emitenta
E95: (w dniach roboczych)
C96: 2023-09-29 | D96: wniosek
C97: 2023-10-04 | D97: decyzja | E97: 3
C100: Razem | E100: =SUM(E96:E99) -> 3 | F100: =SUM(F96:F99) -> 0
A105: SUPLEMENTY | C105: =$C$2 -> FDK Rentier FIZ
B106: zakończone | C106: Suplement nr 6
C108: Data | E108: Czynności po stronie urzędu | F108: Czynności po stronie emitenta
E109: (w dniach roboczych)
C110: 2023-10-19 | D110: wniosek
C111: 2023-10-20 | D111: decyzja | E111: 1
C114: Razem | E114: =SUM(E110:E113) -> 1 | F114: =SUM(F110:F113) -> 0
A119: SUPLEMENTY | C119: =$C$2 -> FDK Rentier FIZ
B120: zakończone | C120: Suplement nr 7
C122: Data | E122: Czynności po stronie urzędu | F122: Czynności po stronie emitenta
E123: (w dniach roboczych)
C124: 2023-10-25 | D124: wniosek
C125: 2023-10-27 | D125: decyzja | E125: 2
C128: Razem | E128: =SUM(E124:E127) -> 2 | F128: =SUM(F124:F127) -> 0
A133: SUPLEMENTY | C133: =$C$2 -> FDK Rentier FIZ
B134: zakończone | C134: Suplement nr 8
C136: Data | E136: Czynności po stronie urzędu | F136: Czynności po stronie emitenta
E137: (w dniach roboczych)
C138: 2023-11-07 | D138: wniosek
C139: 2023-11-09 | D139: decyzja | E139: 2
C142: Razem | E142: =SUM(E138:E141) -> 2 | F142: =SUM(F138:F141) -> 0
A146: SUPLEMENTY | C146: =$C$2 -> FDK Rentier FIZ
B147: zakończone | C147: Suplement nr 9
C149: Data | E149: Czynności po stronie urzędu | F149: Czynności po stronie emitenta
E150: (w dniach roboczych)
C151: 2024-02-06 | D151: wniosek
C152: 2024-02-13 | D152: decyzja | E152: 5
C155: Razem | E155: =SUM(E151:E154) -> 5 | F155: =SUM(F151:F154) -> 0
A159: SUPLEMENTY | C159: =$C$2 -> FDK Rentier FIZ
B160: zakończone | C160: Suplement nr 10
C162: Data | E162: Czynności po stronie urzędu | F162: Czynności po stronie emitenta
E163: (w dniach roboczych)
C164: 2024-03-28 | D164: wniosek
C165: 2024-04-03 | D165: decyzja | E165: 3
C168: Razem | E168: =SUM(E164:E167) -> 3 | F168: =SUM(F164:F167) -> 0
A171: SUPLEMENTY | C171: =$C$2 -> FDK Rentier FIZ
B172: zakończone | C172: Suplement nr 11
C174: Data | E174: Czynności po stronie urzędu | F174: Czynności po stronie emitenta
E175: (w dniach roboczych)
C176: 2024-04-24 | D176: wniosek
C177: 2024-04-25 | D177: decyzja | E177: 1
C180: Razem | E180: =SUM(E176:E179) -> 1 | F180: =SUM(F176:F179) -> 0
A183: SUPLEMENTY | C183: =$C$2 -> FDK Rentier FIZ
B184: zakończone | C184: Suplement nr 12
C186: Data | E186: Czynności po stronie urzędu | F186: Czynności po stronie emitenta
E187: (w dniach roboczych)
C188: 2024-05-07 | D188: wniosek
C189: 2024-05-09 | D189: decyzja | E189: 2
C192: Razem | E192: =SUM(E188:E191) -> 2 | F192: =SUM(F188:F191) -> 0

Sheet Beta ETF mWIG40TR FIZ (2023)
A1: Spis treści
C2: Beta ETF mWIG40TR FIZ
A3: PROSPEKT | B3: zakończone | C3: Prospekt
A5: 410.12.2023
C6: Data | E6: Czynności po stronie urzędu | F6: Czynności po stronie emitenta
E7: (w dniach roboczych)
C8: 2023-05-08 | D8: wniosek
C9: 2023-05-16 | E9: 6
C10: 2023-06-13 | F10: 19
C11: 2023-06-16 | D11: decyzja | E11: 3
C27: Razem | E27: =SUM(E8:E26) -> 9 | F27: =SUM(F8:F26) -> 19

Sheet Dekpol 2023
A1: Spis treści | G1: Statystyka wewnętrzna - Ten plik nie jest publikowany na stronie www.knf.gov.pl
C2: Dekpol SA
A3: PROSPEKT | B3: zakończone | C3: Prospekt podstawowy
A5: 410.1.2023
C6: Data | E6: Czynności po stronie urzędu | F6: Czynności po stronie emitenta
E7: (w dniach roboczych)
C8: 2023-01-24 | D8: wniosek
C9: 2023-02-06 | E9: 9
C10: 2023-02-20 | F10: 10
C11: 2023-03-03 | E11: 9
C12: 2023-03-14 | F12: 7
C13: 2023-03-27 | E13: 9
C14: 2023-03-31 | F14: 4
C15: 2023-04-12 | E15: 7
C16: 2023-04-18 | F16: 4
C17: 2023-04-20 | E17: 2
C18: 2023-04-21 | F18: 1
C19: 2023-04-24 | D19: decyzja | E19: 1
C22: Razem | E22: =SUM(E8:E21) -> 37 | F22: =SUM(F8:F21) -> 26
C25: =$C$2 -> Dekpol SA
B26: zakończone | C26: Suplement nr 1
C28: Data | E28: Czynności po stronie urzędu | F28: Czynności po stronie emitenta
E29: (w dniach roboczych)
C30: 2023-05-11 | D30: wniosek
C31: 2023-05-17 | D31: decyzja | E31: 4
C33: Razem | E33: =SUM(E30:E32) -> 4 | F33: =SUM(F30:F32) -> 0
C35: =$C$2 -> Dekpol SA
B36: zakończone | C36: Suplement nr 2
C38: Data | E38: Czynności po stronie urzędu | F38: Czynności po stronie emitenta
E39: (w dniach roboczych)
C40: 2023-05-29 | D40: wniosek
C41: 2023-06-05 | D41: decyzja | E41: 5
C43: Razem | E43: =SUM(E40:E42) -> 5 | F43: =SUM(F40:F42) -> 0
C46: =$C$2 -> Dekpol SA
B47: zakończone | C47: Suplement nr 3
C49: Data | E49: Czynności po stronie urzędu | F49: Czynności po stronie emitenta
E50: (w dniach roboczych)
C51: 2023-09-25 | D51: wniosek
C52: 2023-09-29 | D52: decyzja | E52: 4
C54: Razem | E54: =SUM(E51:E53) -> 4 | F54: =SUM(F51:F53) -> 0
C57: =$C$2 -> Dekpol SA
B58: zakończone | C58: Suplement nr 4
C60: Data | E60: Czynności po stronie urzędu | F60: Czynności po stronie emitenta
E61: (w dniach roboczych)
C62: 2023-11-27 | D62: wniosek
C63: 2023-11-29 | D63: decyzja | E63: 2
C65: Razem | E65: =SUM(E62:E64) -> 2 | F65: =SUM(F62:F64) -> 0
C67: =$C$2 -> Dekpol SA
B68: zakończone | C68: Suplement nr 5
C70: Data | E70: Czynności po stronie urzędu | F70: Czynności po stronie emitenta
E71: (w dniach roboczych)
C72: 2024-01-31 | D72: wniosek
C73: 2024-02-02 | E73: 2
C74: 2024-02-05 | F74: 1
C75: 2024-02-06 | F75: 1
C76: 2024-02-09 | D76: decyzja | E76: 3
C78: Razem | E78: =SUM(E72:E77) -> 5 | F78: =SUM(F72:F77) -> 2

Sheet Drago Entertainment(2023)
A1: Spis treści
C2: Drago Entertainment
A3: PROSPEKT | B3: zakończone | C3: Prospekt
A5: 410.3.2023
C6: Data | E6: Czynności po stronie urzędu | F6: Czynności po stronie emitenta
E7: (w dniach roboczych)
C8: 2023-01-19 | D8: wniosek
C9: 2023-02-28 | E9: 19
C10: 2023-03-14 | F10: 10
C11: 2023-03-28 | E11: 10
C12: 2023-04-11 | F12: 9
C13: 2023-04-21 | E13: 8
C14: 2023-05-19 | F14: 18
C15: 2023-05-29 | E15: 6
C16: 2023-06-12 | F16: 9
C17: 2023-06-21 | D17: decyzja | E17: 7
C21: Razem | E21: =SUM(E8:E20) -> 50 | F21: =SUM(F8:F20) -> 46
A25: SUPLEMENTY | C25: =$C$2 -> Drago Entertainment
B26: zakończone | C26: Suplement nr 1
A27: 411.66.2023
C28: Data | E28: Czynności po stronie urzędu | F28: Czynności po stronie emitenta
E29: (w dniach roboczych)
C30: 2023-08-14 | D30: wniosek
C31: 2023-08-21 | E31: 4
C32: 2023-08-22 | F32: 1
C33: 2023-08-28 | D33: decyzja | E33: 4
C36: Razem | E36: =SUM(E30:E35) -> 8 | F36: =SUM(F30:F35) -> 1
C38: =$C$2 -> Drago Entertainment
B39: zakończone | C39: Suplement nr 2
A40: 411.76.2023
C41: Data | E41: Czynności po stronie urzędu | F41: Czynności po stronie emitenta
E42: (w dniach roboczych)
C43: 2023-09-14 | D43: wniosek
C44: 2023-09-19 | D44: decyzja | E44: 3
C47: Razem | E47: =SUM(E43:E46) -> 3 | F47: =SUM(F43:F46) -> 0

Sheet Cavatina Holding (2023-2)
A1: Spis treści | G1: Statystyka wewnętrzna - Ten plik nie jest publikowany na stronie www.knf.gov.pl
C2: Cavatina Holding SA
A3: PROSPEKT | B3: zakończone | C3: Prospekt
A5: 410.5.2023
C6: Data | E6: Czynności po stronie urzędu | F6: Czynności po stronie emitenta
E7: (w dniach roboczych)
C8: 2023-02-02 | D8: wniosek
C9: 2023-02-15 | E9: 9
C10: 2023-02-23 | F10: 6
C11: 2023-03-06 | E11: 7
C12: 2023-03-14 | F12: 6
C13: 2023-03-21 | E13: 5
C14: 2023-03-22 | F14: 1
C15: 2023-03-29 | D15: decyzja | E15: 5
C27: Razem | E27: =SUM(E8:E26) -> 26 | F27: =SUM(F8:F26) -> 13
A32: SUPLEMENTY | C32: =$C$2 -> Cavatina Holding SA
B33: zakończone | C33: Suplement nr 1
C35: Data | E35: Czynności po stronie urzędu | F35: Czynności po stronie emitenta
E36: (w dniach roboczych)
C37: 2023-04-28 | D37: wniosek
C38: 2023-05-09 | D38: decyzja | E38: 5
C41: Razem | E41: =SUM(E37:E40) -> 5 | F41: =SUM(F37:F40) -> 0
A46: SUPLEMENTY | C46: =$C$2 -> Cavatina Holding SA
B47: zakończone | C47: Suplement nr 2
C49: Data | E49: Czynności po stronie urzędu | F49: Czynności po stronie emitenta
E50: (w dniach roboczych)
C51: 2023-05-18 | D51: wniosek
C52: 2023-05-19 | D52: decyzja | E52: 1
C55: Razem | E55: =SUM(E51:E54) -> 1 | F55: =SUM(F51:F54) -> 0
A60: SUPLEMENTY | C60: =$C$2 -> Cavatina Holding SA
B61: zakończone | C61: Suplement nr 3
C63: Data | E63: Czynności po stronie urzędu | F63: Czynności po stronie emitenta
E64: (w dniach roboczych)
C65: 2023-05-31 | D65: wniosek
C66: 2023-06-05 | D66: decyzja | E66: 3
C69: Razem | E69: =SUM(E65:E68) -> 3 | F69: =SUM(F65:F68) -> 0

Sheet Urteste S.A.
A1: Spis treści
C2: Urteste S.A.
A3: PROSPEKT | B3: zakończone | C3: Prospekt
A5: 410.36.2022
C6: Data | E6: Czynności po stronie urzędu | F6: Czynności po stronie emitenta
E7: (w dniach roboczych)
C8: 2022-08-03 | D8: wniosek
C9: 2022-09-01 | E9: 20
C10: 2022-09-15 | F10: 11 | I10: 0
C11: 2022-09-29 | E11: 10 | H11: 6
C12: 2022-10-17 | F12: 12
C13: 2022-10-28 | E13: 9
C14: 2022-11-09 | F14: 7
C15: 2022-11-17 | E15: 5
C16: 2022-12-06 | F16: 13
C17: 2022-12-19 | E17: 9
C18: 2023-02-07 | F18: 34
C19: 2023-02-21 | E19: 10
C20: 2023-02-28 | F20: 5
C21: 2023-03-10 | E21: 8
C22: 2023-03-13 | F22: 1
C23: 2023-03-16 | D23: decyzja | E23: 3
C27: Razem | E27: =SUM(E8:E26) -> 74 | F27: =SUM(F8:F26) -> 83
C31: =$C$2 -> Urteste S.A.
B32: zakończone | C32: Suplement nr 1
C34: Data | E34: Czynności po stronie urzędu | F34: Czynności po stronie emitenta
E35: (w dniach roboczych)
C36: 2023-03-02 | D36: wniosek
C37: 2023-03-03 | D37: decyzja
C39: Razem | E39: =SUM(E36:E38) -> 0 | F39: =SUM(F36:F38) -> 0
C44: =$C$2 -> Urteste S.A.
B45: zakończone | C45: Suplement nr 2
C47: Data | E47: Czynności po stronie urzędu | F47: Czynności po stronie emitenta
E48: (w dniach roboczych)
C49: 2023-04-18 | D49: wniosek
C50: 2023-04-20 | E50: 2
C51: 2023-04-24 | F51: 2
C52: 2023-04-24 | E52: 0
C53: 2023-04-25 | F53: 1
C54: 2023-04-26 | E54: 1
C55: 2023-04-26 | F55: 0
C56: 2023-04-28 | D56: decyzja | E56: 2
C58: Razem | E58: =SUM(E49:E57) -> 5 | F58: =SUM(F49:F57) -> 3

Sheet Columbus Energy SA 2022
A1: Spis treści
C2: Columbus Energy SA
A3: PROSPEKT | B3: zakończone | C3: Prospekt
A5: 410.39.2022
C6: Data | E6: Czynności po stronie urzędu | F6: Czynności po stronie emitenta
E7: (w dniach roboczych)
C8: 2022-08-23 | D8: wniosek
C9: 2022-09-20 | E9: 20
C10: 2022-10-11 | F10: 15
C11: 2022-10-25 | E11: 10
C12: 2022-11-16 | F12: 14
C13: 2022-11-30 | E13: 10
C14: 2022-12-14 | F14: 10
C15: 2022-12-29 | E15: 10
C16: 2023-01-26 | F16: 19
C17: 2023-02-09 | E17: 10
C18: 2023-02-16 | F18: 5
C19: 2023-02-28 | E19: 8
C20: 2023-03-02 | F20: 2
C21: 2023-03-07 | E21: 3
C22: 2023-03-08 | F22: 1
C23: 2023-03-10 | E23: 2
C24: 2023-03-13 | F24: 1
C25: 2023-03-14 | D25: decyzja | E25: 1
C26: Razem | E26: =SUM(E8:E22) -> 71 | F26: =SUM(F8:F22) -> 66
E29: =E26/(E26+F26) -> 0.5182481752 | F29: =F26/(E26+F26) -> 0.4817518248
C30: =$C$2 -> Columbus Energy SA
B31: zakończone | C31: Suplement nr 1
C33: Data | E33: Czynności po stronie urzędu | F33: Czynności po stronie emitenta
E34: (w dniach roboczych)
C35: 2023-03-28 | D35: wniosek
C36: 2023-03-31 | E36: 3
C37: 2023-04-03 | F37: 1
C38: 2023-04-05 | D38: decyzja | E38: 2

Sheet Beta ETF WIGtech (2023)
A1: Spis treści
C2: Beta ETF WIGtech FIZ
A3: PROSPEKT | B3: zakończone | C3: Prospekt
A5: 410.4.2023
C6: Data | E6: Czynności po stronie urzędu | F6: Czynności po stronie emitenta
E7: (w dniach roboczych)
C8: 2023-02-10 | D8: wniosek
C9: 2023-02-15 | E9: 3
C10: 2023-02-23 | F10: 6
C11: 2023-02-28 | E11: 3
C12: 2023-03-03 | F12: 3
C13: 2023-03-08 | E13: 3
C21: Razem | E21: =SUM(E8:E20) -> 9 | F21: =SUM(F8:F20) -> 9
A25: SUPLEMENTY | C25: =$C$2 -> Beta ETF WIGtech FIZ
C26: Suplement nr 1
C28: Data | E28: Czynności po stronie urzędu | F28: Czynności po stronie emitenta
E29: (w dniach roboczych)
D30: wniosek
C34: Razem | E34: =SUM(E30:E33) -> 0 | F34: =SUM(F30:F33) -> 0

Sheet Kredyt Inkaso SA 2022
A1: Spis treści | G1: Statystyka wewnętrzna - Ten plik nie jest publikowany na stronie www.knf.gov.pl
C2: Kredyt Inkaso SA
A3: PROSPEKT | B3: zakończone | C3: Prospekt
A5: 410.47.2022
C6: Data | E6: Czynności po stronie urzędu | F6: Czynności po stronie emitenta
E7: (w dniach roboczych)
C8: 2022-09-23 | D8: wniosek
C9: 2022-10-06 | E9: 9
C10: 2022-10-19 | F10: 9
C11: 2022-11-03 | E11: 10
C12: 2022-11-15 | F12: 7
C13: 2022-11-28 | E13: 9
C14: 2022-12-05 | F14: 5
C15: 2022-12-19 | E15: 10
C16: 2023-01-12 | F16: 16
C17: 2023-01-26 | E17: 10
C18: 2023-01-31 | F18: 3
C19: 2023-02-10 | E19: 8
C20: 2023-02-13 | F20: 1
C21: 2023-02-15 | E21: 2
C22: 2023-02-15 | F22: 0
C23: 2023-02-16 | D23: decyzja | E23: 1
C27: Razem | E27: =SUM(E8:E26) -> 59 | F27: =SUM(F8:F26) -> 41
C31: =$C$2 -> Kredyt Inkaso SA
B32: zakończone | C32: Suplement nr 1
C34: Data | E34: Czynności po stronie urzędu | F34: Czynności po stronie emitenta
E35: (w dniach roboczych)
C36: 2023-03-03 | D36: wniosek
C37: 2023-03-08 | E37: 3
C38: 2023-03-09 | F38: 1
C39: 2023-03-15 | D39: decyzja | E39: 4
C43: Razem | E43: =SUM(E36:E42) -> 7 | F43: =SUM(F36:F42) -> 1
C46: =$C$2 -> Kredyt Inkaso SA
B47: zakończone | C47: Suplement nr 2
C49: Data | E49: Czynności po stronie urzędu | F49: Czynności po stronie emitenta
E50: (w dniach roboczych)
C51: 2023-07-19 | D51: wniosek
C52: 2023-07-21 | E52: 2
C53: 2023-07-24 | F53: 1
C54: 2023-07-26 | D54: decyzja | E54: 2
C58: Razem | E58: =SUM(E51:E57) -> 4 | F58: =SUM(F51:F57) -> 1
C60: =$C$2 -> Kredyt Inkaso SA
B61: zakończone | C61: Suplement nr 3
C63: Data | E63: Czynności po stronie urzędu | F63: Czynności po stronie emitenta
E64: (w dniach roboczych)
C65: 2023-08-31 | D65: wniosek
C66: 2023-09-05 | D66: decyzja | E66: 3
C72: Razem | E72: =SUM(E65:E71) -> 3 | F72: =SUM(F65:F71) -> 0
C75: =$C$2 -> Kredyt Inkaso SA
B76: zakończone | C76: Suplement nr 4
C78: Data | E78: Czynności po stronie urzędu | F78: Czynności po stronie emitenta
E79: (w dniach roboczych)
C80: 2023-12-22 | D80: wniosek
C81: 2023-12-28 | E81: 2
C82: 2023-12-28 | F82: 0
C83: 2023-12-29 | E83: 1
C84: 2024-01-03 | F84: 2
C85: 2024-01-04 | D85: decyzja | E85: 1
C87: Razem | E87: =SUM(E80:E86) -> 4 | F87: =SUM(F80:F86) -> 2

Sheet LESS S.A.
A1: Spis treści
C2: LESS S.A.
A3: PROSPEKT | B3: zakończone | C3: Prospekt
A5: 410.44.2022
C6: Data | E6: Czynności po stronie urzędu | F6: Czynności po stronie emitenta
E7: (w dniach roboczych)
C8: 2022-09-13 | D8: wniosek
C9: 2022-09-27 | E9: 10
C10: 2022-10-11 | F10: 10
C11: 2022-10-25 | E11: 10
C12: 2022-11-16 | F12: 14
C13: 2022-11-30 | E13: 10
C14: 2022-12-09 | F14: 7
C15: 2022-12-21 | E15: 8
C16: 2022-12-28 | F16: 4
C17: 2023-01-11 | E17: 9
C18: 2023-01-13 | F18: 2
C19: 2023-01-18 | E19: 3
C20: 2023-01-19 | F20: 1
C21: 2023-01-25 | E21: 4
C23: Razem | E23: =SUM(E8:E22) -> 54 | F23: =SUM(F8:F22) -> 38
A27: SUPLEMENTY | C27: =$C$2 -> LESS S.A.
B28: zakończone | C28: Suplement nr 1
C30: Data | E30: Czynności po stronie urzędu | F30: Czynności po stronie emitenta
E31: (w dniach roboczych)
C32: 2023-04-21 | D32: wniosek
C33: 2023-04-26 | E33: 3
C34: 2023-04-27 | F34: 1
C35: 2023-05-05 | D35: decyzja | E35: 4
C37: Razem | E37: =SUM(E32:E36) -> 7 | F37: =SUM(F32:F36) -> 1
C39: =$C$2 -> LESS S.A.
B40: zakończone | C40: Suplement nr 2
C42: Data | E42: Czynności po stronie urzędu | F42: Czynności po stronie emitenta
E43: (w dniach roboczych)
C44: 2023-05-04 | D44: wniosek
C45: 2023-05-11 | E45: 5
C46: 2023-05-11 | F46: 0
C47: 2023-05-16 | D47: decyzja | E47: 2
C49: Razem | E49: =SUM(E44:E48) -> 7 | F49: =SUM(F44:F48) -> 0
C51: =$C$2 -> LESS S.A.
B52: zakończone | C52: Suplement nr 3
C54: Data | E54: Czynności po stronie urzędu | F54: Czynności po stronie emitenta
E55: (w dniach roboczych)
C56: 2023-05-30 | D56: wniosek
C57: 2023-06-05 | D57: decyzja | E57: 4
C59: Razem | E59: =SUM(E56:E58) -> 4 | F59: =SUM(F56:F58) -> 0

Sheet PASSUS
A1: Spis treści
C2: PASSUS SA
A3: PROSPEKT | B3: zakończone | C3: Prospekt
A5: 410.29.2022
C6: Data | E6: Czynności po stronie urzędu | F6: Czynności po stronie emitenta
E7: (w dniach roboczych)
C8: 2022-06-28 | D8: wniosek
C9: 2022-07-25 | E9: 19
C10: 2022-10-10 | F10: 54
C11: 2022-10-24 | E11: 10
C12: 2022-11-04 | F12: 8
C13: 2022-11-18 | E13: 9
C14: 2022-11-29 | F14: 7
C15: 2022-12-09 | E15: 8
C16: 2022-12-16 | F16: 5
C17: 2022-12-16 | E17: 0
C18: 2022-12-19 | F18: 1
C19: 2022-12-20 | D19: aktualizacja | F19: 1
C20: 2022-12-22 | D20: aktualizacja | F20: 2
C21: 2022-12-23 | D21: decyzja | E21: 1
C24: Razem | E24: =SUM(E8:E23) -> 47 | F24: =SUM(F8:F23) -> 78

Sheet Ryvu Therapeutics
A1: Spis treści | G1: Statystyka wewnętrzna - Ten plik nie jest publikowany na stronie www.knf.gov.pl
C2: Ryvu Therapeutics
A3: PROSPEKT | B3: zakończone | C3: Prospekt
A5: 410.49.2022
C6: Data | E6: Czynności po stronie urzędu | F6: Czynności po stronie emitenta
E7: (w dniach roboczych)
C8: 2022-10-11 | D8: wniosek
C9: 2022-10-20 | E9: 7
C10: 2022-11-01 | F10: 7
C11: 2022-11-10 | E11: 7
C12: 2022-11-18 | F12: 5
C13: 2022-11-28 | E13: 6
C14: 2022-11-30 | F14: 2
C15: 2022-12-02 | E15: 2
C16: 2022-12-05 | F16: 1
C17: 2022-12-06 | F17: 1
C18: 2022-12-07
C22: Razem | E22: =SUM(E8:E21) -> 22 | F22: =SUM(F8:F21) -> 16

Sheet EQUES Akumulacji Majątku FIZ
A1: Spis treści | G1: Statystyka wewnętrzna - Ten plik nie jest publikowany na stronie www.knf.gov.pl
C2: EQUES Akumulacji Majątku FIZ
A3: PROSPEKT | B3: zakończone | C3: Prospekt
A5: 410.45.2022
C6: Data | E6: Czynności po stronie urzędu | F6: Czynności po stronie emitenta
E7: (w dniach roboczych)
C8: 2022-09-15 | D8: wniosek
C9: 2022-09-29 | E9: 10
C10: 2022-10-13 | F10: 10
C11: 2022-10-26 | E11: 9
C12: 2022-10-27 | F12: 1
C13: 2022-11-08 | E13: 7
C14: 2022-11-17 | F14: 6
C15: 2022-11-28 | D15: aktualizacja | F15: 7
C16: 2022-12-01 | E16: 3
C17: 2022-12-02 | F17: 1
C18: 2022-12-06 | D18: decyzja | E18: 2
C23: Razem | E23: =SUM(E8:E22) -> 31 | F23: =SUM(F8:F22) -> 25
A27: SUPLEMENTY | C27: =$C$2 -> EQUES Akumulacji Majątku FIZ
B28: zakończone | C28: Suplement nr 1
C30: Data | E30: Czynności po stronie urzędu | F30: Czynności po stronie emitenta
E31: (w dniach roboczych)
C32: 2023-04-18 | D32: wniosek
C33: 2023-04-25 | E33: 5
C34: 2023-04-28 | F34: 3
C35: 2023-05-08 | E35: 4
C36: 2023-05-12 | F36: 4
C37: 2023-05-16
C38: 2023-05-17 | F38: 1
C39: 2023-05-19 | E39: 2
C41: Razem | E41: =SUM(E32:E40) -> 11 | F41: =SUM(F32:F40) -> 8
C44: =$C$2 -> EQUES Akumulacji Majątku FIZ
B45: zakończone | C45: Suplement nr 2
C47: Data | E47: Czynności po stronie urzędu | F47: Czynności po stronie emitenta
E48: (w dniach roboczych)
C49: 2023-06-29 | D49: wniosek
C50: 2023-07-05 | E50: 4
C52: Razem | E52: =SUM(E49:E51) -> 4 | F52: =SUM(F49:F51) -> 0

Sheet Cloud Technologies SA
A1: Spis treści | G1: Statystyka wewnętrzna - Ten plik nie jest publikowany na stronie www.knf.gov.pl
C2: Cloud Technologies SA
A3: PROSPEKT | B3: zakończone | C3: Prospekt
A5: 410.37.2022
C6: Data | E6: Czynności po stronie urzędu | F6: Czynności po stronie emitenta
E7: (w dniach roboczych)
C8: 2022-08-05 | D8: wniosek
C9: 2022-09-02 | E9: 19
C10: 2022-09-16 | F10: 10
C11: 2022-09-29 | E11: 9
C12: 2022-10-10 | F12: 7
C13: 2022-10-20 | E13: 8
C14: 2022-10-27 | F14: 5
C15: 2022-11-07 | E15: 6
C16: 2022-11-08 | F16: 1
C17: 2022-11-09 | F17: 1
C18: 2022-11-09 | F18: 0
C19: 2022-11-10 | D19: decyzja | E19: 1
C21: Razem | E21: =SUM(E8:E20) -> 43 | F21: =SUM(F8:F20) -> 24
C24: =$C$2 -> Cloud Technologies SA
B25: zakończone | C25: Suplement nr 1
C27: Data | E27: Czynności po stronie urzędu | F27: Czynności po stronie emitenta
E28: (w dniach roboczych)
C29: 2022-11-21 | D29: wniosek
C30: 2022-11-23 | E30: 2
C31: 2022-11-25 | F31: 2
C32: 2022-11-30 | D32: decyzja | E32: 3
C34: Razem | E34: =SUM(E29:E33) -> 5 | F34: =SUM(F29:F33) -> 2

Sheet Beta ETF S&P 500 PLN-Hedg (2)
A1: Spis treści
C2: Beta ETF S&P 500 PLN-Hedged PFIZ
A3: PROSPEKT | B3: zakończone | C3: Prospekt
A5: 410.51.2022
C6: Data | E6: Czynności po stronie urzędu | F6: Czynności po stronie emitenta
E7: (w dniach roboczych)
C8: 2022-10-12 | D8: wniosek
C9: 2022-10-26 | E9: 10
C10: 2022-11-03 | F10: 5
C11: 2022-11-07 | E11: 2
C12: 2022-11-08 | F12: 1
C13: 2022-11-10 | D13: decyzja | E13: 2
C27: Razem | E27: =SUM(E8:E26) -> 14 | F27: =SUM(F8:F26) -> 6

Sheet Beta ETF Nasdaq-100 PLN-H (2)
A1: Spis treści
C2: Beta ETF Nasdaq-100 PLN-Hedged Portfelowy FIZ
A3: PROSPEKT | B3: zakończone | C3: Prospekt
A5: 410.50.2022
C6: Data | E6: Czynności po stronie urzędu | F6: Czynności po stronie emitenta
E7: (w dniach roboczych)
C8: 2022-10-12 | D8: wniosek
C9: 2022-10-26 | E9: 10
C10: 2022-11-03 | F10: 5
C11: 2022-11-07 | E11: 2
C12: 2022-11-08 | F12: 1
C13: 2022-11-10 | D13: decyzja | E13: 2
C27: Razem | E27: =SUM(E8:E26) -> 14 | F27: =SUM(F8:F26) -> 6

Sheet BEST SA (2)
A1: Spis treści
C2: BEST SA
A3: PROSPEKT | B3: zakończone | C3: Prospekt
A5: 410.28.2022
C6: Data | E6: Czynności po stronie urzędu | F6: Czynności po stronie emitenta
E7: (w dniach roboczych)
C8: 2022-06-14 | D8: wniosek
C9: 2022-06-29 | E9: 10
C10: 2022-07-07 | F10: 6
C11: 2022-07-20 | E11: 9
C12: 2022-08-04 | F12: 11
C13: 2022-08-18 | E13: 9
C14: 2022-08-26 | F14: 6
C15: 2022-09-05 | E15: 6
C16: 2022-09-19 | F16: 10
C17: 2022-10-03 | E17: 10
C18: 2022-10-10 | F18: 5
C19: 2022-10-18 | E19: 6
C20: 2022-10-19 | F20: 1
C21: 2022-10-24 | E21: 3
C22: 2022-10-26 | F22: 2
C23: 2022-11-04 | D23: decyzja | E23: 6
C24: Razem | E24: =SUM(E8:E23) -> 59 | F24: =SUM(F8:F23) -> 41
A29: SUPLEMENTY | C29: =$C$2 -> BEST SA
B30: zakończone | C30: Suplement nr 1
C32: Data | E32: Czynności po stronie urzędu | F32: Czynności po stronie emitenta
E33: (w dniach roboczych)
C34: 2023-04-14 | D34: wniosek
C35: 2023-04-20 | E35: 4
C38: Razem | E38: =SUM(E34:E37) -> 4 | F38: =SUM(F34:F37) -> 0
A43: SUPLEMENTY | C43: =$C$2 -> BEST SA
B44: zakończone | C44: Suplement nr 2
C46: Data | E46: Czynności po stronie urzędu | F46: Czynności po stronie emitenta
E47: (w dniach roboczych)
C48: 2023-09-14 | D48: wniosek
C49: 2023-09-19 | E49: 3
C52: Razem | E52: =SUM(E48:E51) -> 3 | F52: =SUM(F48:F51) -> 0

Sheet DEVELIA SA
A1: Spis treści | G1: Statystyka wewnętrzna - Ten plik nie jest publikowany na stronie www.knf.gov.pl
C2: DEVELIA SA
A3: PROSPEKT | B3: zakończone | C3: Prospekt podstawowy obligacji
A5: 410.34.2022
C6: Data | E6: Czynności po stronie urzędu | F6: Czynności po stronie emitenta
E7: (w dniach roboczych)
C8: 2022-07-15 | D8: wniosek
C9: 2022-07-28 | E9: 9
C10: 2022-08-10 | F10: 9
C11: 2022-08-24 | E11: 9
C12: 2022-09-07 | F12: 10
C13: 2022-09-21 | E13: 10
C14: 2022-09-23 | F14: 2
C15: 2022-10-05 | E15: 8
C16: 2022-10-10 | F16: 3
C17: 2022-10-18 | E17: 6
C18: 2022-10-19 | F18: 1
C19: 2022-10-21 | E19: 2
C20: 2022-10-24 | F20: 1
C21: 2022-10-26 | D21: decyzja | E21: 2
C23: Razem | E23: =SUM(E8:E22) -> 46 | F23: =SUM(F8:F22) -> 26
C26: =$C$2 -> DEVELIA SA
B27: zakończone | C27: Suplement nr 1
C29: Data | E29: Czynności po stronie urzędu | F29: Czynności po stronie emitenta
E30: (w dniach roboczych)
C31: 2022-11-15 | D31: wniosek
C32: 2022-11-17 | D32: decyzja | E32: 2
C34: Razem | E34: =SUM(E31:E33) -> 2 | F34: =SUM(F31:F33) -> 0
C40: =$C$2 -> DEVELIA SA
B41: zakończone | C41: Suplement nr 2
C43: Data | E43: Czynności po stronie urzędu | F43: Czynności po stronie emitenta
E44: (w dniach roboczych)
C45: 2023-01-27 | D45: wniosek
C46: 2023-02-01 | D46: decyzja | E46: 4
C48: Razem | E48: =SUM(E45:E47) -> 4 | F48: =SUM(F45:F47) -> 0
C52: =$C$2 -> DEVELIA SA
B53: zakończone | C53: Suplement nr 3
C55: Data | E55: Czynności po stronie urzędu | F55: Czynności po stronie emitenta
E56: (w dniach roboczych)
C57: 2023-03-31 | D57: wniosek
C58: 2023-04-04 | E58: 2
C59: 2023-04-07 | F59: 3
C60: 2023-04-12 | D60: decyzja | E60: 2
C62: Razem | E62: =SUM(E57:E61) -> 4 | F62: =SUM(F57:F61) -> 3
C68: =$C$2 -> DEVELIA SA
B69: zakończone | C69: Suplement nr 4
C71: Data | E71: Czynności po stronie urzędu | F71: Czynności po stronie emitenta
E72: (w dniach roboczych)
C73: 2023-05-18 | D73: wniosek
C74: 2023-05-23 | E74: 3
C75: 2023-05-31 | F75: 6
C76: 2023-06-05 | D76: decyzja | E76: 3
C78: Razem | E78: =SUM(E73:E77) -> 6 | F78: =SUM(F73:F77) -> 6
C83: =$C$2 -> DEVELIA SA
B84: zakończone | C84: Suplement nr 5
C86: Data | E86: Czynności po stronie urzędu | F86: Czynności po stronie emitenta
E87: (w dniach roboczych)
C88: 2023-06-02 | D88: wniosek
C89: 2023-06-06 | E89: 2
C90: 2023-06-14 | F90: 6
C91: 2023-06-21 | D91: decyzja | E91: 5
C93: Razem | E93: =SUM(E88:E92) -> 7 | F93: =SUM(F88:F92) -> 6

Sheet Rafako SA
A1: Spis treści
C2: Rafako SA
A3: PROSPEKT | B3: zakończone | C3: Prospekt
A5: 410.32.2022
C6: Data | E6: Czynności po stronie urzędu | F6: Czynności po stronie emitenta
E7: (w dniach roboczych)
C8: 2022-07-01 | D8: wniosek
C9: 2022-07-11 | E9: 6
C10: 2022-07-25 | F10: 10
C11: 2022-08-03 | E11: 7
C12: 2022-08-16 | F12: 8
C13: 2022-08-25 | E13: 7
C14: 2022-09-08 | F14: 10
C15: 2022-09-19 | E15: 7
C16: 2022-10-11 | F16: 16
C17: 2022-10-14 | E17: 3
C18: 2022-10-18 | F18: 2
C19: 2022-10-26 | D19: decyzja | E19: 6
C21: Razem | E21: =SUM(E8:E20) -> 36 | F21: =SUM(F8:F20) -> 46
A26: SUPLEMENTY | C26: =$C$2 -> Rafako SA
B27: zakończone | C27: Suplement nr 1
C29: Data | E29: Czynności po stronie urzędu | F29: Czynności po stronie emitenta
E30: (w dniach roboczych)
C31: 2022-11-03 | D31: wniosek
C32: 2022-11-04 | E32: 1
C33: 2022-11-08 | F33: 2
C34: 2022-11-09 | D34: decyzja | E34: 1
C36: Razem | E36: =SUM(E31:E35) -> 2 | F36: =SUM(F31:F35) -> 2

Sheet Tenderhut S.A.
A1: Spis treści
C2: Tenderhut S.A.
A3: PROSPEKT | B3: zakończone | C3: Prospekt
A5: 410.17.2022
C6: Data | E6: Czynności po stronie urzędu | F6: Czynności po stronie emitenta
E7: (w dniach roboczych)
D8: wniosek
C9: 2022-04-29
C10: 2022-05-30 | E10: 20
C11: 2022-06-24 | F11: 18
C12: 2022-07-06 | E12: 8
C13: 2022-07-20 | F13: 11
C14: 2022-08-01 | E14: 8
C15: 2022-08-11 | F15: 8
C16: 2022-08-24 | E16: 8
C17: 2022-09-07 | F17: 10
C18: 2022-09-15 | E18: 6
C19: 2022-09-26 | F19: 7 | I19: 0
C20: 2022-10-07 | E20: 9
C21: 2022-10-12 | F21: 3
C22: 2022-10-21 | D22: decyzja | E22: 7
C23: Razem | E23: =SUM(E8:E22) -> 66 | F23: =SUM(F8:F22) -> 57

Sheet Beta ETF WIG20TR
A1: Spis treści
C2: Beta ETF WIG20TR
A3: PROSPEKT | B3: zakończone | C3: Prospekt
A5: 410.40.2022
C6: Data | E6: Czynności po stronie urzędu | F6: Czynności po stronie emitenta
E7: (w dniach roboczych)
C8: 2022-08-23 | D8: wniosek
C9: 2022-09-02 | E9: 8
C10: 2022-09-15 | F10: 9
C11: 2022-09-28 | E11: 9
C12: 2022-10-02 | F12: 2
C13: 2022-10-07 | E13: 5
C14: 2022-10-11 | F14: 3
C15: 2022-10-12 | D15: decyzja | E15: 1
C21: Razem | E21: =SUM(E8:E20) -> 23 | F21: =SUM(F8:F20) -> 14

Sheet Beta ETF TBSP PFIZ
A1: Spis treści
C2: Beta ETF TBSP PFIZ
A3: PROSPEKT | B3: zakończone | C3: Prospekt
A5: 410.42.2022
C6: Data | E6: Czynności po stronie urzędu | F6: Czynności po stronie emitenta
E7: (w dniach roboczych)
C8: 2022-08-17 | D8: wniosek
C9: 2022-08-31 | E9: 10
C10: 2022-09-15 | F10: 11
C11: 2022-09-29 | E11: 10
C12: 2022-10-02 | F12: 1
C13: 2022-10-07 | E13: 5
C14: 2022-10-07 | F14: 0
C15: 10.10.202 | D15: decyzja | E15: 1
C18: Razem | E18: =SUM(E8:E17) -> 26 | F18: =SUM(F8:F17) -> 12

Sheet Beta ETF uWIG80TR
A1: Spis treści
C2: Beta ETF uWIG80TR
A3: PROSPEKT | B3: zakończone | C3: Prospekt
A5: 410.41.2022
C6: Data | E6: Czynności po stronie urzędu | F6: Czynności po stronie emitenta
E7: (w dniach roboczych)
C8: 2022-08-17 | D8: wniosek
C9: 2022-08-31 | E9: 10
C10: 2022-09-15 | F10: 11
C11: 2022-09-29 | E11: 10
C12: 2022-10-02 | F12: 1
C13: 2022-10-06 | E13: 4
C14: 2022-10-07 | F14: 1
C15: 2022-10-10 | D15: decyzja | E15: 1
C21: Razem | E21: =SUM(E8:E20) -> 25 | F21: =SUM(F8:F20) -> 13

Sheet GI Group Poland S.A.
A1: Spis treści
C2: GI GROUP POLAND S.A.
A3: PROSPEKT | B3: zakończone | C3: Prospekt
A5: 410.35.2022
C6: Data | E6: Czynności po stronie urzędu | F6: Czynności po stronie emitenta
E7: (w dniach roboczych)
C8: 2022-07-25 | D8: wniosek
C9: 2022-08-08 | E9: 10
C10: 2022-08-22 | F10: 10
C11: 2022-09-05 | E11: 10
C12: 2022-09-19 | F12: 10
C13: 2022-10-03 | E13: 10
C14: 2022-10-17 | F14: 10
C15: 2022-10-31 | E15: 10
C16: 2022-11-14 | F16: 8
C17: 2022-11-28 | E17: 10
C18: 2022-12-09 | F18: 9
C19: 2022-12-23 | E19: 10
C20: 2023-01-20 | F20: 18
C21: 2023-02-01 | E21: 8
C22: 2023-02-10 | F22: 7
C23: 2023-02-23 | E23: 9
C24: 2023-03-09 | F24: 10
C25: 2023-03-17 | E25: 6
C26: 2023-03-24 | F26: 5
C27: 2023-03-31 | E27: 5
C28: 2023-04-07 | F28: 5
C29: 2023-04-17 | D29: decyzja | E29: 5
C32: Razem | E32: =SUM(E8:E31) -> 93 | F32: =SUM(F8:F31) -> 92
C36: GI GROUP POLAND S.A.
A37: Suplement nr 1 | B37: zakończone | C37: Suplement nr 1
C40: Data | E40: Czynności po stronie urzędu | F40: Czynności po stronie emitenta
E41: (w dniach roboczych)
C42: 2023-05-12 | D42: wniosek
C43: 2023-05-17 | E43: 3
C44: 2023-05-24 | F44: 5
C45: 2023-05-26 | E45: 2
C46: 2023-05-29 | F46: 1
C47: 2023-05-30 | D47: decyzja | E47: 1
C50: Razem | E50: =SUM(E42:E49) -> 6 | F50: =SUM(F42:F49) -> 6
C54: GI GROUP POLAND S.A.
A55: Suplement nr 2 | B55: zakończone | C55: Suplement nr 2
C58: Data | E58: Czynności po stronie urzędu | F58: Czynności po stronie emitenta
E59: (w dniach roboczych)
C60: 2023-06-01 | D60: wniosek
C61: 2023-06-05 | D61: decyzja | E61: 2
C64: Razem | E64: =SUM(E60:E63) -> 2 | F64: =SUM(F60:F63) -> 0

Sheet Alior Bank S.A. obligacje (2022
A1: Spis treści
C2: Alior Bank S.A.
A3: PROSPEKT | B3: zakończone | C3: Prospekt podstawowy obligacji
A5: 410.33.2022
C6: Data | E6: Czynności po stronie urzędu | F6: Czynności po stronie emitenta
E7: (w dniach roboczych)
C8: 2022-07-04 | D8: wniosek
C9: 2022-07-18 | E9: 10
C10: 2022-07-27 | F10: 7
C11: 2022-08-04 | E11: 6
C12: 2022-08-11 | F12: 6
C13: 2022-08-16 | E13: 2
C14: 2022-08-17 | F14: 1
C15: 2022-08-24 | D15: decyzja | E15: 5
C21: Razem | E21: =SUM(E8:E20) -> 23 | F21: =SUM(F8:F20) -> 14
A24: SUPLEMENTY | C24: =$C$2 -> Alior Bank S.A.
B25: zakończone | C25: Suplement nr 1
C27: Data | E27: Czynności po stronie urzędu | F27: Czynności po stronie emitenta
E28: (w dniach roboczych)
C29: 2023-02-08 | D29: wniosek
C30: 2023-02-14 | D30: decyzja | E30: 3 | G30: 2
C32: Razem | E32: =SUM(E29:E31) -> 3 | F32: =SUM(F29:F31) -> 0
C34: =$C$2 -> Alior Bank S.A.
B35: zakończone | C35: Suplement nr 2
C37: Data | E37: Czynności po stronie urzędu | F37: Czynności po stronie emitenta
E38: (w dniach roboczych)
C39: 2023-03-09 | D39: wniosek
C40: 2023-03-13 | E40: 2
C41: 2023-03-16 | F41: 3
C42: 2023-03-17 | D42: decyzja | E42: 1
C44: Razem | E44: =SUM(E39:E43) -> 3 | F44: =SUM(F39:F43) -> 3
C47: =$C$2 -> Alior Bank S.A.
B48: zakończone | C48: Suplement nr 3
C50: Data | E50: Czynności po stronie urzędu | F50: Czynności po stronie emitenta
E51: (w dniach roboczych)
C52: 2023-06-28 | D52: wniosek
C53: 2023-07-04 | D53: decyzja | E53: 4
C55: Razem | E55: =SUM(E52:E54) -> 4 | F55: =SUM(F52:F54) -> 0

Sheet Marvipol Development
A1: Spis treści
C2: Marvipol Development SA
A3: PROSPEKT | B3: zakończone | C3: Prospekt podstawowy
A5: 410.27.2022
C6: Data | E6: Czynności po stronie urzędu | F6: Czynności po stronie emitenta
E7: (w dniach roboczych)
C8: 2022-06-10 | D8: wniosek
C9: 2022-06-23 | F9: 8
C10: 2022-07-05 | E10: 8
C11: 2022-07-22 | F11: 13
C12: 2022-08-03 | E12: 8
C13: 2022-08-12 | F13: 7
C14: 2022-08-18 | E14: 3
C15: 2022-08-22 | F15: 2
C16: 2022-08-24 | D16: decyzja | E16: 2
C18: Razem | E18: =SUM(E8:E17) -> 21 | F18: =SUM(F8:F17) -> 30
A22: SUPLEMENTY | C22: =$C$2 -> Marvipol Development SA
B23: zakończone | C23: Suplement nr 1
C25: Data | E25: Czynności po stronie urzędu | F25: Czynności po stronie emitenta
E26: (w dniach roboczych)
C27: 2022-08-30 | D27: wniosek
C28: 2022-09-02 | E28: 3
C29: 2022-09-07 | F29: 3
C30: 2022-09-09 | F30: 2
C31: 2022-09-13 | D31: decyzja | E31: 2
C33: Razem | E33: =SUM(E27:E32) -> 5 | F33: =SUM(F27:F32) -> 5
A35: SUPLEMENTY | C35: =$C$2 -> Marvipol Development SA
B36: zakończone | C36: Suplement nr 2
C38: Data | E38: Czynności po stronie urzędu | F38: Czynności po stronie emitenta
E39: (w dniach roboczych)
C40: 2022-11-30 | D40: wniosek
C41: 2022-12-01 | E41: 1
C42: 2022-12-08 | F42: 5
C43: 2022-12-13 | D43: decyzja | E43: 3
C45: Razem | E45: =SUM(E40:E44) -> 4 | F45: =SUM(F40:F44) -> 5
C47: =$C$2 -> Marvipol Development SA
B48: zakończone | C48: Suplement nr 3
C50: Data | E50: Czynności po stronie urzędu | F50: Czynności po stronie emitenta
E51: (w dniach roboczych)
C52: 2023-03-24 | D52: wniosek
C53: 2023-03-29 | F53: 3
C54: 2023-03-31 | D54: decyzja | E54: 2
C56: Razem | E56: =SUM(E52:E55) -> 2 | F56: =SUM(F52:F55) -> 3
C58: =$C$2 -> Marvipol Development SA
B59: zakończone | C59: Suplement nr 4
C61: Data | E61: Czynności po stronie urzędu | F61: Czynności po stronie emitenta
E62: (w dniach roboczych)
C63: 2023-06-01 | D63: wniosek
C64: 2023-06-06 | D64: decyzja | E64: 3
C66: Razem | E66: =SUM(E63:E65) -> 3 | F66: =SUM(F63:F65) -> 0

Sheet Kruk S.A.
A1: Spis treści
C2: Kruk S.A.
A3: PROSPEKT | B3: zakończone | C3: Prospekt podstawowy obligacji
A5: 410.21.2022
C6: Data | E6: Czynności po stronie urzędu | F6: Czynności po stronie emitenta
E7: (w dniach roboczych)
C8: 2022-05-18 | D8: wniosek
C9: 2022-05-31 | E9: 9
C10: 2022-06-15 | F10: 11
C11: 2022-06-30 | E11: 10
C12: 2022-07-13 | F12: 9
C13: 2022-07-22 | E13: 7
C14: 2022-07-27 | F14: 3
C15: 2022-08-02 | E15: 7
C16: 2022-08-10 | F16: 6
C17: 2022-08-11 | E17: 1
C18: 2022-08-17 | F18: 3
C19: 2022-08-23 | E19: 4
C21: Razem | E21: =SUM(E8:E20) -> 38 | F21: =SUM(F8:F20) -> 32
A25: SUPLEMENTY | C25: =$C$2 -> Kruk S.A.
B26: zakończone | C26: Suplement nr 1
C28: Data | E28: Czynności po stronie urzędu | F28: Czynności po stronie emitenta
E29: (w dniach roboczych)
C30: 2022-09-08 | D30: wniosek
C31: 2022-09-14 | F31: 4
C32: 2022-09-15 | D32: decyzja | E32: 1
C36: Razem | E36: =SUM(E30:E35) -> 1 | F36: =SUM(F30:F35) -> 4
C40: =$C$2 -> Kruk S.A.
B41: zakończone | C41: Suplement nr 2
C43: Data | E43: Czynności po stronie urzędu | F43: Czynności po stronie emitenta
E44: (w dniach roboczych)
C45: 2022-11-09 | D45: wniosek
C46: 2022-11-16 | D46: decyzja | E46: 4
C50: Razem | E50: =SUM(E45:E49) -> 4 | F50: =SUM(F45:F49) -> 0
C54: =$C$2 -> Kruk S.A.
B55: zakończone | C55: Suplement nr 3
C57: Data | E57: Czynności po stronie urzędu | F57: Czynności po stronie emitenta
E58: (w dniach roboczych)
C59: 2023-03-10 | D59: wniosek
C60: 2023-03-15 | D60: decyzja | E60: 3
C64: Razem | E64: =SUM(E59:E63) -> 3 | F64: =SUM(F59:F63) -> 0
C68: =$C$2 -> Kruk S.A.
B69: zakończone | C69: Suplement nr 4
C71: Data | E71: Czynności po stronie urzędu | F71: Czynności po stronie emitenta
E72: (w dniach roboczych)
C73: 2023-03-14 | D73: wniosek
C74: 2023-03-16 | D74: decyzja | E74: 2
C78: Razem | E78: =SUM(E73:E77) -> 2 | F78: =SUM(F73:F77) -> 0
C82: =$C$2 -> Kruk S.A.
B83: zakończone | C83: Suplement nr 5
C85: Data | E85: Czynności po stronie urzędu | F85: Czynności po stronie emitenta
E86: (w dniach roboczych)
C87: 2023-04-18 | D87: wniosek
C88: 2023-04-20 | D88: decyzja | E88: 2
C92: Razem | E92: =SUM(E87:E91) -> 2 | F92: =SUM(F87:F91) -> 0
C97: =$C$2 -> Kruk S.A.
B98: zakończone | C98: Suplement nr 6
C100: Data | E100: Czynności po stronie urzędu | F100: Czynności po stronie emitenta
E101: (w dniach roboczych)
C102: 2023-04-27 | D102: wniosek
C103: 2023-05-02 | D103: decyzja | E103: 2
C107: Razem | E107: =SUM(E102:E106) -> 2 | F107: =SUM(F102:F106) -> 0
C111: =$C$2 -> Kruk S.A.
B112: zakończone | C112: Suplement nr 7
C114: Data | E114: Czynności po stronie urzędu | F114: Czynności po stronie emitenta
E115: (w dniach roboczych)
C116: 2023-05-17 | D116: wniosek
C117: 2023-05-23 | D117: decyzja | E117: 4
C121: Razem | E121: =SUM(E116:E120) -> 4 | F121: =SUM(F116:F120) -> 0
C125: =$C$2 -> Kruk S.A.
B126: zakończone | C126: Suplement nr 8
C128: Data | E128: Czynności po stronie urzędu | F128: Czynności po stronie emitenta
E129: (w dniach roboczych)
C130: 2023-08-11 | D130: wniosek
C131: 2023-08-14 | D131: decyzja | E131: 1
C135: Razem | E135: =SUM(E130:E134) -> 1 | F135: =SUM(F130:F134) -> 0

Sheet EQUES Aktywnego Inwestowa
A1: Spis treści
C2: EQUES Aktywnego Inwestowania FIZ
A3: PROSPEKT | B3: zakończone | C3: Prospekt
A5: 410.15.2022
C6: Data | E6: Czynności po stronie urzędu | F6: Czynności po stronie emitenta
E7: (w dniach roboczych)
C8: 2022-04-27 | D8: wniosek
C9: 2022-05-11 | E9: 9
C10: 2022-06-01 | F10: 15
C11: 2022-06-03 | E11: 2
C12: 2022-06-07 | F12: 2
C13: 2022-06-22 | E13: 10
C14: 2022-06-23 | F14: 1
C15: 2022-07-06 | E15: 9
C16: 2022-07-19 | F16: 9
C17: 2022-07-26 | E17: 5
C18: 2022-07-29 | F18: 3
C19: 2022-08-05 | E19: 5
C20: 2022-08-12 | F20: 5
C21: 2022-08-16 | E21: 1
C22: 2022-08-16 | F22: 0
C23: 2022-08-22 | D23: aktualizacja | F23: 4
C24: 2022-08-24 | D24: decyzja | E24: 2
C27: Razem | E27: =SUM(E8:E26) -> 43 | F27: =SUM(F8:F26) -> 39
A32: SUPLEMENTY | C32: =$C$2 -> EQUES Aktywnego Inwestowania FIZ
B33: zakończone | C33: Suplement nr 1
C35: Data | E35: Czynności po stronie urzędu | F35: Czynności po stronie emitenta
E36: (w dniach roboczych)
C37: 2022-10-12 | D37: wniosek
C38: 2022-10-17 | E38: 3
C39: 2022-10-19 | F39: 2
C40: 2022-10-24 | E40: 3
C41: 2022-10-24 | F41: 0
C42: 2022-10-26 | E42: 2
C43: 2022-10-26 | F43: 0
C44: 2022-10-31 | D44: decyzja | E44: 3
C46: Razem | E46: =SUM(E37:E45) -> 11 | F46: =SUM(F37:F45) -> 2
A51: SUPLEMENTY | C51: =$C$2 -> EQUES Aktywnego Inwestowania FIZ
B52: zakończone | C52: Suplement nr 2
C54: Data | E54: Czynności po stronie urzędu | F54: Czynności po stronie emitenta
E55: (w dniach roboczych)
C56: 2023-04-18 | D56: wniosek
C57: 2023-04-25 | E57: 5
C58: 2023-04-28 | F58: 3
C59: 2023-05-08 | E59: 4
C60: 2023-05-12 | F60: 4
C61: 2023-05-16 | E61: 2
C62: 2023-05-16 | F62: 0
C63: 2023-05-19 | D63: decyzja | E63: 3
C65: Razem | E65: =SUM(E56:E64) -> 14 | F65: =SUM(F56:F64) -> 7
C67: =$C$2 -> EQUES Aktywnego Inwestowania FIZ
B68: zakończone | C68: Suplement nr 3
C70: Data | E70: Czynności po stronie urzędu | F70: Czynności po stronie emitenta
E71: (w dniach roboczych)
C72: 2023-06-29 | D72: wniosek
C73: 2023-07-05 | D73: decyzja | E73: 4
C75: Razem | E75: =SUM(E72:E74) -> 4 | F75: =SUM(F72:F74) -> 0

Sheet EQUES Akcji Sektora Prywa
A1: Spis treści
C2: EQUES Akcji Sektora Prywatnego FIZ
A3: PROSPEKT | B3: zakończone | C3: Prospekt
A5: 410.24.2022
C6: Data | E6: Czynności po stronie urzędu | F6: Czynności po stronie emitenta
E7: (w dniach roboczych)
C8: 2022-06-01 | D8: wniosek
C9: 2022-06-15 | E9: 10
C10: 2022-06-22 | F10: 4
C11: 2022-07-06 | E11: 10
C12: 2022-07-20 | F12: 10
C13: 2022-07-27 | D13: aktualizacja | F13: 5
C14: 2022-08-02 | E14: 4
C15: 2022-08-10 | F15: 6
C16: 2022-08-16 | E16: 3
C17: 2022-08-16 | F17: 0
C18: 2022-08-17 | D18: aktualizacja | F18: 1
C19: 2022-08-19 | D19: decyzja | E19: 2
C21: Razem | E21: =SUM(E8:E20) -> 29 | F21: =SUM(F8:F20) -> 26
A25: SUPLEMENTY | C25: =$C$2 -> EQUES Akcji Sektora Prywatnego FIZ
B26: zakończone | C26: Suplement nr 1
C28: Data | E28: Czynności po stronie urzędu | F28: Czynności po stronie emitenta
E29: (w dniach roboczych)
C30: 2022-10-12 | D30: wniosek
C31: 2022-10-17 | E31: 3
C32: 2022-10-18 | F32: 1
C33: 2022-10-24 | E33: 4
C34: 2022-10-24 | F34: 0
C35: 2022-10-26 | D35: decyzja | E35: 2
C37: Razem | E37: =SUM(E30:E36) -> 9 | F37: =SUM(F30:F36) -> 1
C40: =$C$2 -> EQUES Akcji Sektora Prywatnego FIZ
B41: zakończone | C41: Suplement nr 2
C43: Data | E43: Czynności po stronie urzędu | F43: Czynności po stronie emitenta
E44: (w dniach roboczych)
C45: 2023-01-31 | D45: wniosek
C46: 2023-02-02 | E46: 2
C47: 2023-02-08 | F47: 4
C48: 2023-02-10 | D48: decyzja | E48: 2
C50: Razem | E50: =SUM(E45:E49) -> 4 | F50: =SUM(F45:F49) -> 4
C53: =$C$2 -> EQUES Akcji Sektora Prywatnego FIZ
B54: zakończone | C54: Suplement nr 3
C56: Data | E56: Czynności po stronie urzędu | F56: Czynności po stronie emitenta
E57: (w dniach roboczych)
C58: 2023-04-18 | D58: wniosek
C59: 2023-04-25 | E59: 5
C60: 2023-04-28 | F60: 3
C61: 2023-05-08 | E61: 4
C62: 2023-05-12 | F62: 4
C63: 2023-05-16 | E63: 2
C64: 2023-05-19 | D64: decyzja | F64: 3
C67: Razem | E67: =SUM(E58:E66) -> 11 | F67: =SUM(F58:F66) -> 10
C70: =$C$2 -> EQUES Akcji Sektora Prywatnego FIZ
B71: zakończone | C71: Suplement nr 4
C73: Data | E73: Czynności po stronie urzędu | F73: Czynności po stronie emitenta
E74: (w dniach roboczych)
C75: 2023-06-29 | D75: wniosek
C76: 2023-07-05 | D76: decyzja | E76: 4
C78: Razem | E78: =SUM(E75:E77) -> 4 | F78: =SUM(F75:F77) -> 0

Sheet Caspar Asset Management S.A.
A1: Spis treści
C2: Caspar Asset Management S.A.
A3: PROSPEKT | B3: zakończone | C3: Prospekt
A5: 410.14.2022
C6: Data | E6: Czynności po stronie urzędu | F6: Czynności po stronie emitenta
E7: (w dniach roboczych)
C8: 2022-04-05 | D8: wniosek
C9: 2022-05-05 | E9: 20
C10: 2022-05-19 | F10: 10
C11: 2022-06-02 | E11: 10
C12: 2022-06-15 | F12: 9
C13: 2022-06-28 | D13: aktualizacja | F13: 8
C14: 2022-07-05 | E14: 5
C15: 2022-07-15 | F15: 8
C16: 2022-07-21 | D16: decyzja | E16: 4
C21: Razem | E21: =SUM(E8:E20) -> 39 | F21: =SUM(F8:F20) -> 35

Sheet Beta ETF WIG20short
A1: Spis treści
C2: Beta ETF WIG20short Portfelowy FIZ
A3: PROSPEKT | B3: zakończone | C3: Prospekt
A5: 410.25.2022
C6: Data | E6: Czynności po stronie urzędu | F6: Czynności po stronie emitenta
E7: (w dniach roboczych)
C8: 2022-05-27 | D8: wniosek
C9: 2022-06-09 | E9: 9
C10: 2022-06-15 | F10: 4
C11: 2022-06-21 | E11: 3
C12: 2022-06-29 | F12: 6
C13: 2022-06-30 | E13: 1
C14: 2022-07-01 | F14: 1
C15: 2022-07-04 | E15: 1
C16: 2022-07-04 | F16: 0
C17: 2022-07-05 | D17: decyzja | E17: 1
C21: Razem | E21: =SUM(E8:E20) -> 15 | F21: =SUM(F8:F20) -> 11

Sheet Beta ETF WIG20lev
A1: Spis treści
C2: Beta ETF WIG20lev
A3: PROSPEKT | B3: zakończone | C3: Prospekt
A5: 410.23.2022
C6: Data | E6: Czynności po stronie urzędu | F6: Czynności po stronie emitenta
E7: (w dniach roboczych)
C8: 2022-05-31 | D8: wniosek
C9: 2022-06-09 | E9: 7
C10: 2022-06-15 | F10: 4
C11: 2022-06-21 | E11: 3
C12: 2022-06-29 | F12: 6
C13: 2022-06-30 | E13: 1
C14: 2022-07-01 | F14: 1
C15: 2022-07-04 | E15: 1
C16: 2022-07-04 | F16: 0
C17: 2022-07-05 | D17: decyzja | E17: 1
C21: Razem | E21: =SUM(E8:E20) -> 13 | F21: =SUM(F8:F20) -> 11

Sheet Beta ETF mWIG40TR (2022)
A1: Spis treści
C2: Beta ETF mWIG40TR Portfelowy FIZ (2022)
A3: PROSPEKT | B3: zakończone | C3: Prospekt
A5: 410.18.2022
C6: Data | E6: Czynności po stronie urzędu | F6: Czynności po stronie emitenta
E7: (w dniach roboczych)
C8: 2022-05-11 | D8: wniosek
C9: 2022-05-24 | E9: 9
C10: 2022-06-06 | F10: 9
C11: 2022-06-10 | E11: 4
C12: 2022-06-14 | F12: 2
C13: 2022-06-17 | D13: aktualizacja | F13: 2
C14: 2022-06-20 | D14: decyzja | E14: 1
C21: Razem | E21: =SUM(E8:E20) -> 14 | F21: =SUM(F8:F20) -> 13

Sheet Movie Games
A1: Spis treści
C2: Movie Games
A3: PROSPEKT | B3: zakończone | C3: Prospekt
A5: 410.19.2022
C6: Data | E6: Czynności po stronie urzędu | F6: Czynności po stronie emitenta
E7: (w dniach roboczych)
C8: 2022-05-10 | D8: wniosek
C9: 2022-06-07 | E9: 20
C10: 2022-06-21 | F10: 9
C11: 2022-07-05 | E11: 10
C12: 2022-07-18 | F12: 9
C13: 2022-07-29 | E13: 9
C14: 2022-08-12 | F14: 10
C15: 2022-08-26 | E15: 9
C16: 2022-09-25 | F16: 20
C17: 2022-10-07 | E17: 10
C18: 2022-10-12 | F18: 3
C19: 2022-10-25 | E19: 9
C20: 2022-10-26 | F20: 1
C21: 2022-11-02 | E21: 4
C22: 2022-11-03 | F22: 1
C23: 2022-11-10 | E23: 5
C24: 2022-11-24 | F24: 9
C25: 2022-12-07 | E25: 9
C26: 2022-12-13 | F26: 4
C27: 2022-12-16 | D27: decyzja | E27: 3
C30: Razem | E30: =SUM(E8:E29) -> 88 | F30: =SUM(F8:F29) -> 66
C33: Movie Games
A34: Suplement nr 1 | B34: zakończone | C34: Suplement
C37: Data | E37: Czynności po stronie urzędu | F37: Czynności po stronie emitenta
E38: (w dniach roboczych)
C39: 2022-12-23 | D39: wniosek
C40: 2022-12-27 | E40: 1
C41: 2022-12-28 | F41: 1
C42: 2022-12-29 | D42: aktualizacja | F42: 1
C43: 2022-12-30 | D43: decyzja | E43: 1
C47: Razem | E47: =SUM(E39:E46) -> 2 | F47: =SUM(F39:F46) -> 2

Sheet Alior Bank S.A. (BPW)
A1: Spis treści
C2: Alior Bank S.A.
A3: PROSPEKT | B3: zakończone | C3: Prospekt podstawowy bankowych papierów wartościowych
A5: 410.8.2022
C6: Data | E6: Czynności po stronie urzędu | F6: Czynności po stronie emitenta
E7: (w dniach roboczych)
C8: 2022-03-29 | D8: wniosek
C9: 2022-04-12 | E9: 10
C10: 2022-04-26 | F10: 9
C11: 2022-05-11 | E11: 10
C12: 2022-05-25 | F12: 10
C13: 2022-06-08 | E13: 10
C14: 2022-06-21 | F14: 9
C15: 2022-07-01 | E15: 8
C16: 2022-07-08 | F16: 5
C17: 2022-07-12 | E17: 2
C18: 2022-07-20 | F18: 6
C19: 2022-07-21 | E19: 1
C20: 2022-07-28 | F20: 5
C21: 2022-08-11 | E21: 10
C22: 2022-08-11 | F22: 0
C23: 2022-08-24 | D23: decyzja | E23: 8
C24: Razem | E24: =SUM(E8:E21) -> 51 | F24: =SUM(F8:F21) -> 44
A28: SUPLEMENTY | C28: =$C$2 -> Alior Bank S.A.
B29: zakończone | C29: Suplement nr 1
C31: Data | E31: Czynności po stronie urzędu | F31: Czynności po stronie emitenta
E32: (w dniach roboczych)
C33: 2023-02-08 | D33: wniosek
C34: 2023-02-14 | E34: 4
C35: 2023-02-15 | F35: 1
C36: 2023-02-16 | D36: decyzja | E36: 1
C37: Razem | E37: =SUM(E33:E36) -> 5 | F37: =SUM(F33:F36) -> 1
A40: SUPLEMENTY | C40: =$C$2 -> Alior Bank S.A.
B41: zakończone | C41: Suplement nr 2
C43: Data | E43: Czynności po stronie urzędu | F43: Czynności po stronie emitenta
E44: (w dniach roboczych)
C45: 2023-03-09 | D45: wniosek
C46: 2023-03-13 | E46: 2
C47: 2023-03-16 | F47: 3
C48: 2023-03-17 | D48: decyzja | E48: 1
C49: Razem | E49: =SUM(E45:E48) -> 3 | F49: =SUM(F45:F48) -> 3
A52: SUPLEMENTY | C52: =$C$2 -> Alior Bank S.A.
B53: zakończone | C53: Suplement nr 3
C55: Data | E55: Czynności po stronie urzędu | F55: Czynności po stronie emitenta
E56: (w dniach roboczych)
C57: 2023-06-28 | D57: wniosek
C58: 2023-07-04 | D58: decyzja | E58: 4
C59: Razem | E59: =SUM(E57:E58) -> 4 | F59: =SUM(F57:F58) -> 0

Sheet PCC Exol S.A.
A1: Spis treści
C2: PCC Exol S.A.
A3: PROSPEKT | B3: zakończone | C3: Prospekt podstawowy obligacji
A5: 410.11.2022
C6: Data | E6: Czynności po stronie urzędu | F6: Czynności po stronie emitenta
E7: (w dniach roboczych)
C8: 2022-03-25 | D8: wniosek
C9: 2022-04-08 | E9: 10
C10: 2022-04-14 | F10: 4
C11: 2022-04-27 | E11: 9
C12: 2022-04-29 | F12: 2
C13: 2022-05-09 | E13: 5
C14: 2022-05-23 | F14: 10
C15: 2022-05-30 | E15: 5
C16: 2022-06-13 | F16: 10
C17: 2022-06-24 | D17: decyzja | E17: 8
C21: Razem | E21: =SUM(E8:E20) -> 37 | F21: =SUM(F8:F20) -> 26
A25: SUPLEMENTY | C25: =$C$2 -> PCC Exol S.A.
B26: zakończone | C26: Suplement nr 1
C28: Data | E28: Czynności po stronie urzędu | F28: Czynności po stronie emitenta
E29: (w dniach roboczych)
C30: 2022-08-24 | D30: wniosek
C31: 2022-08-26 | E31: 2
C34: Razem | E34: =SUM(E30:E33) -> 2 | F34: =SUM(F30:F33) -> 0
C37: =$C$2 -> PCC Exol S.A.
B38: zakończone | C38: Suplement nr 2
C40: Data | E40: Czynności po stronie urzędu | F40: Czynności po stronie emitenta
E41: (w dniach roboczych)
C42: 2022-11-14 | D42: wniosek
C43: 2022-11-16 | E43: 2
C46: Razem | E46: =SUM(E42:E45) -> 2 | F46: =SUM(F42:F45) -> 0
C52: =$C$2 -> PCC Exol S.A.
B53: zakończone | C53: Suplement nr 3
C55: Data | E55: Czynności po stronie urzędu | F55: Czynności po stronie emitenta
E56: (w dniach roboczych)
C57: 2023-03-21 | D57: wniosek
C58: 2023-03-23 | E58: 2
C61: Razem | E61: =SUM(E57:E60) -> 2 | F61: =SUM(F57:F60) -> 0
C65: =$C$2 -> PCC Exol S.A.
B66: zakończone | C66: Suplement nr 4
C68: Data | E68: Czynności po stronie urzędu | F68: Czynności po stronie emitenta
E69: (w dniach roboczych)
C70: 2023-05-17 | D70: wniosek
C71: 2023-05-23 | E71: 4
C74: Razem | E74: =SUM(E70:E73) -> 4 | F74: =SUM(F70:F73) -> 0

Sheet Komex SA
A1: Spis treści
C2: Komex SA
A3: PROSPEKT | B3: umorzone | C3: Prospekt
A5: 410.13.2022
C6: Data | E6: Czynności po stronie urzędu | F6: Czynności po stronie emitenta
E7: (w dniach roboczych)
C8: 2022-03-31 | D8: wniosek
C9: 2022-04-29 | E9: 20
C10: 2022-05-20 | F10: 14
C11: 2022-06-03 | E11: 10
C12: 2022-06-28 | F12: 16
C13: 2022-07-07 | E13: 7
C14: 2023-09-26 | D14: decyzja o umorzeniu
C21: Razem | E21: =SUM(E8:E20) -> 37 | F21: =SUM(F8:F20) -> 30
A25: SUPLEMENTY | C25: =$C$2 -> Komex SA
C26: Suplement nr 1
C28: Data | E28: Czynności po stronie urzędu | F28: Czynności po stronie emitenta
E29: (w dniach roboczych)
D30: wniosek
C34: Razem | E34: =SUM(E30:E33) -> 0 | F34: =SUM(F30:F33) -> 0

Sheet Dr Irena Eris S.A.
A1: Spis treści
C2: Dr Irena Eris S.A.
A3: PROSPEKT | B3: zakończone | C3: Prospekt
A5: 410.12.2022
C6: Data | E6: Czynności po stronie urzędu | F6: Czynności po stronie emitenta
E7: (w dniach roboczych)
C8: 2022-03-29 | D8: wniosek
C9: 2022-04-27 | E9: 20
C10: 2022-05-10 | F10: 8
C11: 2022-05-23 | E11: 9
C12: 2022-05-30 | F12: 5
C13: 2022-06-13 | E13: 10
C14: 2023-04-26 | F14: 220
C15: 2023-05-11 | E15: 9
C16: 2023-05-19 | F16: 6
C17: 2023-06-01 | E17: 9
C18: 2023-06-16 | F18: 10
C19: 2023-06-19 | D19: decyzja | E19: 1
C23: Razem | E23: =SUM(E8:E22) -> 58 | F23: =SUM(F8:F22) -> 249
A27: SUPLEMENTY | C27: =$C$2 -> Dr Irena Eris S.A.
C28: Suplement nr 1
C30: Data | E30: Czynności po stronie urzędu | F30: Czynności po stronie emitenta
E31: (w dniach roboczych)
D32: wniosek
C36: Razem | E36: =SUM(E32:E35) -> 0 | F36: =SUM(F32:F35) -> 0

Sheet Bioceltix
A1: Spis treści
C2: Bioceltix
A3: PROSPEKT | B3: zakończone | C3: Prospekt
A5: 410.10.2022
C6: Data | E6: Czynności po stronie urzędu | F6: Czynności po stronie emitenta
E7: (w dniach roboczych)
D8: wniosek
C9: 2022-03-25
C10: 2022-04-25 | E10: 20
C11: 2022-05-06 | F11: 8
C12: 2022-05-20 | E12: 10
C13: 2022-06-03 | F13: 10
C14: 2022-06-20 | E14: 10
C15: 2022-06-28 | F15: 6
C16: 2022-07-11 | E16: 9
C17: 2022-07-18 | F17: 5
C18: 2022-07-28 | D18: decyzja | E18: 8
C20: Razem | E20: =SUM(E8:E19) -> 57 | F20: =SUM(F8:F19) -> 29
A24: SUPLEMENTY | C24: =$C$2 -> Bioceltix
C25: Suplement nr 1
C27: Data | E27: Czynności po stronie urzędu | F27: Czynności po stronie emitenta
E28: (w dniach roboczych)
D29: wniosek
C33: Razem | E33: =SUM(E29:E32) -> 0 | F33: =SUM(F29:F32) -> 0

Sheet DB Energy S.A.
A1: Spis treści
C2: DB Energy S.A.
A3: PROSPEKT | B3: zakończone | C3: Prospekt
A5: 410.9.2022
C6: Data | E6: Czynności po stronie urzędu | F6: Czynności po stronie emitenta
E7: (w dniach roboczych)
C8: 2022-03-21 | D8: wniosek
C9: 2022-04-19 | E9: 20
C10: 2022-06-03 | F10: 32
C11: 2022-06-20 | E11: 10
C12: 2022-07-04 | F12: 10
C13: 2022-07-18 | E13: 10
C14: 2022-08-10 | F14: 17
C15: 2022-08-24 | E15: 9
C16: 2022-09-26 | F16: 23
C17: 2022-10-10 | E17: 10
C18: 2022-10-18 | F18: 6
C19: 2022-11-02 | E19: 10
C20: 2022-11-07 | E20: 2
C21: 2022-11-09 | F21: 3
C22: 2022-11-24 | E22: 10
C23: 2022-12-02 | F23: 6
C24: 2022-12-15 | E24: 9
C25: 2023-01-03 | F25: 12
C26: 2023-01-18 | E26: 10
C27: 2023-01-20 | F27: 2
C28: 2023-01-31 | E28: 7
C29: 2023-02-03 | F29: 3
C30: 2023-02-09 | E30: 4
C31: 2023-02-16 | F31: 5
C32: 2023-02-21 | D32: aktualizacja | F32: 3
C33: 2023-02-27 | D33: decyzja | E33: 4
C36: Razem | E36: =SUM(E8:E35) -> 115 | F36: =SUM(F8:F35) -> 122
A40: SUPLEMENTY | C40: =$C$2 -> DB Energy S.A.
B41: zakończone | C41: Suplement nr 1
C43: Data | E43: Czynności po stronie urzędu | F43: Czynności po stronie emitenta
E44: (w dniach roboczych)
C45: 2023-03-02 | D45: wniosek
C46: 2023-03-06 | D46: aktualizacja
C47: 2023-03-07 | D47: aktualizacja
C48: 2023-03-09 | E48: 2
C49: 2023-03-09 | F49: 0 | H49: 0
C50: 2023-03-13 | D50: decyzja | E50: 2
C52: Razem | E52: =SUM(E45:E51) -> 4 | F52: =SUM(F45:F51) -> 0
C55: =$C$2 -> DB Energy S.A.
B56: zakończone | C56: Suplement nr 2
C58: Data | E58: Czynności po stronie urzędu | F58: Czynności po stronie emitenta
E59: (w dniach roboczych)
C60: 2023-03-15 | D60: wniosek
C61: 2023-03-16 | D61: decyzja | E61: 1
C63: Razem | E63: =SUM(E60:E62) -> 1 | F63: =SUM(F60:F62) -> 0

Sheet Ipopema Benefit 3 FIZ
A1: Spis treści
C2: Ipopema Benefit 3 FIZ
A3: PROSPEKT | B3: zakończone | C3: Prospekt certyfikatów inwestycyjnych
A5: 410.7.2022
A6: . | C6: Data | E6: Czynności po stronie urzędu | F6: Czynności po stronie emitenta
E7: (w dniach roboczych)
C8: 2022-03-03 | D8: wniosek
C9: 2022-03-17 | E9: 10
C10: 2022-04-05 | F10: 13
C11: 2022-04-20 | E11: 10
C12: 2022-05-12 | F12: 16
C13: 2022-05-26 | E13: 10
C14: 2022-06-13 | F14: 14
C15: 2022-07-06 | F15: 16
C16: 2022-07-15 | D16: decyzja | E16: 7
C21: Razem | E21: =SUM(E8:E20) -> 37 | F21: =SUM(F8:F20) -> 59
A25: SUPLEMENTY | C25: =$C$2 -> Ipopema Benefit 3 FIZ
B26: zakończone | C26: Suplement nr 1
C28: Data | E28: Czynności po stronie urzędu | F28: Czynności po stronie emitenta
E29: (w dniach roboczych)
C30: 2022-08-10 | D30: wniosek
C31: 2022-08-12 | D31: decyzja | E31: 2
C34: Razem | E34: =SUM(E30:E33) -> 2 | F34: =SUM(F30:F33) -> 0
C37: =$C$2 -> Ipopema Benefit 3 FIZ
B38: zakończone | C38: Suplement nr 2
C40: Data | E40: Czynności po stronie urzędu | F40: Czynności po stronie emitenta
E41: (w dniach roboczych)
C42: 2022-10-27 | D42: wniosek
C43: 2022-11-03 | D43: decyzja | E43: 4
C46: Razem | E46: =SUM(E42:E45) -> 4 | F46: =SUM(F42:F45) -> 0
C52: =$C$2 -> Ipopema Benefit 3 FIZ
B53: zakończone | C53: Suplement nr 3
C55: Data | E55: Czynności po stronie urzędu | F55: Czynności po stronie emitenta
E56: (w dniach roboczych)
C57: 2023-01-27 | D57: wniosek
C58: 2023-01-30 | E58: 1
C59: 2023-02-02 | F59: 3
C60: 2023-02-03 | D60: decyzja | E60: 1
C61: Razem | E61: =SUM(E57:E60) -> 2 | F61: =SUM(F57:F60) -> 3
C67: =$C$2 -> Ipopema Benefit 3 FIZ
B68: zakończone | C68: Suplement nr 4
C70: Data | E70: Czynności po stronie urzędu | F70: Czynności po stronie emitenta
E71: (w dniach roboczych)
C72: 2023-04-07 | D72: wniosek
C73: 2023-04-13 | D73: decyzja | E73: 3
C74: Razem | E74: =SUM(E72:E73) -> 3 | F74: =SUM(F72:F73) -> 0
C80: =$C$2 -> Ipopema Benefit 3 FIZ
B81: zakończone | C81: Suplement nr 5
C83: Data | E83: Czynności po stronie urzędu | F83: Czynności po stronie emitenta
E84: (w dniach roboczych)
C85: 2023-04-27 | D85: wniosek
C86: 2023-05-05 | D86: decyzja | E86: 4
C87: Razem | E87: =SUM(E85:E86) -> 4 | F87: =SUM(F85:F86) -> 0

Sheet PragmaGO 2022 PONZ
A1: Spis treści
C2: PragmaGO SA - prospekt obligacji niezabezpieczonych
A3: PROSPEKT | B3: zakończone | C3: Prospekt podstawowy
A5: 410.30.2022
C6: Data | E6: Czynności po stronie urzędu | F6: Czynności po stronie emitenta
E7: (w dniach roboczych)
C8: 2022-06-21 | D8: wniosek
C9: 2022-07-05 | E9: 10
C10: 2022-07-06 | F10: 1
C11: 2022-07-13 | F11: 5
C12: 2022-07-14 | F12: 1
C13: 2022-07-15 | D13: decyzja | E13: 1
C21: Razem | E21: =SUM(E8:E20) -> 11 | F21: =SUM(F8:F20) -> 7

Sheet PragmaGO obligacje 2022 POZ
A1: Spis treści
C2: PragmaGO SA - prospekt obligacji zabezpieczonych
A3: PROSPEKT | B3: zakończone | C3: Prospekt podstawowy
A5: 410.4.2022-2
C6: Data | E6: Czynności po stronie urzędu | F6: Czynności po stronie emitenta
E7: (w dniach roboczych)
C8: 2022-02-18 | D8: wniosek
C9: 2022-02-24 | F9: 4
C10: 2022-03-10 | E10: 10
C11: 2022-03-24 | F11: 10
C12: 2022-04-06 | E12: 9
C13: 2022-04-21 | F13: 10
C14: 2022-05-06 | E14: 10
C15: 2022-05-23 | F15: 11
C16: 2022-06-06 | E16: 10
C17: 2022-06-15 | F17: 7
C18: 2022-06-30 | E18: 10
C19: 2022-07-08 | F19: 6
C20: 2022-07-12 | E20: 2
C21: 2022-07-13 | F21: 1
C22: 2022-07-14 | F22: 1
C23: 2022-07-15 | D23: decyzja | E23: 1
C25: Razem | E25: =SUM(E8:E24) -> 52 | F25: =SUM(F8:F24) -> 50
A28: SUPLEMENTY
C31: =$C$2 -> PragmaGO SA - prospekt obligacji zabezpieczonych
B32: zakończone | C32: Suplement nr 1 do prospektu obligacji zabezpieczonych
C34: Data | E34: Czynności po stronie urzędu | F34: Czynności po stronie emitenta
E35: (w dniach roboczych)
C36: 2022-09-23 | D36: wniosek
C37: 2022-09-28 | D37: decyzja | E37: 3
C40: Razem | E40: =SUM(E36:E39) -> 3 | F40: =SUM(F36:F39) -> 0
A45: SUPLEMENTY | C45: =$C$2 -> PragmaGO SA - prospekt obligacji zabezpieczonych
B46: zakończone | C46: Suplement nr 2 do prospektu obligacji zabezpieczonych
C48: Data | E48: Czynności po stronie urzędu | F48: Czynności po stronie emitenta
E49: (w dniach roboczych)
C50: 2022-10-03 | D50: wniosek
C51: 2022-10-07 | D51: decyzja | E51: 4
C54: Razem | E54: =SUM(E50:E53) -> 4 | F54: =SUM(F50:F53) -> 0
C56: =$C$2 -> PragmaGO SA - prospekt obligacji zabezpieczonych
B57: zakończone | C57: Suplement nr 3 do prospektu obligacji zabezpieczonych
C59: Data | E59: Czynności po stronie urzędu | F59: Czynności po stronie emitenta
E60: (w dniach roboczych)
C61: 2022-12-20 | D61: wniosek
C62: 2022-12-23 | D62: decyzja | E62: 3
C65: Razem | E65: =SUM(E61:E64) -> 3 | F65: =SUM(F61:F64) -> 0
C67: =$C$2 -> PragmaGO SA - prospekt obligacji zabezpieczonych
B68: zakończone | C68: Suplement nr 4 do prospektu obligacji zabezpieczonych
C70: Data | E70: Czynności po stronie urzędu | F70: Czynności po stronie emitenta
E71: (w dniach roboczych)
C72: 2023-02-24 | D72: wniosek
C73: 2023-03-01 | D73: decyzja | E73: 3
C76: Razem | E76: =SUM(E72:E75) -> 3 | F76: =SUM(F72:F75) -> 0

Sheet Beta ETF WIGtech (2022)
A1: Spis treści
C2: Beta ETF WIGtech Portfelowy FIZ
A3: PROSPEKT | B3: zakończone | C3: Prospekt
A5: 410.6.2022
C6: Data | E6: Czynności po stronie urzędu | F6: Czynności po stronie emitenta
E7: (w dniach roboczych)
C8: 2022-02-16 | D8: wniosek
C9: 2022-03-01 | E9: 9
C10: 2022-03-08 | F10: 5
C11: 2022-03-10 | D11: decyzja | E11: 2
C21: Razem | E21: =SUM(E8:E20) -> 11 | F21: =SUM(F8:F20) -> 5
A25: SUPLEMENTY | C25: =$C$2 -> Beta ETF WIGtech Portfelowy FIZ
C26: Suplement nr 1
C28: Data | E28: Czynności po stronie urzędu | F28: Czynności po stronie emitenta
E29: (w dniach roboczych)
D30: wniosek
C34: Razem | E34: =SUM(E30:E33) -> 0 | F34: =SUM(F30:F33) -> 0

Sheet ExpertSender SA
A1: Spis treści
C2: ExpertSender SA
A3: PROSPEKT | B3: zawieszone | C3: Prospekt
A5: 410.5.2022
C6: Data | E6: Czynności po stronie urzędu | F6: Czynności po stronie emitenta
E7: (w dniach roboczych)
C8: 2022-02-08 | D8: wniosek
C9: 2022-03-08 | E9: 20
C10: 2022-03-22 | F10: 10
C11: 2022-04-05 | E11: 10
C12: 2022-04-25 | F12: 13
C13: 2022-05-09 | E13: 9
C14: 2022-05-26 | F14: 13
C15: 2022-06-07 | E15: 8
C21: Razem | E21: =SUM(E8:E20) -> 47 | F21: =SUM(F8:F20) -> 36
A25: SUPLEMENTY | C25: =$C$2 -> ExpertSender SA
C26: Suplement nr 1
C28: Data | E28: Czynności po stronie urzędu | F28: Czynności po stronie emitenta
E29: (w dniach roboczych)
D30: wniosek
C34: Razem | E34: =SUM(E30:E33) -> 0 | F34: =SUM(F30:F33) -> 0

Sheet FDK Rentier FIZ
A1: Spis treści
C2: Fundusz Długu Korporacyjnego Rentier FIZ
A3: PROSPEKT | B3: zakończone | C3: Prospekt
A5: 410.2.2022
C6: Data | E6: Czynności po stronie urzędu | F6: Czynności po stronie emitenta
E7: (w dniach roboczych)
C8: 2022-02-02 | D8: wniosek
C9: 2022-02-16 | E9: 10
C10: 2022-03-02 | F10: 10
C11: 2022-03-10 | E11: 6
C12: 2022-03-24 | F12: 10
C13: 2022-03-28 | E13: 2
C14: 2022-04-07 | F14: 8
C15: 2022-04-21 | E15: 9
C16: 2022-04-29 | F16: 6
C17: 2022-05-10 | E17: 6
C18: 2022-06-01 | F18: 16
C19: 2022-06-10 | D19: decyzja | E19: 7
C21: Razem | E21: =SUM(E8:E20) -> 40 | F21: =SUM(F8:F20) -> 50
A25: SUPLEMENTY | C25: =$C$2 -> Fundusz Długu Korporacyjnego Rentier FIZ
B26: zakończone | C26: Suplement nr 1
C28: Data | E28: Czynności po stronie urzędu | F28: Czynności po stronie emitenta
E29: (w dniach roboczych)
C30: 2022-08-05 | D30: wniosek
C31: 2022-08-10 | D31: decyzja | E31: 3
C34: Razem | E34: =SUM(E30:E33) -> 3 | F34: =SUM(F30:F33) -> 0
C38: =$C$2 -> Fundusz Długu Korporacyjnego Rentier FIZ
B39: zakończone | C39: Suplement nr 2
C41: Data | E41: Czynności po stronie urzędu | F41: Czynności po stronie emitenta
E42: (w dniach roboczych)
C43: 2022-08-29 | D43: wniosek
C44: 2022-09-01 | D44: decyzja | E44: 3
C47: Razem | E47: =SUM(E43:E46) -> 3 | F47: =SUM(F43:F46) -> 0
A52: SUPLEMENTY | C52: =$C$2 -> Fundusz Długu Korporacyjnego Rentier FIZ
B53: zakończone | C53: Suplement nr 3
C55: Data | E55: Czynności po stronie urzędu | F55: Czynności po stronie emitenta
E56: (w dniach roboczych)
C57: 2022-10-03 | D57: wniosek
C58: 2022-10-10 | D58: decyzja | E58: 5
C61: Razem | E61: =SUM(E57:E60) -> 5 | F61: =SUM(F57:F60) -> 0
A66: SUPLEMENTY | C66: =$C$2 -> Fundusz Długu Korporacyjnego Rentier FIZ
B67: zakończone | C67: Suplement nr 4
C69: Data | E69: Czynności po stronie urzędu | F69: Czynności po stronie emitenta
E70: (w dniach roboczych)
C71: 2022-10-06 | D71: wniosek
C72: 2022-10-12 | D72: aktualizacja
C73: 2022-10-13 | D73: decyzja | E73: 1
C75: Razem | E75: =SUM(E71:E74) -> 1 | F75: =SUM(F71:F74) -> 0
A80: SUPLEMENTY | C80: =$C$2 -> Fundusz Długu Korporacyjnego Rentier FIZ
B81: zakończone | C81: Suplement nr 5
C83: Data | E83: Czynności po stronie urzędu | F83: Czynności po stronie emitenta
E84: (w dniach roboczych)
C85: 2022-10-24 | D85: wniosek
C86: 2022-10-26 | D86: decyzja | E86: 2
C89: Razem | E89: =SUM(E85:E88) -> 2 | F89: =SUM(F85:F88) -> 0
A94: SUPLEMENTY | C94: =$C$2 -> Fundusz Długu Korporacyjnego Rentier FIZ
B95: zakończone | C95: Suplement nr 6
C97: Data | E97: Czynności po stronie urzędu | F97: Czynności po stronie emitenta
E98: (w dniach roboczych)
C99: 2022-11-07 | D99: wniosek
C100: 2022-11-10 | D100: decyzja | E100: 3
C103: Razem | E103: =SUM(E99:E102) -> 3 | F103: =SUM(F99:F102) -> 0
A108: SUPLEMENTY | C108: =$C$2 -> Fundusz Długu Korporacyjnego Rentier FIZ
B109: zakończone | C109: Suplement nr 7
C111: Data | E111: Czynności po stronie urzędu | F111: Czynności po stronie emitenta
E112: (w dniach roboczych)
C113: 2022-11-16 | D113: wniosek
C114: 2022-11-17 | D114: decyzja | E114: 1
C117: Razem | E117: =SUM(E113:E116) -> 1 | F117: =SUM(F113:F116) -> 0
A122: SUPLEMENTY | C122: =$C$2 -> Fundusz Długu Korporacyjnego Rentier FIZ
B123: zakończone | C123: Suplement nr 8
C125: Data | E125: Czynności po stronie urzędu | F125: Czynności po stronie emitenta
E126: (w dniach roboczych)
C127: 2022-11-24 | D127: wniosek
C128: 2022-11-25 | E128: 1
C129: 2022-11-29 | F129: 2
C130: 2022-12-01 | D130: decyzja | E130: 2
C132: Razem | E132: =SUM(E127:E131) -> 3 | F132: =SUM(F127:F131) -> 2
A137: SUPLEMENTY | C137: =$C$2 -> Fundusz Długu Korporacyjnego Rentier FIZ
B138: zakończone | C138: Suplement nr 9
C140: Data | E140: Czynności po stronie urzędu | F140: Czynności po stronie emitenta
E141: (w dniach roboczych)
C142: 2022-12-15 | D142: wniosek
C143: 2022-12-22 | E143: 5
C144: 2022-12-28 | F144: 3
C145: 2023-01-02 | E145: 3
C146: 2023-01-04 | F146: 2
C147: 2023-01-05 | E147: 1
C149: Razem | E149: =SUM(E142:E148) -> 9 | F149: =SUM(F142:F148) -> 5
A154: SUPLEMENTY | C154: =$C$2 -> Fundusz Długu Korporacyjnego Rentier FIZ
B155: zakończone | C155: Suplement nr 10
C157: Data | E157: Czynności po stronie urzędu | F157: Czynności po stronie emitenta
E158: (w dniach roboczych)
C159: 2023-02-09 | D159: wniosek
C160: 2023-02-13 | D160: decyzja | E160: 2
C162: Razem | E162: =SUM(E159:E161) -> 2 | F162: =SUM(F159:F161) -> 0
A167: SUPLEMENTY | C167: =$C$2 -> Fundusz Długu Korporacyjnego Rentier FIZ
B168: zakończone | C168: Suplement nr 11
C170: Data | E170: Czynności po stronie urzędu | F170: Czynności po stronie emitenta
E171: (w dniach roboczych)
C172: 2023-04-13 | D172: wniosek
C173: 2023-04-17 | D173: decyzja | E173: 2
C176: Razem | E176: =SUM(E172:E175) -> 2 | F176: =SUM(F172:F175) -> 0
A181: SUPLEMENTY | C181: =$C$2 -> Fundusz Długu Korporacyjnego Rentier FIZ
B182: zakończone | C182: Suplement nr 12
C184: Data | E184: Czynności po stronie urzędu | F184: Czynności po stronie emitenta
E185: (w dniach roboczych)
C186: 2023-05-05 | D186: wniosek
C187: 2023-05-09 | E187: 2
C190: Razem | E190: =SUM(E186:E189) -> 2 | F190: =SUM(F186:F189) -> 0

Sheet T-Bull SA
A1: Spis treści
C2: T-Bull SA
A3: PROSPEKT | B3: zakończone | C3: Prospekt UE na rzecz odbudowy
A5: 410.1.2022
C6: Data | E6: Czynności po stronie urzędu | F6: Czynności po stronie emitenta
E7: (w dniach roboczych)
C8: 2022-01-20 | D8: wniosek
C9: 2022-01-28 | E9: =PracaKNF(C8,C9) -> 6
C10: 2022-03-07 | F10: =PracaKNF(C9,C10) -> 26
C11: 2022-03-16 | E11: 7
C12: 2022-04-04 | F12: 13
C13: 2022-04-13 | E13: 7
C14: 2022-04-28 | F14: 10
C15: 2022-05-09 | E15: 6
C16: 2022-05-25 | F16: 13
C17: 2022-06-03 | E17: 7
C18: 2022-06-20 | F18: 10
C19: 2022-06-24 | E19: 4
C20: 2022-08-19 | F20: 39
C21: 2022-08-30 | E21: 7
C22: 2022-09-14 | F22: 11
C23: 2022-09-16 | F23: 2
C24: 2022-09-23 | E24: 5
C25: 2022-10-11 | F25: 12
C26: 2022-10-19 | E26: 6
C27: 2022-10-28 | F27: 7
C28: 2022-11-08 | E28: 6
C29: 2022-11-24 | F29: 11
C30: 2022-12-01 | E30: 5
C31: 2022-12-13 | F31: 8
C32: 2022-12-16 | D32: decyzja | E32: 3
E33: 0
C34: Razem | E34: =SUM(E8:E33) -> 69 | F34: =SUM(F8:F33) -> 162
A38: SUPLEMENTY | C38: =$C$2 -> T-Bull SA
B39: zakończone | C39: Suplement nr 1 do prospektu
C41: Data | E41: Czynności po stronie urzędu | F41: Czynności po stronie emitenta
E42: (w dniach roboczych)
C43: 2023-09-04 | D43: wniosek
C44: 2023-09-08 | D44: decyzja | E44: 4
C46: Razem | E46: =SUM(E43:E45) -> 4 | F46: =SUM(F43:F45) -> 0

Sheet Event Horizon SA
A1: Spis treści
C2: Event Horizon SA
A3: PROSPEKT | B3: zawieszone | C3: Prospekt
A5: 410.53.2021
C6: Data | E6: Czynności po stronie urzędu | F6: Czynności po stronie emitenta
E7: (w dniach roboczych)
C8: 2021-12-23 | D8: wniosek
C9: 2022-01-21 | E9: =PracaKNF(C8,C9) -> 20
C10: 2022-02-03 | F10: =PracaKNF(C9,C10) -> 9
C11: 2022-02-17 | E11: 10
C12: 2022-03-02 | F12: 10
C13: 2022-03-16 | E13: 10
C14: 2022-03-29 | F14: 9
C15: 2022-04-12 | E15: 10
C16: 2022-04-15 | F16: 3
C17: 2022-04-29 | E17: 9
C18: 2022-05-04 | F18: 2
C19: 2022-05-16 | E19: 8
C20: 2022-05-30 | F20: 10
C21: 2022-06-09 | E21: 8
C25: Razem | E25: =SUM(E8:E24) -> 75 | F25: =SUM(F8:F24) -> 43

Sheet Hub.Tech SA
A1: Spis treści
C2: Hub.Tech SA
A3: PROSPEKT | B3: zakończone | C3: Prospekt
A5: 410.56.2021
C6: Data | E6: Czynności po stronie urzędu | F6: Czynności po stronie emitenta
E7: (w dniach roboczych)
C8: 2021-12-29 | D8: wniosek
C9: 2022-01-27 | E9: =PracaKNF(C8,C9) -> 20
C10: 2022-02-17 | F10: =PracaKNF(C9,C10) -> 15
C11: 2022-03-03 | E11: 10
C12: 2022-04-01 | F12: 21
C13: 2022-04-04 | F13: 1
C14: 2022-04-15 | E14: 9
C15: 2022-04-29 | F15: 9
C16: 2022-05-16 | E16: 10
C17: 2022-05-30 | F17: 10
C18: 2022-06-13 | E18: 10
C19: 2022-06-24 | F19: 8
C20: 2022-07-08 | E20: 10
C21: 2022-07-15 | F21: 5
C22: 2022-07-28 | E22: 9
C23: 2022-08-26 | F23: 20
C24: 2022-09-09 | E24: 10
C25: 2022-09-15 | F25: 4
C26: 2022-09-29 | E26: 10
C27: 2022-10-13 | F27: 10
C28: 2022-10-27 | E28: 10
C29: 2022-11-10 | F29: 9
C30: 2022-11-25 | E30: 10
C31: 2022-12-09 | F31: 10
C32: 2022-12-23 | E32: 10
C33: 2023-03-22 | D33: decyzja o umorzeniu
C37: Razem | E37: =SUM(E8:E36) -> 128 | F37: =SUM(F8:F36) -> 122
A41: SUPLEMENTY | C41: =$C$2 -> Hub.Tech SA
C42: Suplement nr 1
C44: Data | E44: Czynności po stronie urzędu | F44: Czynności po stronie emitenta
E45: (w dniach roboczych)
D46: wniosek
C50: Razem | E50: =SUM(E46:E49) -> 0 | F50: =SUM(F46:F49) -> 0

Sheet Creotech Instruments S.A.
A1: Spis treści
C2: Creotech Instruments S.A.
A3: PROSPEKT | B3: zakończone | C3: Prospekt akcji
A5: 410.55.2021
C6: Data | E6: Czynności po stronie urzędu | F6: Czynności po stronie emitenta
E7: (w dniach roboczych)
C8: 2021-12-27 | D8: wniosek
C9: 2022-01-24 | E9: 19
C10: 2022-02-10 | F10: 13
C11: 2022-02-23 | E11: 9
C12: 2022-03-09 | F12: 10
C13: 2022-03-22 | E13: 9
C14: 2022-03-28 | F14: 4
C15: 2022-04-06 | E15: 7
C16: 2022-04-12 | F16: 4
C17: 2022-04-15 | E17: 3
C18: 2022-04-19 | F18: 1
C19: 2022-04-21 | E19: 2
C20: 2022-04-22 | F20: 1
C21: 2022-04-25 | D21: decyzja | E21: 1
C23: Razem | E23: =SUM(E8:E22) -> 50 | F23: =SUM(F8:F22) -> 33
A27: SUPLEMENTY | C27: =$C$2 -> Creotech Instruments S.A.
B28: zakończone | C28: Suplement nr 1
C30: Data | E30: Czynności po stronie urzędu | F30: Czynności po stronie emitenta
E31: (w dniach roboczych)
C32: 2022-04-28 | D32: wniosek
C33: 2022-05-02 | E33: 2
C34: 2022-05-05 | F34: 2
C35: 2022-05-10 | D35: decyzja | E35: 3
C36: Razem | E36: =SUM(E32:E35) -> 5 | F36: =SUM(F32:F35) -> 2
C40: =$C$2 -> Creotech Instruments S.A.
B41: zakończone | C41: Suplement nr 2
C43: Data | E43: Czynności po stronie urzędu | F43: Czynności po stronie emitenta
E44: (w dniach roboczych)
C45: 2022-05-18 | D45: wniosek
C46: 2022-05-23 | D46: decyzja | E46: 3
C47: Razem | E47: =SUM(E45:E46) -> 3 | F47: =SUM(F45:F46) -> 0
C52: =$C$2 -> Creotech Instruments S.A.
B53: zakończone | C53: Suplement nr 3
C55: Data | E55: Czynności po stronie urzędu | F55: Czynności po stronie emitenta
E56: (w dniach roboczych)
C57: 2022-06-02 | D57: wniosek
C58: 2022-06-03 | D58: decyzja | E58: 1
C59: Razem | E59: =SUM(E57:E58) -> 1 | F59: =SUM(F57:F58) -> 0
C66: =$C$2 -> Creotech Instruments S.A.
B67: zakończone | C67: Suplement nr 4
C69: Data | E69: Czynności po stronie urzędu | F69: Czynności po stronie emitenta
E70: (w dniach roboczych)
C71: 2022-06-08 | D71: wniosek
C72: 2022-06-10 | D72: decyzja | E72: 2
C73: Razem | E73: =SUM(E71:E72) -> 2 | F73: =SUM(F71:F72) -> 0

Sheet SimFabric S.A.
A1: Spis treści
C2: SimFabric S.A.
A3: PROSPEKT | B3: zakończone | C3: Prospekt
A5: 410.54.2021
C6: Data | E6: Czynności po stronie urzędu | F6: Czynności po stronie emitenta
E7: (w dniach roboczych)
C8: 2021-12-16 | D8: wniosek
C9: 2022-01-12 | E9: =PracaKNF(C8,C9) -> 18
C10: 2022-01-28 | F10: =PracaKNF(C9,C10) -> 12
C11: 2022-02-10 | E11: 9
C12: 2022-02-28 | F12: 12
C13: 2022-03-14 | E13: 10
C14: 2022-04-01 | F14: 14
C15: 2022-04-15 | E15: 10
C16: 2022-04-29 | F16: 9
C17: 2022-05-13 | E17: 9
C18: 2022-06-08 | F18: 18
C19: 2022-06-23 | E19: 10
C20: 2022-07-01 | F20: 6
C21: 2022-07-12 | E21: 7
C22: 2022-07-19 | F22: 5
C23: 2022-07-27 | E23: 6
C24: 2022-07-28 | F24: 1
C25: 2022-07-29 | D25: decyzja
C27: Razem | E27: =SUM(E8:E26) -> 79 | F27: =SUM(F8:F26) -> 77
A31: SUPLEMENTY | C31: =$C$2 -> SimFabric S.A.
C32: Suplement nr 1
C34: Data | E34: Czynności po stronie urzędu | F34: Czynności po stronie emitenta
E35: (w dniach roboczych)
D36: wniosek
C40: Razem | E40: =SUM(E36:E39) -> 0 | F40: =SUM(F36:F39) -> 0

Sheet Millennium Bank Hipoteczny
A1: Spis treści
C2: Millennium Bank Hipoteczny S.A.
A3: PROSPEKT | B3: zakończone | C3: Prospekt podstawowy listów zastawnych
A5: 410.49.2021
C6: Data | E6: Czynności po stronie urzędu | F6: Czynności po stronie emitenta
E7: (w dniach roboczych)
C8: 2021-11-25 | D8: wniosek
C9: 2021-12-22 | E9: 19
C10: 2021-01-05 | F10: 10
C11: 2022-01-20 | E11: 10
C12: 2022-02-03 | F12: 11
C13: 2022-02-16 | E13: 9
C14: 2022-03-02 | F14: 10
C15: 2022-03-16 | E15: 10
C16: 2022-03-30 | F16: 10
C17: 2022-04-08 | E17: 7
C18: 2022-04-13 | F18: 3
C19: 2022-04-21 | F19: 6
C20: 2022-04-29 | D20: decyzja | E20: 6
C21: Razem | E21: =SUM(E8:E20) -> 61 | F21: =SUM(F8:F20) -> 50
A25: SUPLEMENTY | C25: =$C$2 -> Millennium Bank Hipoteczny S.A.
B26: zakończone | C26: Suplement nr 1
C28: Data | E28: Czynności po stronie urzędu | F28: Czynności po stronie emitenta
E29: (w dniach roboczych)
C30: 2022-08-02 | D30: wniosek
C31: 2022-08-05 | E31: 3
C34: Razem | E34: =SUM(E30:E33) -> 3 | F34: =SUM(F30:F33) -> 0

Sheet 3LP
A1: Spis treści
C2: 3LP
A3: PROSPEKT | B3: zakończone | C3: Prospekt
A5: 410.47.2021
C6: Data | E6: Czynności po stronie urzędu | F6: Czynności po stronie emitenta
E7: (w dniach roboczych)
C8: 2021-11-05 | D8: wniosek
C9: 2021-12-03 | E9: 19
C10: 2021-12-17 | F10: 10
C11: 2021-12-29 | E11: 8
C12: 2022-01-11 | F12: 8
C13: 2022-01-24 | E13: 9
C14: 2022-02-04 | F14: 9
C15: 2022-02-18 | E15: 10
C16: 2022-03-23 | F16: 23
C17: 2022-04-04 | E17: 8
C18: 2022-04-14 | F18: 8
C19: 2022-04-20 | E19: 3
C20: 2022-04-21 | F20: 1
C21: 2022-04-22 | F21: 1
C22: 2022-04-25 | D22: decyzja | E22: 1
C24: Razem | E24: =SUM(E8:E23) -> 58 | F24: =SUM(F8:F23) -> 60
A28: SUPLEMENTY | C28: =$C$2 -> 3LP
B29: zakończone | C29: Suplement nr 1
C31: Data | E31: Czynności po stronie urzędu | F31: Czynności po stronie emitenta
E32: (w dniach roboczych)
C33: 2022-04-27 | D33: wniosek
C34: 2022-04-28 | E34: 1
C35: 2022-04-28 | F35: 0
C36: 2022-04-29 | D36: decyzja | E36: 1
C38: Razem | E38: =SUM(E33:E37) -> 2 | F38: =SUM(F33:F37) -> 0
C42: =$C$2 -> 3LP
B43: zakończone | C43: Suplement nr 2
C45: Data | E45: Czynności po stronie urzędu | F45: Czynności po stronie emitenta
E46: (w dniach roboczych)
C47: 2022-05-17 | D47: wniosek
C48: 2022-05-20 | E48: 3
C49: 2022-05-23 | F49: 1
C50: 2022-05-24 | D50: decyzja | E50: 1
C52: Razem | E52: =SUM(E47:E51) -> 4 | F52: =SUM(F47:F51) -> 1

Sheet Scope Fluidics SA
A1: Spis treści
C2: Scope Fluidics SA
A3: PROSPEKT | B3: zakończone | C3: Prospekt
A5: 410.51.2021
C6: Data | E6: Czynności po stronie urzędu | F6: Czynności po stronie emitenta
E7: (w dniach roboczych)
C8: 2021-11-16 | D8: wniosek
C9: 2021-12-14 | E9: 20
C10: 2021-12-28 | F10: 12
C11: 2022-01-12 | E11: 10
C12: 2022-01-26 | F12: 10
C13: 2022-02-08 | E13: 9
C14: 2022-03-08 | F14: 20
C15: 2022-03-22 | E15: 10
C16: 2022-04-05 | F16: 10
C17: 2022-04-19 | E17: 9
C18: 2022-10-13 | F18: 124
C19: 2022-10-27 | E19: 10
C20: 2022-11-10 | F20: 9
C21: 2022-11-25 | E21: 10
C22: 2022-12-01 | F22: 4
C23: 2022-12-02 | F23: 1
C24: 2022-12-08 | E24: 4
C25: 2022-12-09 | F25: 1
C26: 2022-12-12 | F26: 1
C27: 2022-12-20 | E27: 6
C28: 2022-12-30 | E28: 7
C29: 2023-01-03 | F29: 2
C30: 2023-01-12 | D30: decyzja | E30: 6
C32: Razem | E32: =SUM(E8:E31) -> 101 | F32: =SUM(F8:F31) -> 194
A36: SUPLEMENTY | C36: =$C$2 -> Scope Fluidics SA
C37: Suplement nr 1
C39: Data | E39: Czynności po stronie urzędu | F39: Czynności po stronie emitenta
E40: (w dniach roboczych)
D41: wniosek
C45: Razem | E45: =SUM(E41:E44) -> 0 | F45: =SUM(F41:F44) -> 0

Sheet Genomtec SA
A1: Spis treści
C2: Genomtec SA
A3: PROSPEKT | B3: zakończone | C3: Prospekt
A5: 410.48.2021
C6: Data | E6: Czynności po stronie urzędu | F6: Czynności po stronie emitenta
E7: (w dniach roboczych)
C8: 2021-11-12 | D8: wniosek
C9: 2021-12-10 | E9: 20
C10: 2022-01-05 | F10: 18
C11: 2022-01-20 | E11: 10
C12: 2022-02-11 | F12: 16
C13: 2022-02-24 | E13: 9
C14: 2022-04-29 | F14: 45
C15: 2022-05-16 | E15: 10
C16: 2022-06-08 | F16: 17
C17: 2022-06-22 | E17: 9
C18: 2022-07-11 | F18: 13
C19: 2022-07-25 | E19: 10
C20: 2022-08-24 | F20: 21
C21: 2022-09-07 | E21: 10
C22: 2022-09-23 | F22: 12
C23: 2022-10-07 | E23: 10
C24: 2022-10-13 | F24: 4
C25: 2022-10-25 | E25: 8
C26: 2022-11-03 | F26: 6
C27: 2022-11-09 | E27: 4
C28: 2022-11-15 | F28: 3
C29: 2022-11-18 | E29: =C29-C28 -> 3
C30: 2022-11-30 | F30: 8
C31: 2022-12-06 | E31: 4
C32: 2022-12-14 | F32: 6
C33: 2022-12-21 | E33: 5
C34: 2023-01-05 | F34: 10
C35: 2023-01-11 | E35: 4
C36: 2023-01-18 | F36: 5
C37: 2023-01-25 | D37: decyzja | E37: 5
C41: Razem | E41: =SUM(E8:E40) -> 121 | F41: =SUM(F8:F40) -> 184
A45: SUPLEMENTY | C45: =$C$2 -> Genomtec SA
C46: Suplement nr 1
C48: Data | E48: Czynności po stronie urzędu | F48: Czynności po stronie emitenta
E49: (w dniach roboczych)
D50: wniosek
C54: Razem | E54: =SUM(E50:E53) -> 0 | F54: =SUM(F50:F53) -> 0

Sheet EXCELLENCE
A1: Spis treści
C2: EXCELLENCE SA
A3: PROSPEKT | B3: zawieszone | C3: Prospekt
A5: 410.50.2021
C6: Data | E6: Czynności po stronie urzędu | F6: Czynności po stronie emitenta
E7: (w dniach roboczych)
C8: 2021-11-22 | D8: wniosek
C9: 2021-12-20 | E9: 20
C10: 2022-01-21 | F10: 23
C11: 2022-02-04 | E11: 10
C12: 2022-02-23 | F12: 13
C13: 2022-03-09 | E13: 10
C21: Razem | E21: =SUM(E8:E20) -> 40 | F21: =SUM(F8:F20) -> 36
A25: SUPLEMENTY | C25: =$C$2 -> EXCELLENCE SA
C26: Suplement nr 1
C28: Data | E28: Czynności po stronie urzędu | F28: Czynności po stronie emitenta
E29: (w dniach roboczych)
D30: wniosek
C34: Razem | E34: =SUM(E30:E33) -> 0 | F34: =SUM(F30:F33) -> 0

Sheet PGF Polska Grupa Fotowolt
A1: Spis treści
C2: PGF Polska Grupa Fotowoltaiczna
A3: PROSPEKT | B3: zawieszone | C3: Prospekt
A5: 410.49.2021
C6: Data | E6: Czynności po stronie urzędu | F6: Czynności po stronie emitenta
E7: (w dniach roboczych)
C8: 2021-11-03 | D8: wniosek
C9: 2021-11-18 | E9: 10
C21: Razem | E21: =SUM(E8:E20) -> 10 | F21: =SUM(F8:F20) -> 0
A25: SUPLEMENTY | C25: =$C$2 -> PGF Polska Grupa Fotowoltaiczna
C26: Suplement nr 1
C28: Data | E28: Czynności po stronie urzędu | F28: Czynności po stronie emitenta
E29: (w dniach roboczych)
D30: wniosek
C34: Razem | E34: =SUM(E30:E33) -> 0 | F34: =SUM(F30:F33) -> 0

Sheet Novavis Group
A1: Spis treści
C2: Novavis Group
A3: PROSPEKT | B3: zakończone | C3: Prospekt
A5: 410.45.2021
C6: Data | E6: Czynności po stronie urzędu | F6: Czynności po stronie emitenta
E7: (w dniach roboczych)
C8: 2021-11-03 | D8: wniosek
C9: 2021-11-18 | E9: 10
C10: 2021-11-26 | F10: 6
C11: 2021-12-10 | E11: 10
C12: 2021-12-23 | F12: 9
C13: 2022-01-03 | E13: 7
C14: 2022-01-05 | F14: 2
C15: 2022-01-19 | E15: 9
C16: 2022-02-09 | F16: 15
C17: 2022-02-23 | E17: 10
C18: 2022-03-09 | F18: 10
C19: 2022-03-22 | E19: 9
C20: 2022-03-30 | F20: 6
C21: 2022-04-08 | E21: 7
C22: 2022-04-11 | F22: 1
C23: 2022-04-21 | E23: 7
C24: 2022-04-22 | F24: 1
C25: 2022-04-28 | E25: 4
C26: 2022-05-05 | F26: 5
C27: 2022-05-17 | E27: 8
C28: 2022-05-18 | F28: 1
C29: 2022-05-31 | E29: 9
C30: 2022-06-29 | F30: 20
C31: 2022-07-12 | E31: 9
C32: 2022-07-15 | F32: 3
C33: 2022-07-28 | E33: 9
C34: 2022-07-28 | F34: 0
C35: 2022-08-05 | D35: decyzja | E35: 6
C37: Razem | E37: =SUM(E8:E36) -> 114 | F37: =SUM(F8:F36) -> 79
A41: SUPLEMENTY | C41: =$C$2 -> Novavis Group
C42: Suplement nr 1
C44: Data | E44: Czynności po stronie urzędu | F44: Czynności po stronie emitenta
E45: (w dniach roboczych)
D46: wniosek
C50: Razem | E50: =SUM(E46:E49) -> 0 | F50: =SUM(F46:F49) -> 0

Sheet Pointpack SA
A1: Spis treści
C2: Pointpack SA
A3: PROSPEKT | B3: zakończone | C3: Prospekt
A5: 410.46.2021
C6: Data | E6: Czynności po stronie urzędu | F6: Czynności po stronie emitenta
E7: (w dniach roboczych)
C8: 2021-10-29 | D8: wniosek
C9: 2021-11-29 | E9: 19
C10: 2021-12-23 | F10: 18
C11: 2022-01-05 | E11: 9
C12: 2022-04-06 | F12: 64
C13: 2022-04-21 | E13: 10
C14: 2022-05-19 | F14: 19
C15: 2022-06-02 | E15: 10
C16: 2022-06-20 | F16: 11
C17: 2022-07-01 | E17: 9
C18: 2022-07-12 | F18: 7
C19: 2022-07-26 | E19: 10
C20: 2022-08-02 | F20: 5
C21: 2022-08-17 | E21: 10
C22: 2022-09-14 | F22: 20
C23: 2022-09-27 | E23: 9
C24: 2022-10-24 | F24: 19
C25: 2022-11-04 | E25: 8
C26: 2022-11-18 | F26: 9
C27: 2022-12-01 | E27: 9
C28: 2022-12-12 | F28: 7
C29: 2022-12-16 | E29: 4
C30: 2022-12-21 | F30: 3
C31: 2023-01-03 | E31: 8
C32: 2023-01-16 | F32: 8
C33: 2023-01-27 | D33: decyzja | E33: 9
C35: Razem | E35: =SUM(E8:E34) -> 124 | F35: =SUM(F8:F34) -> 190
A39: SUPLEMENTY | C39: =$C$2 -> Pointpack SA
B40: zakończone | C40: Suplement nr 1
C42: Data | E42: Czynności po stronie urzędu | F42: Czynności po stronie emitenta
E43: (w dniach roboczych)
C44: 2023-03-27 | D44: wniosek
C45: 2023-03-29 | E45: 2
C46: 2023-04-04 | F46: 4
C47: 2023-04-05 | F47: 1
C48: 2023-04-12 | D48: decyzja | E48: 4
C50: Razem | E50: =SUM(E44:E49) -> 6 | F50: =SUM(F44:F49) -> 5
C52: =$C$2 -> Pointpack SA
B53: zakończone | C53: Suplement nr 2
C55: Data | E55: Czynności po stronie urzędu | F55: Czynności po stronie emitenta
E56: (w dniach roboczych)
C57: 2023-05-18 | D57: wniosek
C58: 2023-05-22 | E58: 2
C59: 2023-06-01 | F59: 8
C60: 2023-06-05 | D60: decyzja | E60: 2
C62: Razem | E62: =SUM(E57:E61) -> 4 | F62: =SUM(F57:F61) -> 8
C64: =$C$2 -> Pointpack SA
B65: zakończone | C65: Suplement nr 3
C67: Data | E67: Czynności po stronie urzędu | F67: Czynności po stronie emitenta
E68: (w dniach roboczych)
C69: 2023-09-05 | D69: wniosek
C70: 2023-09-08 | D70: decyzja | E70: 3
C72: Razem | E72: =SUM(E69:E71) -> 3 | F72: =SUM(F69:F71) -> 0

Sheet Skotan
A1: Spis treści
C2: Skotan SA
A3: PROSPEKT | B3: zakończone | C3: Prospekt
A5: 410.37.2021
C6: Data | E6: Czynności po stronie urzędu | F6: Czynności po stronie emitenta
E7: (w dniach roboczych)
C8: 2021-10-20 | D8: wniosek
C9: 2021-10-29 | E9: 7
C10: 2021-11-30 | F10: 20
C11: 2021-12-09 | E11: 7
C12: 2021-12-23 | F12: 10
C13: 2022-01-03 | E13: 7
C14: 2022-01-17 | F14: 9
C15: 2022-01-26 | E15: 7
C16: 2022-02-04 | F16: 7
C17: 2022-02-15 | E17: 7
C18: 2022-03-01 | F18: 10
C19: 2022-03-10 | E19: 7
C20: 2022-03-24 | F20: 10
C21: 2022-03-31 | D21: aktualizacja | F21: 5
C22: 2022-04-04 | D22: decyzja | E22: 2
C24: Razem | E24: =SUM(E8:E23) -> 44 | F24: =SUM(F8:F23) -> 71
A28: SUPLEMENTY | C28: =$C$2 -> Skotan SA
B29: zakończone | C29: Suplement nr 1
C31: Data | E31: Czynności po stronie urzędu | F31: Czynności po stronie emitenta
E32: (w dniach roboczych)
C33: 2022-04-13 | D33: wniosek
C34: 2022-04-21 | D34: decyzja | E34: 5
C37: Razem | E37: =SUM(E33:E36) -> 5 | F37: =SUM(F33:F36) -> 0
A40: SUPLEMENTY | C40: =$C$2 -> Skotan SA
B41: zakończone | C41: Suplement nr 2
C43: Data | E43: Czynności po stronie urzędu | F43: Czynności po stronie emitenta
E44: (w dniach roboczych)
C45: 2022-04-29 | D45: wniosek
C46: 2022-05-04 | D46: decyzja | E46: 2
C49: Razem | E49: =SUM(E45:E48) -> 2 | F49: =SUM(F45:F48) -> 0
A52: SUPLEMENTY | C52: =$C$2 -> Skotan SA
B53: zakończone | C53: Suplement nr 3
C55: Data | E55: Czynności po stronie urzędu | F55: Czynności po stronie emitenta
E56: (w dniach roboczych)
C57: 2022-05-27 | D57: wniosek
C58: 2022-06-03 | E58: 5
C61: Razem | E61: =SUM(E57:E60) -> 5 | F61: =SUM(F57:F60) -> 0

Sheet BETA ETF S&P 500 PLN-Hedg
A1: Spis treści
C2: BETA ETF S&P 500 PLN-Hedged Portfelowy FIZ (2021)
A3: PROSPEKT | B3: zakończone | C3: Prospekt
A5: 410.43.2021
C6: Data | E6: Czynności po stronie urzędu | F6: Czynności po stronie emitenta
E7: (w dniach roboczych)
C8: 2021-10-04 | D8: wniosek
C9: 2021-10-18 | E9: 10
C10: 2021-11-02 | F10: 10
C11: 2021-11-05 | E11: 3
C12: 2021-11-05 | F12: 0
C13: 2021-11-08 | E13: 1
C14: 2021-11-08 | F14: 0
C15: 2021-11-10 | D15: aktualizacja | F15: 2
C16: 2021-11-15 | D16: decyzja | E16: 2
C21: Razem | E21: =SUM(E8:E20) -> 16 | F21: =SUM(F8:F20) -> 12
A25: SUPLEMENTY | C25: =$C$2 -> BETA ETF S&P 500 PLN-Hedged Portfelowy FIZ (2021)
C26: Suplement nr 1
C28: Data | E28: Czynności po stronie urzędu | F28: Czynności po stronie emitenta
E29: (w dniach roboczych)
D30: wniosek
C34: Razem | E34: =SUM(E30:E33) -> 0 | F34: =SUM(F30:F33) -> 0

Sheet Beta ETF Nasdaq-100 PLN-H
A1: Spis treści
C2: Beta ETF Nasdaq-100 PLN-Hedged Portfelowy FIZ (2021)
A3: PROSPEKT | B3: zakończone | C3: Prospekt
A5: 410.42.2021
C6: Data | E6: Czynności po stronie urzędu | F6: Czynności po stronie emitenta
E7: (w dniach roboczych)
C8: 2021-10-04 | D8: wniosek
C9: 2021-10-15 | E9: 9
C10: 2021-10-29 | F10: 10
C11: 2021-11-04 | E11: 3
C12: 2021-11-05 | F12: 1
C13: 2021-11-08 | E13: 1
C14: 2021-11-08 | F14: 0
C15: 2021-11-10 | D15: aktualizacja | F15: 2
C16: 2021-11-15 | D16: decyzja | E16: 2
C21: Razem | E21: =SUM(E8:E20) -> 15 | F21: =SUM(F8:F20) -> 13
A25: SUPLEMENTY | C25: =$C$2 -> Beta ETF Nasdaq-100 PLN-Hedged Portfelowy FIZ (2021)
C26: Suplement nr 1
C28: Data | E28: Czynności po stronie urzędu | F28: Czynności po stronie emitenta
E29: (w dniach roboczych)
D30: wniosek
C34: Razem | E34: =SUM(E30:E33) -> 0 | F34: =SUM(F30:F33) -> 0

Sheet Polenergia SA
A1: Spis treści
C2: Polenergia SA
A3: PROSPEKT | B3: zakończone | C3: Prospekt
A5: 410.24.2021
C6: Data | E6: Czynności po stronie urzędu | F6: Czynności po stronie emitenta
E7: (w dniach roboczych)
C8: 2021-10-01 | D8: wniosek
C9: 2021-10-14 | E9: 9
C10: 2021-10-28 | F10: 10
C11: 2021-11-15 | E11: 10
C12: 2021-11-29 | F12: 10
C13: 2021-12-13 | E13: 10
C14: 2021-12-20 | F14: 5
C15: 2022-01-03 | E15: 10
C16: 2022-01-05 | F16: 2
C17: 2022-01-14 | E17: 6
C18: 2022-01-25 | F18: 7
C19: 2022-01-26 | E19: 1
C20: 2022-01-27 | F20: 1
C21: 2022-01-27 | D21: decyzja | E21: 0
C23: Razem | E23: =SUM(E8:E22) -> 46 | F23: =SUM(F8:F22) -> 35
A27: SUPLEMENTY | C27: =$C$2 -> Polenergia SA
B28: zakończone | C28: Suplement nr 1
C30: Data | E30: Czynności po stronie urzędu | F30: Czynności po stronie emitenta
E31: (w dniach roboczych)
C32: 2022-04-07 | D32: wniosek
C33: 2022-04-07 | D33: decyzja | E33: 0
C36: Razem | E36: =SUM(E32:E35) -> 0 | F36: =SUM(F32:F35) -> 0
A38: SUPLEMENTY | C38: =$C$2 -> Polenergia SA
B39: zakończone | C39: Suplement nr 2
C41: Data | E41: Czynności po stronie urzędu | F41: Czynności po stronie emitenta
E42: (w dniach roboczych)
C43: 2022-04-07 | D43: wniosek
C44: 2022-04-08 | E44: 1
C47: Razem | E47: =SUM(E43:E46) -> 1 | F47: =SUM(F43:F46) -> 0

Sheet Oferteo 2021
A1: Spis treści
C2: Oferteo
A3: PROSPEKT | B3: zawieszone | C3: Prospekt
A5: 410.36.2021
C6: Data | E6: Czynności po stronie urzędu | F6: Czynności po stronie emitenta
E7: (w dniach roboczych)
C8: 2021-09-24 | D8: wniosek
C9: 2021-10-22 | E9: 20
F10: =PracaKNF(C9,C10) -> 0
C21: Razem | E21: =SUM(E8:E20) -> 20 | F21: =SUM(F8:F20) -> 0
A25: SUPLEMENTY | C25: =$C$2 -> Oferteo
C26: Suplement nr 1
C28: Data | E28: Czynności po stronie urzędu | F28: Czynności po stronie emitenta
E29: (w dniach roboczych)
D30: wniosek
C34: Razem | E34: =SUM(E30:E33) -> 0 | F34: =SUM(F30:F33) -> 0

Sheet Grupa Pracuj S.A.
A1: Spis treści
C2: Grupa Pracuj S.A.
A3: PROSPEKT | B3: zakończone | C3: Prospekt akcji
A5: 410.31.2021
C6: Data | E6: Czynności po stronie urzędu | F6: Czynności po stronie emitenta
E7: (w dniach roboczych)
C8: 2021-09-06 | D8: wniosek
C9: 2021-09-24 | E9: 14
C10: 2021-10-01 | F10: 5
C11: 2021-10-14 | E11: 9
C12: 2021-10-22 | F12: 6
C13: 2021-11-08 | E13: 10
C14: 2021-11-10 | F14: 2
C15: 2021-11-15 | D15: decyzja | E15: 2 | G15: 0
C21: Razem | E21: 35 | F21: 13
A25: SUPLEMENTY | C25: =$C$2 -> Grupa Pracuj S.A.
C26: Suplement nr 1
C28: Data | E28: Czynności po stronie urzędu | F28: Czynności po stronie emitenta
E29: (w dniach roboczych)
D30: wniosek
C34: Razem | E34: =SUM(E30:E33) -> 0 | F34: =SUM(F30:F33) -> 0

Sheet Cavatina Holding (obligacje)
A1: Spis treści
C2: Cavatina Holding (obligacje)
A3: PROSPEKT | B3: zakończone | C3: Prospekt
A5: 410.38.2021
C6: Data | E6: Czynności po stronie urzędu | F6: Czynności po stronie emitenta
E7: (w dniach roboczych)
C8: 2021-09-21 | D8: wniosek
C9: 2021-10-05 | E9: 10
C10: 2021-10-12 | F10: 5
C11: 2021-10-26 | E11: 10
C12: 2021-11-08 | F12: 8
C13: 2021-11-16 | D13: aktualizacja | F13: 5
C14: 2021-11-22 | E14: 4
C15: 2021-11-30 | F15: 6
C16: 2021-12-14 | E16: 10
C17: 2021-12-22 | F17: 6
C18: 2022-01-03 | D18: aktualizacja | F18: 8
C19: 2022-01-10 | D19: decyzja | E19: 4
C21: Razem | E21: =SUM(E8:E20) -> 38 | F21: =SUM(F8:F20) -> 38
A25: SUPLEMENTY | C25: =$C$2 -> Cavatina Holding (obligacje)
B26: zakończone | C26: Suplement nr 1
C28: Data | E28: Czynności po stronie urzędu | F28: Czynności po stronie emitenta
E29: (w dniach roboczych)
C30: 2022-03-31 | D30: wniosek
C31: 2022-04-04 | E31: 2
C32: 2022-04-06 | F32: 2
C33: 2022-04-07 | E33: 1
C35: Razem | E35: =SUM(E30:E34) -> 3 | F35: =SUM(F30:F34) -> 2
A40: SUPLEMENTY | C40: =$C$2 -> Cavatina Holding (obligacje)
B41: zakończone | C41: Suplement nr 2
C43: Data | E43: Czynności po stronie urzędu | F43: Czynności po stronie emitenta
E44: (w dniach roboczych)
C45: 2022-05-30 | D45: wniosek
C46: 2022-06-02 | E46: 3
C49: Razem | E49: =SUM(E45:E48) -> 3 | F49: =SUM(F45:F48) -> 0

Sheet Beta ETF WIG20TR
A1: Spis treści
C2: Beta ETF WIG20TR Portfelowy FIZ
A3: PROSPEKT | B3: zakończone | C3: Prospekt
A5: 410.34.2021
C6: Data | E6: Czynności po stronie urzędu | F6: Czynności po stronie emitenta
E7: (w dniach roboczych)
C8: 2021-09-07 | D8: wniosek
C9: 2021-09-21 | E9: 10
C10: 2021-10-05 | F10: 10
C11: 2021-10-08 | E11: 3
C12: 2021-10-11 | F12: 1
C13: 2021-10-15 | D13: decyzja | E13: 4
C21: Razem | E21: 17 | F21: 11
A25: SUPLEMENTY | C25: =$C$2 -> Beta ETF WIG20TR Portfelowy FIZ
C26: Suplement nr 1
C28: Data | E28: Czynności po stronie urzędu | F28: Czynności po stronie emitenta
E29: (w dniach roboczych)
D30: wniosek
C34: Razem | E34: =SUM(E30:E33) -> 0 | F34: =SUM(F30:F33) -> 0

Sheet STS Holding S.A.
A1: Spis treści
C2: STS Holding S.A.
A3: PROSPEKT | B3: zakończone | C3: Prospekt
A5: 410.35.2021
C6: Data | E6: Czynności po stronie urzędu | F6: Czynności po stronie emitenta
E7: (w dniach roboczych)
C8: 2021-09-06 | D8: wniosek
C9: 2021-10-01 | E9: 19
C10: 2021-10-10 | F10: 5
C11: 2021-10-21 | E11: 9
C12: 2021-11-01 | F12: 6
C13: 2021-11-10 | E13: 7
C14: 2021-11-17 | F14: 4
C15: 2021-11-18 | E15: 1
C16: 2021-11-19 | F16: 1
C17: 2021-11-23 | D17: decyzja | E17: 2
C21: Razem | E21: 38 | F21: 16
A25: SUPLEMENTY | C25: =$C$2 -> STS Holding S.A.
B26: zakończone | C26: Suplement nr 1
C28: Data | E28: Czynności po stronie urzędu | F28: Czynności po stronie emitenta
E29: (w dniach roboczych)
C30: 2021-11-26 | D30: wniosek
C31: 2021-11-29 | E31: 1
C32: 2021-11-29 | F32: 0
C33: 2021-11-30 | D33: decyzja | E33: 1
C35: Razem | E35: =SUM(E30:E34) -> 2 | F35: =SUM(F30:F34) -> 0

Sheet Echo Investment S.A. ( ob
A1: Spis treści
C2: Echo Investment S.A.
A3: PROSPEKT | B3: zakończone | C3: Prospekt podstawowy
C6: Data | E6: Czynności po stronie urzędu | F6: Czynności po stronie emitenta
E7: (w dniach roboczych)
C8: 2021-09-01 | D8: wniosek
C9: 2021-09-14 | E9: 9
C10: 2021-10-05 | F10: 15
C11: 2021-10-19 | E11: 10
C12: 2021-11-03 | F12: 10
C13: 2021-11-17 | E13: 9
C14: 2021-11-18 | F14: 1
C15: 2021-11-23 | E15: 3
C16: 2021-11-24 | F16: 1
C17: 2021-11-24 | E17: 0
C18: 2021-11-26 | D18: decyzja | F18: 2
C21: Razem | E21: 31 | F21: 29
A27: SUPLEMENTY | C27: =$C$3 -> Prospekt podstawowy
B28: zakończone | C28: Suplement nr 1
C30: Data | E30: Czynności po stronie urzędu | F30: Czynności po stronie emitenta
E31: (w dniach roboczych)
C32: 2021-12-03 | D32: wniosek
C33: 2021-12-07 | F33: 2
C34: 2021-12-08 | D34: decyzja | E34: 1
C36: Razem | E36: =SUM(E32:E35) -> 1 | F36: =SUM(F32:F35) -> 2
C39: =$C$3 -> Prospekt podstawowy
B40: zakończone | C40: Suplement nr 2
C42: Data | E42: Czynności po stronie urzędu | F42: Czynności po stronie emitenta
E43: (w dniach roboczych)
C44: 2022-04-14 | D44: wniosek
C45: 2022-04-21 | E45: 4
C46: 2022-04-21 | F46: 0
C47: 2022-04-25 | D47: decyzja | E47: 2
C49: Razem | E49: =SUM(E44:E48) -> 6 | F49: =SUM(F44:F48) -> 0
C51: =$C$3 -> Prospekt podstawowy
B52: zakończone | C52: Suplement nr 3
C54: Data | E54: Czynności po stronie urzędu | F54: Czynności po stronie emitenta
E55: (w dniach roboczych)
C56: 2022-06-07 | D56: wniosek
C57: 2022-06-08 | D57: decyzja | E57: 1
C59: Razem | E59: =SUM(E56:E58) -> 1 | F59: =SUM(F56:F58) -> 0
A64: SUPLEMENTY | C64: =$C$2 -> Echo Investment S.A.
B65: zakończone | C65: Suplement nr 4
C67: Data | E67: Czynności po stronie urzędu | F67: Czynności po stronie emitenta
E68: (w dniach roboczych)
C69: 2022-10-07 | D69: wniosek
C70: 2022-10-10 | D70: decyzja | E70: 1
C73: Razem | E73: =SUM(E69:E72) -> 1 | F73: =SUM(F69:F72) -> 0

Sheet BioMaxima S.A.
A1: Spis treści
C2: BioMaxima S.A.
A3: PROSPEKT | B3: zakończone | C3: Prospekt
A5: 410.32.2021
C6: Data | E6: Czynności po stronie urzędu | F6: Czynności po stronie emitenta
E7: (w dniach roboczych)
C8: 2021-09-01 | D8: wniosek
C9: 2021-09-29 | E9: 20
C10: 2021-10-20 | F10: 15
C11: 2021-11-04 | E11: 10
C12: 2021-11-22 | F12: 11
C13: 2021-12-06 | E13: 10
C14: 2021-12-10 | F14: 4
C15: 2021-12-14 | F15: 2
C16: 2021-12-23 | E16: 7
C17: 2021-12-28 | F17: 3
C18: 2021-12-29 | F18: 1
C19: 2021-12-30 | F19: 1
C20: 2021-12-31 | D20: decyzja | E20: 1
C22: Razem | E22: =SUM(E8:E21) -> 48 | F22: =SUM(F8:F21) -> 37
A26: SUPLEMENTY | C26: =$C$2 -> BioMaxima S.A.
B27: zakończone | C27: Suplement nr 1
C29: Data | E29: Czynności po stronie urzędu | F29: Czynności po stronie emitenta
E30: (w dniach roboczych)
C31: 2022-01-12 | D31: wniosek
C32: 2022-01-13 | F32: 1
C33: 2022-01-14 | E33: 1
C34: 2022-01-17 | F34: 1
C35: 2022-01-21 | F35: 4
C36: 2022-01-21 | D36: decyzja | E36: 0
C38: Razem | E38: =SUM(E31:E37) -> 1 | F38: =SUM(F31:F37) -> 6
C40: =$C$2 -> BioMaxima S.A.
B41: zakończone | C41: Suplement nr 2
C43: Data | E43: Czynności po stronie urzędu | F43: Czynności po stronie emitenta
E44: (w dniach roboczych)
C45: 2022-01-13 | D45: wniosek
C46: 2022-01-14 | F46: 1
C47: 2022-01-21 | D47: decyzja | E47: 5
C51: Razem | E51: =SUM(E45:E50) -> 5 | F51: =SUM(F45:F50) -> 1

Sheet Transition Technologies MS SA
A1: Spis treści
C2: Transition Technologies MS SA
A3: PROSPEKT | B3: zawieszone | C3: Prospekt
A5: 410.28.2021
C6: Data | E6: Czynności po stronie urzędu | F6: Czynności po stronie emitenta
E7: (w dniach roboczych)
C8: 2021-08-12 | D8: wniosek
C9: 2021-09-10 | E9: 20
C10: 2021-09-24 | F10: 10
C11: 2021-10-08 | E11: 10
C12: 2021-10-22 | F12: 10
C13: 2021-11-08 | E13: 10
C14: 2021-11-20 | F14: 10
C15: 2021-12-03 | E15: 10
C16: 2021-12-18 | F16: 10
C17: 2021-12-29 | E17: 8
C18: 2022-01-12 | F18: 9
C19: 2022-01-22 | E19: 7
C20: 2022-01-27 | F20: 4
C21: 2022-01-31 | E21: 2
C22: 2022-02-08 | F22: 6
C23: 2022-02-21 | E23: 9
C27: Razem | E27: =SUM(E8:E26) -> 76 | F27: =SUM(F8:F26) -> 59
A31: SUPLEMENTY | C31: =$C$2 -> Transition Technologies MS SA
C32: Suplement nr 1
C34: Data | E34: Czynności po stronie urzędu | F34: Czynności po stronie emitenta
E35: (w dniach roboczych)
D36: wniosek
C40: Razem | E40: =SUM(E36:E39) -> 0 | F40: =SUM(F36:F39) -> 0

Sheet Bio Planet SA
A1: Spis treści
C2: Bio Planet SA
A3: PROSPEKT | B3: zakończone | C3: Prospekt
A5: 410.20.2021
C6: Data | E6: Czynności po stronie urzędu | F6: Czynności po stronie emitenta
E7: (w dniach roboczych)
C8: 2021-07-23 | D8: wniosek
C9: 2021-08-20 | E9: 20
C10: 2021-09-01 | F10: 8
C11: 2021-09-15 | E11: 10
C12: 2021-09-24 | F12: 7
C13: 2021-10-07 | E13: 9
C14: 2021-10-14 | F14: 5
C15: 2021-10-28 | D15: decyzja | E15: 10
C21: Razem | E21: 49 | F21: 20
A25: SUPLEMENTY | C25: =$C$2 -> Bio Planet SA
B26: zakończone | C26: Suplement nr 1
C28: Data | E28: Czynności po stronie urzędu | F28: Czynności po stronie emitenta
E29: (w dniach roboczych)
C30: 2021-11-16 | D30: wniosek
C31: 2021-11-17 | D31: decyzja | E31: 1
F32: 0
C34: Razem | E34: 1 | F34: 0

Sheet DESA S.A.
A1: Spis treści
C2: DESA S.A.
A3: PROSPEKT | B3: zawieszone | C3: Prospekt
A5: 410.29.2021
C6: Data | E6: Czynności po stronie urzędu | F6: Czynności po stronie emitenta
E7: (w dniach roboczych)
C8: 2021-08-17 | D8: wniosek
C9: 2021-09-14 | E9: 20
C10: 2021-10-01 | F10: 13
C11: 2021-10-15 | E11: 10
C12: 2021-10-26 | F12: 7
C13: 2021-11-09 | E13: 9
C14: 2021-11-16 | F14: 4
C15: 2021-11-19 | E15: 3
C16: 2021-11-29 | F16: 6
C17: 2021-12-02 | F17: 3
C18: 2021-12-10 | E18: 6
C19: 2022-02-01 | F19: 35
C20: 2022-02-15 | E20: 10
C21: 2022-02-18 | F21: 3
C22: 2022-03-01 | E22: 7
C23: 2022-03-15 | F23: 10
C24: 2022-03-25 | E24: 8
C25: 2022-05-06 | F25: 28
C26: 2022-05-20 | E26: 10
C27: 2022-06-02 | F27: 9
C28: 2022-06-15 | E28: 9
C29: 2022-06-27 | F29: 7
C30: 2022-07-04 | E30: 5
C33: Razem | E33: =SUM(E8:E32) -> 97 | F33: =SUM(F8:F32) -> 125
A37: SUPLEMENTY | C37: =$C$2 -> DESA S.A.
C38: Suplement nr 1
C40: Data | E40: Czynności po stronie urzędu | F40: Czynności po stronie emitenta
E41: (w dniach roboczych)
D42: wniosek
C46: Razem | E46: =SUM(E42:E45) -> 0 | F46: =SUM(F42:F45) -> 0

Sheet Vortex Energy S.A.
A1: Spis treści
C2: Vortex Energy S.A.
A3: PROSPEKT | B3: zakończone | C3: Prospekt
A5: 410.22.2021
C6: Data | E6: Czynności po stronie urzędu | F6: Czynności po stronie emitenta
E7: (w dniach roboczych)
C8: 2021-08-12 | D8: wniosek
C9: 2021-09-09 | E9: 20
C10: 2021-09-27 | F10: 12
C11: 2021-10-11 | E11: 10
C12: 2021-10-18 | F12: 5
C13: 2021-11-02 | E13: 10
C14: 2021-11-08 | F14: 4
C15: 2021-11-23 | E15: 10
C16: 2021-11-29 | F16: 4
C17: 2021-12-13 | E17: 10
C18: 2021-12-23 | F18: 8
C19: 2022-01-03 | E19: 7
C20: 2022-01-11 | F20: 5
C21: 2022-01-21 | E21: 8
C22: 2022-01-26 | F22: 3
C23: 2022-02-03 | E23: 6
C24: 2022-02-04 | F24: 1
C25: 2022-02-09 | E25: 3
C26: 2022-02-11 | F26: 2
C27: 2022-02-15 | F27: 2
C28: 2022-02-17 | D28: decyzja | E28: 2
C30: Razem | E30: =SUM(E8:E29) -> 86 | F30: =SUM(F8:F29) -> 46
A34: SUPLEMENTY | C34: =$C$2 -> Vortex Energy S.A.
B35: zakończone | C35: Suplement nr 1
C37: Data | E37: Czynności po stronie urzędu | F37: Czynności po stronie emitenta
E38: (w dniach roboczych)
C39: 2022-03-02 | D39: wniosek
C40: 2022-03-03 | D40: decyzja | E40: 1
C43: Razem | E43: =SUM(E39:E42) -> 1 | F43: =SUM(F39:F42) -> 0
C46: =$C$2 -> Vortex Energy S.A.
B47: zakończone | C47: Suplement nr 2
C49: Data | E49: Czynności po stronie urzędu | F49: Czynności po stronie emitenta
E50: (w dniach roboczych)
C51: 2022-04-27 | D51: wniosek
C52: 2022-04-28 | E52: 1
C53: 2022-05-04 | F53: 3
C54: 2022-05-05 | F54: 1
C55: 2022-05-06 | F55: 1
C56: 2022-05-10 | E56: 2
C57: 2022-05-11 | F57: 1
C58: 2022-05-11 | D58: decyzja | E58: 0
C60: Razem | E60: =SUM(E51:E59) -> 3 | F60: =SUM(F51:F59) -> 6
C62: =$C$2 -> Vortex Energy S.A.
B63: zakończone | C63: Suplement nr 3
C65: Data | E65: Czynności po stronie urzędu | F65: Czynności po stronie emitenta
E66: (w dniach roboczych)
C67: 2022-06-02 | D67: wniosek
C68: 2022-06-07 | D68: decyzja | E68: 3
C71: Razem | E71: =SUM(E67:E70) -> 3 | F71: =SUM(F67:F70) -> 0

Sheet 3R Games SA
A1: Spis treści
C2: 3R Games SA
A3: PROSPEKT | B3: zakończone | C3: Prospekt
A5: 410.26.2021
C6: Data | E6: Czynności po stronie urzędu | F6: Czynności po stronie emitenta
E7: (w dniach roboczych)
C8: 2021-08-11 | D8: wniosek
C9: 2021-08-25 | E9: 10
C10: 2021-09-08 | F10: 10
C11: 2021-09-22 | E11: 10
C12: 2021-10-06 | F12: 10
C13: 2021-10-19 | E13: 9
C14: 2021-10-22 | F14: 3
C15: 2021-11-03 | E15: 7
C16: 2021-11-04 | F16: 1
C17: 2021-11-18 | E17: 9
C18: 2021-12-01 | F18: 9
C19: 2021-12-15 | E19: 10
C24: Razem | E24: =SUM(E8:E23) -> 55 | F24: =SUM(F8:F23) -> 33
A28: SUPLEMENTY | C28: =$C$2 -> 3R Games SA
C29: Suplement nr 1
C31: Data | E31: Czynności po stronie urzędu | F31: Czynności po stronie emitenta
E32: (w dniach roboczych)
D33: wniosek
C37: Razem | E37: =SUM(E33:E36) -> 0 | F37: =SUM(F33:F36) -> 0

Sheet Murapol S.A.
A1: Spis treści
C2: Murapol S.A.
A3: PROSPEKT | B3: zakończone | C3: Prospekt akcji
A5: 410.23.2021
C6: Data | E6: Czynności po stronie urzędu | F6: Czynności po stronie emitenta
E7: (w dniach roboczych)
C8: 2021-07-30 | D8: wniosek
C9: 2021-08-13 | E9: 10
C10: 2021-08-28 | F10: 10
C11: 2021-09-10 | E11: 10
C12: 2021-09-23 | F12: 9
C13: 2021-10-06 | E13: 9
C14: 2021-10-19 | F14: 9
C15: 2021-11-02 | E15: 9
C16: 2021-11-12 | F16: 7
C17: 2021-11-19 | D17: decyzja | E17: 5
C21: Razem | E21: 43 | F21: 35
A25: SUPLEMENTY | C25: =$C$2 -> Murapol S.A.
C26: Suplement nr 1
C28: Data | E28: Czynności po stronie urzędu | F28: Czynności po stronie emitenta
E29: (w dniach roboczych)
D30: wniosek
C34: Razem | E34: =SUM(E30:E33) -> 0 | F34: =SUM(F30:F33) -> 0

Sheet SpyroSoft S.A.
A1: Spis treści
C2: SpyroSoft S.A.
A3: PROSPEKT | B3: zakończone | C3: Prospekt
A5: 410.18.2021
C6: Data | E6: Czynności po stronie urzędu | F6: Czynności po stronie emitenta
E7: (w dniach roboczych)
C8: 2021-07-28 | D8: wniosek
C9: 2021-08-24 | E9: 19
C10: 2021-09-07 | F10: 10
C11: 2021-09-21 | E11: 10
C12: 2021-10-06 | F12: 11
C13: 2021-10-20 | E13: 10
C14: 2021-10-26 | F14: 4
C15: 2021-11-05 | E15: 7
C16: 2021-11-17 | F16: 7
C17: 2021-11-30 | E17: 9
C18: 2021-12-10 | F18: 8
C19: 2021-12-16 | F19: 4
C20: 2021-12-21 | E20: 3
C21: 2021-12-23 | F21: 2
C22: 2021-12-31 | D22: decyzja | E22: 6
C24: Razem | E24: =SUM(E8:E23) -> 64 | F24: =SUM(F8:F23) -> 46
A28: SUPLEMENTY | C28: =$C$2 -> SpyroSoft S.A.
B29: zakończone | C29: Suplement nr 1
C31: Data | E31: Czynności po stronie urzędu | F31: Czynności po stronie emitenta
E32: (w dniach roboczych)
C33: 2022-02-22 | D33: wniosek
C34: 2022-02-24 | E34: 2
C35: 2022-02-24 | F35: 0
C36: 2022-02-28 | E36: 2
C38: Razem | E38: =SUM(E33:E37) -> 4 | F38: =SUM(F33:F37) -> 0

Sheet ALL IN! GAMES SA
A1: Spis treści
C2: ALL IN! GAMES SA
A3: PROSPEKT | B3: w toku | C3: Prospekt
A5: 410.21.2021
C6: Data | E6: Czynności po stronie urzędu | F6: Czynności po stronie emitenta
E7: (w dniach roboczych)
C8: 2021-07-26 | D8: wniosek
C9: 2021-08-09 | E9: 10
C10: 2021-08-23 | F10: 10
C11: 2021-09-03 | E11: 9
C12: 2021-09-17 | F12: 10
C13: 2021-10-01 | E13: 10
C14: 2021-10-15 | F14: 10
C15: 2021-10-27 | E15: 8
C16: 2021-11-17 | F16: 13
C17: 2021-11-30 | E17: 9
C18: 2021-12-15 | F18: 11
C19: 2021-12-28 | E19: 9
C20: 2022-08-03 | F20: 152
C21: 2022-08-18 | E21: 10
C22: 2022-08-29 | F22: 7
C23: 2022-09-08 | E23: 8
C24: 2022-09-19 | F24: 8
C25: 2022-09-30 | E25: 9
C26: 2022-10-11 | F26: 8
C27: 2022-10-21 | E27: 8
C28: 2022-11-07 | F28: 10
C29: 2022-11-16 | E29: 6
C30: 2022-12-05 | F30: 13
C31: 2022-12-08 | E31: 3
C32: 2022-12-09 | F32: 1
C33: 2022-12-15 | E33: 4
C34: 2022-12-29 | F34: 9
C35: 2023-01-05 | E35: 5
C36: 2023-02-03 | F36: 20
C37: 2023-02-15 | E37: 8
C38: 2023-02-17 | F38: 2
C39: 2023-02-28 | E39: 7
C44: Razem | E44: =SUM(E8:E43) -> 123 | F44: =SUM(F8:F43) -> 284
A48: SUPLEMENTY | C48: =$C$2 -> ALL IN! GAMES SA
C49: Suplement nr 1
C51: Data | E51: Czynności po stronie urzędu | F51: Czynności po stronie emitenta
E52: (w dniach roboczych)
D53: wniosek
C57: Razem | E57: =SUM(E53:E56) -> 0 | F57: =SUM(F53:F56) -> 0

Sheet Metalkas S.A.
A1: Spis treści
C2: Metalkas S.A.
A3: PROSPEKT | B3: zawieszone | C3: Prospekt
A5: 410.19.2021
C6: Data | E6: Czynności po stronie urzędu | F6: Czynności po stronie emitenta
E7: (w dniach roboczych)
C8: 2021-07-21 | D8: wniosek
C9: 2021-08-18 | E9: 20
C10: 2021-10-07 | F10: 36
C11: 2021-10-21 | E11: 10
C12: 2021-11-11 | F12: 13
C13: 2021-11-25 | E13: 10
C14: 2021-12-14 | F14: 13
C15: 2021-12-28 | E15: 10
C16: 2022-01-12 | F16: 10
C17: 2022-01-25 | E17: 9
C21: Razem | E21: =SUM(E8:E20) -> 59 | F21: =SUM(F8:F20) -> 72
A25: SUPLEMENTY | C25: =$C$2 -> Metalkas S.A.
C26: Suplement nr 1
C28: Data | E28: Czynności po stronie urzędu | F28: Czynności po stronie emitenta
E29: (w dniach roboczych)
D30: wniosek
C34: Razem | E34: =SUM(E30:E33) -> 0 | F34: =SUM(F30:F33) -> 0

Sheet Poltreg S.A.
A1: Spis treści
C2: Poltreg S.A.
A3: PROSPEKT | B3: zakończone | C3: Prospekt
A5: 410.17.2021
C6: Data | E6: Czynności po stronie urzędu | F6: Czynności po stronie emitenta
E7: (w dniach roboczych)
C8: 2021-07-05 | D8: wniosek
C9: 2021-07-30 | E9: 19
C10: 2021-08-13 | F10: 10
C11: 2021-08-26 | E11: 9
C12: 2021-09-09 | F12: 10
C13: 2021-09-22 | E13: 9
C14: 2021-09-29 | F14: 5
C15: 2021-10-07 | E15: 6
C16: 2021-10-12 | F16: 3
C17: 2021-10-13 | D17: decyzja | E17: 1
C21: Razem | E21: 44 | F21: 28
A25: SUPLEMENTY | C25: =$C$2 -> Poltreg S.A.
B26: zakończone | C26: Suplement nr 1
C28: Data | E28: Czynności po stronie urzędu | F28: Czynności po stronie emitenta
E29: (w dniach roboczych)
C30: 2021-10-17 | D30: wniosek
C31: 2021-10-18 | D31: decyzja | E31: 1
F32: 0
C34: Razem | E34: =SUM(E30:E33) -> 1 | F34: =SUM(F30:F33) -> 0
C37: =$C$2 -> Poltreg S.A.
B38: zakończone | C38: Suplement nr 2
C40: Data | E40: Czynności po stronie urzędu | F40: Czynności po stronie emitenta
E41: (w dniach roboczych)
C42: 2021-10-19 | D42: wniosek
C43: 2021-10-20 | E43: 1
C44: 2021-10-22 | F44: 3
C45: 2021-10-26 | E45: 2
C47: Razem | E47: =SUM(E42:E46) -> 3 | F47: =SUM(F42:F46) -> 3
C50: =$C$2 -> Poltreg S.A.
B51: zakończone | C51: Suplement nr 3
C53: Data | E53: Czynności po stronie urzędu | F53: Czynności po stronie emitenta
E54: (w dniach roboczych)
C55: 2021-10-27 | D55: wniosek
C56: 2021-10-28 | D56: decyzja | E56: 1
F57: 0
C59: Razem | E59: =SUM(E55:E58) -> 1 | F59: =SUM(F55:F58) -> 0
C62: =$C$2 -> Poltreg S.A.
B63: zakończone | C63: Suplement nr 4
C65: Data | E65: Czynności po stronie urzędu | F65: Czynności po stronie emitenta
E66: (w dniach roboczych)
C67: 2021-11-16 | D67: wniosek
C68: 2021-11-19 | D68: decyzja | E68: 3
F69: 0
C71: Razem | E71: =SUM(E67:E70) -> 3 | F71: =SUM(F67:F70) -> 0

Sheet Marvipol Development SA O
A1: Spis treści
C2: Marvipol Development SA
A3: PROSPEKT | B3: zakończone | C3: Prospekt podstawowy
A5: 410.16.2021
C6: Data | E6: Czynności po stronie urzędu | F6: Czynności po stronie emitenta
E7: (w dniach roboczych)
C8: 2021-06-30 | D8: wniosek
C9: 2021-07-14 | E9: 10
C10: 2021-07-27 | F10: 9
C11: 2021-08-10 | E11: 10
C12: 2021-08-25 | F12: 11
C13: 2021-08-31 | F13: 4
C14: 2021-09-10 | E14: 8
C15: 2021-09-24 | F15: 10
C16: 2021-10-08 | E16: 10
C17: 2021-10-20 | F17: 8
C18: 2021-10-22 | E18: 2
C19: 2021-11-05 | F19: 9
C20: 2021-11-19 | F20: 9
C21: 2021-11-23 | D21: decyzja | E21: 2
C24: Razem | E24: 42 | F24: 60
A28: SUPLEMENTY | C28: =$C$2 -> Marvipol Development SA
B29: zakończone | C29: Suplement nr 1
C31: Data | E31: Czynności po stronie urzędu | F31: Czynności po stronie emitenta
E32: (w dniach roboczych)
C33: 2021-12-01 | D33: wniosek
C34: 2021-12-03 | E34: 2
C35: 2021-12-06 | F35: 1
C36: 2021-12-08 | D36: decyzja | E36: 2
C38: Razem | E38: =SUM(E33:E37) -> 4 | F38: =SUM(F33:F37) -> 1

Sheet KG Efekt SA (2021)
A1: Spis treści
C2: KG Efekt SA (2021)
A3: PROSPEKT | B3: umorzone | C3: Prospekt
A5: 410.15.2021
C6: Data | E6: Czynności po stronie urzędu | F6: Czynności po stronie emitenta
E7: (w dniach roboczych)
C8: 2021-06-21 | D8: wniosek
C9: 2021-06-30 | E9: 7
C10: 2021-07-16 | F10: 12
C11: 2021-07-27 | E11: 7
C12: 2021-08-12 | F12: 12
C13: 2021-08-23 | E13: 7
C14: 2021-09-08 | F14: 12
C15: 2021-09-17 | E15: 7
C16: 2021-10-07 | F16: 14
C17: 2021-10-18 | E17: 7
C18: 2021-11-10 | F18: 16
C19: 2021-11-22 | E19: 7
C20: 2021-12-04 | F20: 9
C21: 2021-12-13 | E21: 6
C22: 2021-12-28 | F22: 11
C23: 2022-01-05 | E23: 6
C24: 2022-02-16 | F24: 29
C25: 2022-02-25 | E25: 7
C26: 2022-03-14 | F26: 11
C27: 2022-03-22 | E27: 6
C28: 2022-04-15 | F28: 18
C29: 2022-04-27 | E29: 7
C30: 2022-05-11 | F30: 9
C31: 2022-05-20 | E31: 7
C32: 2022-06-06 | F32: 11
C33: 2022-06-15 | E33: 7
C34: 2022-07-01 | F34: 11
C35: 2022-07-12 | E35: 7
C36: 2022-07-27 | F36: 11
C37: 2022-08-05 | E37: 7
C38: 2022-08-22 | F38: 10
C39: 2022-08-29 | E39: 5
C40: 2022-09-02 | F40: 4
C41: 2022-09-12 | E41: 6
C42: 2022-09-19 | F42: 5
C43: 2022-09-28 | E43: 7
C44: 2022-10-17 | F44: 13
C45: 2022-10-26 | E45: 7
C46: 2022-10-31 | F46: 3
C47: 2022-11-10 | E47: 7
C48: 2022-11-18 | F48: 5
C49: 2022-11-25 | E49: 5
C50: 2022-11-30 | F50: 3
C51: 2022-12-08 | E51: 6
C52: 2022-12-15 | F52: 5
C53: 2022-12-27 | E53: 7
C54: 2022-12-28 | F54: 1
C55: 2023-01-11 | D55: decyzja o umorzeniu
C58: Razem | E58: =SUM(E8:E57) -> 152 | F58: =SUM(F8:F57) -> 235
A62: SUPLEMENTY | C62: =$C$2 -> KG Efekt SA (2021)
C63: Suplement nr 1
C65: Data | E65: Czynności po stronie urzędu | F65: Czynności po stronie emitenta
E66: (w dniach roboczych)
D67: wniosek
C71: Razem | E71: =SUM(E67:E70) -> 0 | F71: =SUM(F67:F70) -> 0

Sheet Santander Bank Polska S.A.
A1: Spis treści
C2: Santander Bank Polska S.A.
A3: PROSPEKT | B3: zawieszone | C3: Prospekt podstawowy
A5: 410.14.2021
C6: Data | E6: Czynności po stronie urzędu | F6: Czynności po stronie emitenta
E7: (w dniach roboczych)
C8: 2021-05-13 | D8: wniosek
C9: 2021-05-27 | E9: 10
C10: 2021-07-02 | F10: 25
C11: 2021-07-16 | E11: 10
C12: 2021-08-18 | F12: 33
C13: 2021-09-01 | E13: 10
C14: 2021-09-24 | F14: 23
C15: 2021-10-07 | E15: 9
C16: 2021-10-22 | F16: 15
C17: 2021-11-05 | E17: 9
C18: 2021-11-22 | F18: 11
C19: 2021-12-06 | E19: 10
C22: Razem | E22: =SUM(E8:E21) -> 58 | F22: =SUM(F8:F21) -> 107
A26: SUPLEMENTY | C26: =$C$2 -> Santander Bank Polska S.A.
C27: Suplement nr 1
C29: Data | E29: Czynności po stronie urzędu | F29: Czynności po stronie emitenta
E30: (w dniach roboczych)
D31: wniosek
C35: Razem | E35: =SUM(E31:E34) -> 0 | F35: =SUM(F31:F34) -> 0

Sheet Beta ETF WIG20lev (2021)
A1: Spis treści
C2: Beta ETF WIG20lev Portfelowy FIZ
A3: PROSPEKT | B3: zakończone | C3: Prospekt
A5: 410.12.2021
C6: Data | E6: Czynności po stronie urzędu | F6: Czynności po stronie emitenta
E7: (w dniach roboczych)
C8: 2021-05-11 | D8: wniosek
C9: 2021-05-20 | E9: 7
C10: 2021-06-01 | F10: 8
C11: 2021-06-09 | E11: 5
C12: 2021-06-24 | F12: 11
C13: 2021-06-25 | E13: 1
C14: 2021-07-05 | F14: 6
C15: 2021-07-07 | E15: 2
C21: Razem | E21: 15 | F21: 25
A25: SUPLEMENTY | C25: =$C$2 -> Beta ETF WIG20lev Portfelowy FIZ
C26: Suplement nr 1
C28: Data | E28: Czynności po stronie urzędu | F28: Czynności po stronie emitenta
E29: (w dniach roboczych)
D30: wniosek
C34: Razem | E34: =SUM(E30:E33) -> 0 | F34: =SUM(F30:F33) -> 0

Sheet Beta ETF WIG20short (2021)
A1: Spis treści
C2: Beta ETF WIG20short Portfelowy FIZ
A3: PROSPEKT | B3: zakończone | C3: Prospekt
A5: 410.13.2021
C6: Data | E6: Czynności po stronie urzędu | F6: Czynności po stronie emitenta
E7: (w dniach roboczych)
C8: 2021-05-11 | D8: wniosek
C9: 2021-05-20 | E9: 7
C10: 2021-06-01 | F10: 8
C11: 2021-06-09 | E11: 5
C12: 2021-06-24 | F12: 11
C13: 2021-06-25 | E13: 1
C14: 2021-07-05 | F14: 6
C15: 2021-07-07 | E15: 2
C21: Razem | E21: 15 | F21: 25
A25: SUPLEMENTY | C25: =$C$2 -> Beta ETF WIG20short Portfelowy FIZ
C26: Suplement nr 1
C28: Data | E28: Czynności po stronie urzędu | F28: Czynności po stronie emitenta
E29: (w dniach roboczych)
D30: wniosek
C34: Razem | E34: =SUM(E30:E33) -> 0 | F34: =SUM(F30:F33) -> 0

Sheet Kruk S.A. (obligacje 2021)
A1: Spis treści
C2: Kruk S.A. (prospekt podstawowy obligacji)
A3: PROSPEKT | B3: zakończone | C3: Prospekt
A5: 410.11.2021
C6: Data | E6: Czynności po stronie urzędu | F6: Czynności po stronie emitenta
E7: (w dniach roboczych)
C8: 2021-05-07 | D8: wniosek
C9: 2021-05-21 | E9: 10
C10: 2021-06-04 | F10: 9
C11: 2021-06-16 | E11: 8
C12: 2021-06-30 | F12: 10
C13: 2021-07-13 | E13: 9
C14: 2021-07-28 | F14: 11
C15: 2021-08-06 | E15: 7
C16: 2021-08-25 | F16: 13
C17: 2021-09-03 | D17: decyzja | E17: 7
C21: Razem | E21: 41 | F21: 43
A25: SUPLEMENTY | C25: =$C$2 -> Kruk S.A. (prospekt podstawowy obligacji)
B26: zakończone | C26: Suplement nr 1
C28: Data | E28: Czynności po stronie urzędu | F28: Czynności po stronie emitenta
E29: (w dniach roboczych)
C30: 2021-09-09 | D30: wniosek
C31: 2021-09-14 | E31: 3
C32: 2021-09-15 | F32: 1
C33: 2021-09-21 | D33: decyzja | E33: 4
C35: Razem | E35: 7 | F35: 1
C38: =$C$2 -> Kruk S.A. (prospekt podstawowy obligacji)
B39: zakończone | C39: Suplement nr 2
C41: Data | E41: Czynności po stronie urzędu | F41: Czynności po stronie emitenta
E42: (w dniach roboczych)
C43: 2021-11-04 | D43: wniosek
C44: 2021-11-08 | D44: decyzja | E44: 2
C47: Razem | E47: 2 | F47: 0
C50: =$C$2 -> Kruk S.A. (prospekt podstawowy obligacji)
B51: zakończone | C51: Suplement nr 3
C53: Data | E53: Czynności po stronie urzędu | F53: Czynności po stronie emitenta
E54: (w dniach roboczych)
C55: 2022-03-16 | D55: wniosek
C56: 2022-03-22 | E56: 5
C57: 2022-03-25 | F57: 3
C58: 2022-03-28 | D58: decyzja | E58: 1
C59: Razem | E59: 6 | F59: 3
C64: =$C$2 -> Kruk S.A. (prospekt podstawowy obligacji)
B65: zakończone | C65: Suplement nr 4
C67: Data | E67: Czynności po stronie urzędu | F67: Czynności po stronie emitenta
E68: (w dniach roboczych)
C69: 2022-04-29 | D69: wniosek
C70: 2022-05-09 | D70: decyzja | E70: 5
C71: Razem | E71: 5 | F71: 0

Sheet Beta ETF mWIG40TR Portfel
A1: Spis treści
C2: Beta ETF mWIG40TR Portfelowy FIZ
A3: PROSPEKT | B3: zakończone | C3: Prospekt
A5: 410.10.2021
C6: Data | E6: Czynności po stronie urzędu | F6: Czynności po stronie emitenta
E7: (w dniach roboczych)
C8: 2021-04-28 | D8: wniosek
C9: 2021-05-12 | E9: 9
C10: 2021-05-26 | F10: 10
C11: 2021-06-02 | E11: 5
C12: 2021-06-16 | F12: 9
C13: 2021-06-21 | E13: 3
C14: 2021-06-21 | F14: 0
C15: 2021-06-23 | D15: decyzja | E15: 2
C17: Razem | E17: 19 | F17: 19
A21: SUPLEMENTY | C21: =$C$2 -> Beta ETF mWIG40TR Portfelowy FIZ
C22: Suplement nr 1
C24: Data | E24: Czynności po stronie urzędu | F24: Czynności po stronie emitenta
E25: (w dniach roboczych)
D26: wniosek
C30: Razem | E30: =SUM(E26:E29) -> 0 | F30: =SUM(F26:F29) -> 0

Sheet ONDE SA 2021
A1: Spis treści
C2: ONDE SA
A3: PROSPEKT | B3: zakończone | C3: Prospekt
A5: 410.8.2021
C6: Data | E6: Czynności po stronie urzędu | F6: Czynności po stronie emitenta
E7: (w dniach roboczych)
C8: 2021-04-16 | D8: wniosek
C9: 2021-05-05 | E9: 12
C10: 2021-05-07 | F10: 2
C11: 2021-05-20 | E11: 9
C12: 2021-05-28 | F12: 6
C13: 2021-06-11 | E13: 9
C14: 2021-06-17 | F14: 4
C15: 2021-06-21 | E15: 2
C16: 2021-06-23 | D16: decyzja | F16: 2
C21: Razem | E21: 32 | F21: 14
A25: SUPLEMENTY | C25: =$C$2 -> ONDE SA
B26: zakończone | C26: Suplement nr 1
C28: Data | E28: Czynności po stronie urzędu | F28: Czynności po stronie emitenta
E29: (w dniach roboczych)
C30: 2021-06-25 | D30: wniosek
C31: 2021-06-28 | E31: 1
C32: 2021-06-29 | F32: 1
C33: 2021-06-29 | D33: decyzja | E33: 0
C35: Razem | E35: 1 | F35: 1
C38: =$C$2 -> ONDE SA
B39: zakończone | C39: Suplement nr 2
C41: Data | E41: Czynności po stronie urzędu | F41: Czynności po stronie emitenta
E42: (w dniach roboczych)
C43: 2021-07-12 | D43: wniosek
C44: 2021-07-13 | E44: 1
C45: 2021-07-13 | F45: 0
C46: 2021-07-14 | D46: decyzja | E46: 1
C48: Razem | E48: 2 | F48: 0

Sheet Ipopema Medycyny i Innowa
A1: Spis treści
C2: Ipopema Medycyny i Innowacji FIZ
A3: PROSPEKT | B3: zakończone | C3: Prospekt
A5: 410.9.2021
C6: Data | E6: Czynności po stronie urzędu | F6: Czynności po stronie emitenta
E7: (w dniach roboczych)
C8: 2021-04-14 | D8: wniosek
C9: 2021-04-28 | E9: 10
C10: 2021-06-21 | F10: 36
C11: 2021-07-02 | E11: 9
C12: 2021-07-23 | F12: 15
C13: 2021-08-05 | E13: 9
C14: 2021-08-31 | F14: 18
C15: 2021-09-14 | E15: 10
C16: 2021-10-22 | F16: 28
C17: 2021-11-05 | E17: 9
C18: 2021-11-19 | F18: 10
C19: 2021-12-03 | E19: 9
C20: 2021-12-30 | F20: 19
C21: 2022-01-12 | E21: 8
C22: 2022-03-03 | F22: 36
C23: 2022-03-17 | E23: 10
C24: 2022-04-05 | F24: 13
C25: 2022-04-14 | D25: aktualizacja | F25: 7
C26: 2022-04-29 | D26: decyzja | E26: 10
E29: =SUM(E8:E28) -> 84 | F29: =SUM(F8:F28) -> 182
C30: Razem
A33: SUPLEMENTY
B34: zakończone | C34: =$C$2 -> Ipopema Medycyny i Innowacji FIZ
C35: Suplement nr 1
C37: Data | E37: Czynności po stronie urzędu | F37: Czynności po stronie emitenta
E38: (w dniach roboczych)
C39: 2022-05-09 | D39: wniosek
C40: 2022-05-12 | E40: 3
C41: 2022-05-18 | F41: 4
C42: 2022-05-23 | E42: 3
C43: 2022-05-24 | F43: 1
C44: 2022-05-25 | D44: aktualizacja | F44: 1
C45: 2022-05-26 | D45: decyzja | E45: 1
C47: Razem | E47: =SUM(E39:E46) -> 7 | F47: =SUM(F39:F46) -> 6
A51: SUPLEMENTY
B52: zakończone | C52: =$C$2 -> Ipopema Medycyny i Innowacji FIZ
C53: Suplement nr 2
C55: Data | E55: Czynności po stronie urzędu | F55: Czynności po stronie emitenta
E56: (w dniach roboczych)
C57: 2022-06-03 | D57: wniosek
C58: 2022-06-07 | E58: 2
C59: 2022-06-08 | F59: 1
C60: 2022-06-09 | D60: decyzja | E60: 1
C62: Razem | E62: =SUM(E57:E61) -> 3 | F62: =SUM(F57:F61) -> 1
A67: SUPLEMENTY
B68: zakończone | C68: =$C$2 -> Ipopema Medycyny i Innowacji FIZ
C69: Suplement nr 3
C71: Data | E71: Czynności po stronie urzędu | F71: Czynności po stronie emitenta
E72: (w dniach roboczych)
C73: 2022-07-13 | D73: wniosek
C74: 2022-07-19 | D74: decyzja | E74: 4
C75: Razem | E75: =SUM(E73:E74) -> 4 | F75: =SUM(F73:F74) -> 0
A80: SUPLEMENTY
B81: w toku | C81: =$C$2 -> Ipopema Medycyny i Innowacji FIZ
C82: Suplement nr 4
C84: Data | E84: Czynności po stronie urzędu | F84: Czynności po stronie emitenta
E85: (w dniach roboczych)
C86: 2023-04-07 | D86: wniosek
C87: 2023-04-17 | E87: 5
C88: Razem | E88: =SUM(E86:E87) -> 5 | F88: =SUM(F86:F87) -> 0

Sheet Cavatina Holding SA
A1: Spis treści
C2: Cavatina Holding SA
A3: PROSPEKT | B3: zakończone | C3: Prospekt
A5: 410.7.2021
C6: Data | E6: Czynności po stronie urzędu | F6: Czynności po stronie emitenta
E7: (w dniach roboczych)
C8: 2021-03-22 | D8: wniosek
C9: 2021-04-16 | E9: 18
C10: 2021-04-23 | F10: 5
C11: 2021-05-07 | E11: 9
C12: 2021-05-17 | F12: 6
C13: 2021-05-31 | E13: 10
C14: 2021-06-02 | F14: 2
C15: 2021-06-17 | E15: 10
C16: 2021-06-18 | F16: 1
C17: 2021-06-24 | D17: aktualizacja | F17: 4
C18: 2021-06-30 | D18: decyzja | E18: 4
C21: Razem | E21: 51 | F21: 18
A25: SUPLEMENTY | C25: =$C$2 -> Cavatina Holding SA
B26: zakończone | C26: Suplement nr 1
C28: Data | E28: Czynności po stronie urzędu | F28: Czynności po stronie emitenta
E29: (w dniach roboczych)
C30: 2021-07-01 | D30: wniosek
C31: 2021-07-01 | D31: decyzja | E31: 1
F32: 0
C34: Razem | E34: 1 | F34: 0

Sheet Canal+ Polska SA 2021
A1: Spis treści
C2: Canal+ Polska SA
A3: PROSPEKT | B3: umorzone | C3: Prospekt
A5: 410.6.2021
C6: Data | E6: Czynności po stronie urzędu | F6: Czynności po stronie emitenta
E7: (w dniach roboczych)
C8: 2021-03-17 | D8: wniosek
C9: 2021-03-30 | E9: 9
C10: 2021-04-06 | F10: 4
C11: 2021-04-12 | E11: 4
C12: 2021-04-15 | F12: 3
C13: 2021-04-21 | E13: 4
C14: 2022-04-04 | D14: wniosek | F14: 243
C15: 2022-04-27 | D15: decyzja o umorzeniu | E15: 16
C21: Razem | E21: =SUM(E8:E20) -> 33 | F21: =SUM(F8:F20) -> 250
A25: SUPLEMENTY | C25: =$C$2 -> Canal+ Polska SA
C26: Suplement nr 1
C28: Data | E28: Czynności po stronie urzędu | F28: Czynności po stronie emitenta
E29: (w dniach roboczych)
D30: wniosek
C34: Razem | E34: =SUM(E30:E33) -> 0 | F34: =SUM(F30:F33) -> 0

Sheet Shoper S.A.
A1: Spis treści
C2: Shoper S.A.
A3: PROSPEKT | B3: zakończone | C3: Prospekt
A5: 410.4.2021
C6: Data | E6: Czynności po stronie urzędu | F6: Czynności po stronie emitenta
E7: (w dniach roboczych)
C8: 2021-03-11 | D8: wniosek
C9: 2021-04-08 | E9: 19
C10: 2021-04-15 | F10: 5
C11: 2021-04-28 | E11: 9
C12: 2021-05-07 | F12: 6
C13: 2021-05-20 | E13: 9
C14: 2021-05-26 | F14: 4
C15: 2021-06-02 | E15: 5
C16: 2021-06-10 | F16: 5
C17: 2021-06-15 | E17: 3
C18: 2021-06-17 | F18: 2
C19: 2021-06-18 | D19: decyzja | E19: 1
C21: Razem | E21: 46 | F21: 22
A25: SUPLEMENTY | C25: =$C$2 -> Shoper S.A.
C26: Suplement nr 1
C28: Data | E28: Czynności po stronie urzędu | F28: Czynności po stronie emitenta
E29: (w dniach roboczych)
D30: wniosek
C34: Razem | E34: =SUM(E30:E33) -> 0 | F34: =SUM(F30:F33) -> 0

Sheet Big Cheese Studio S.A.
A1: Spis treści
C2: Big Cheese Studio S.A.
A3: PROSPEKT | B3: zakończone | C3: Prospekt
A5: 410.3.2021
C6: Data | E6: Czynności po stronie urzędu | F6: Czynności po stronie emitenta
E7: (w dniach roboczych)
C8: 2021-03-08 | D8: wniosek
B9: uwagi nr 1 | C9: 2021-03-26 | E9: 14
C10: 2021-04-27 | F10: 21
B11: uwagi nr 2 | C11: 2021-05-12 | E11: 10
C12: 2021-06-05 | F12: 16
B13: uwagi nr 3 | C13: 2021-06-17 | E13: 9
C14: 2021-07-22 | F14: 25
B15: uwagi nr 4 | C15: 2021-08-04 | E15: 9
C16: 2021-09-09 | F16: 26
C17: 2021-09-21 | E17: 8
C18: 2021-09-24 | F18: 3
C19: 2021-09-30 | E19: 4
C20: 2021-10-04 | F20: 2
C21: 2021-10-07 | E21: 3
C22: 2021-10-08 | F22: 1
C23: 2021-10-12 | D23: decyzja | E23: 6
C24: Razem | E24: 54 | F24: 93
A28: SUPLEMENTY | C28: =$C$2 -> Big Cheese Studio S.A.
B29: zakończone | C29: Suplement nr 1
C31: Data | E31: Czynności po stronie urzędu | F31: Czynności po stronie emitenta
E32: (w dniach roboczych)
C33: 2021-10-27 | D33: wniosek
C34: 2021-10-27 | D34: decyzja | E34: 0
F35: 0
C37: Razem | E37: 0 | F37: 0
A42: SUPLEMENTY | C42: =$C$2 -> Big Cheese Studio S.A.
B43: w toku | C43: Suplement nr 2
C45: Data | E45: Czynności po stronie urzędu | F45: Czynności po stronie emitenta
E46: (w dniach roboczych)
C47: 2021-12-09 | D47: wniosek
C48: 2021-12-14 | E48: 3
C49: 2021-12-17 | F49: 3
C50: 2021-12-21 | E50: 2
C51: 2021-12-28 | F51: 5
C54: Razem | E54: 0 | F54: 0

Sheet Celon Pharma S.A.
A1: Spis treści
C2: Celon Pharma S.A.
A3: PROSPEKT | B3: zakończone | C3: Prospekt
A5: 410.5.2021
C6: Data | E6: Czynności po stronie urzędu | F6: Czynności po stronie emitenta
E7: (w dniach roboczych)
C8: 2021-03-05 | D8: wniosek
C9: 2021-03-19 | E9: 10
C10: 2021-04-07 | F10: 12
C11: 2021-04-21 | E11: 10
C12: 2021-04-29 | F12: 6
C13: 2021-05-14 | E13: 10
C14: 2021-05-22 | F14: 5
C15: 2021-06-02 | E15: 8
C16: 2021-06-15 | F16: 8
C17: 2021-06-22 | E17: 5
C18: 2021-06-25 | F18: 3
C19: 2021-06-29 | E19: 2
C20: 2021-06-30 | F20: 1
C21: 2021-07-01 | F21: 1
C22: 2021-07-01 | D22: decyzja | E22: 0
C25: Razem | E25: =SUM(E8:E24) -> 45 | F25: =SUM(F8:F24) -> 36
A29: SUPLEMENTY | C29: =$C$2 -> Celon Pharma S.A.
C30: Suplement nr 1
C32: Data | E32: Czynności po stronie urzędu | F32: Czynności po stronie emitenta
E33: (w dniach roboczych)
D34: wniosek
C38: Razem | E38: =SUM(E34:E37) -> 0 | F38: =SUM(F34:F37) -> 0

Sheet Emitel S.A.
A1: Spis treści
C2: Emitel S.A.
A3: PROSPEKT | B3: zawieszone | C3: Prospekt
A5: 410.2.2021
C6: Data | E6: Czynności po stronie urzędu | F6: Czynności po stronie emitenta
E7: (w dniach roboczych)
C8: 2021-01-29 | D8: wniosek
C9: 2021-02-25 | E9: 19
C10: 2021-03-12 | F10: 11
C11: 2021-03-26 | E11: 10
C12: 2021-04-02 | F12: 5
C13: 2021-04-15 | E13: 8
C14: 2021-04-30 | F14: 11
C15: 2021-05-14 | E15: 9
C16: 2021-06-02 | F16: 13
C17: 2021-06-17 | E17: 10
C18: 2021-07-16 | F18: 21
C19: 2021-07-29 | E19: 9
C24: Razem | E24: =SUM(E8:E23) -> 65 | F24: =SUM(F8:F23) -> 61
A28: SUPLEMENTY | C28: =$C$2 -> Emitel S.A.
C29: Suplement nr 1
C31: Data | E31: Czynności po stronie urzędu | F31: Czynności po stronie emitenta
E32: (w dniach roboczych)
D33: wniosek
C37: Razem | E37: =SUM(E33:E36) -> 0 | F37: =SUM(F33:F36) -> 0

Sheet BEST SA
A1: Spis treści
C2: BEST SA
A3: PROSPEKT | B3: zakończone | C3: Prospekt
A5: 410.1.2021
C6: Data | E6: Czynności po stronie urzędu | F6: Czynności po stronie emitenta
E7: (w dniach roboczych)
C8: 2021-01-14 | D8: wniosek
C9: 2021-01-28 | E9: 10
C10: 2021-02-11 | F10: 10
C11: 2021-02-17 | D11: aktualizacja | F11: 4
C12: 2021-02-24 | E12: 5
C13: 2021-03-12 | F13: 12
C14: 2021-03-26 | E14: 10
C15: 2021-04-16 | F15: 14
C16: 2021-04-30 | E16: 10
C17: 2021-05-13 | F17: 8
C18: 2021-05-18 | D18: aktualizacja | F18: 3
C19: 2021-05-31 | D19: aktualizacja | F19: 9
C20: 2021-06-11 | E20: 8
C21: 2021-06-14 | F21: 1
C22: 2021-06-17 | D22: decyzja | E22: 3
C24: Razem | E24: 46 | F24: 61
A28: SUPLEMENTY | C28: =$C$2 -> BEST SA
B29: zakończone | C29: Suplement nr 1
C31: Data | E31: Czynności po stronie urzędu | F31: Czynności po stronie emitenta
E32: (w dniach roboczych)
C33: 2021-09-07 | D33: wniosek
C34: 2021-09-13 | D34: decyzja | E34: 4
F35: 0
C37: Razem | E37: =SUM(E33:E36) -> 4 | F37: =SUM(F33:F36) -> 0
A40: SUPLEMENTY | C40: =$C$2 -> BEST SA
B41: zakończone | C41: Suplement nr 2
C43: Data | E43: Czynności po stronie urzędu | F43: Czynności po stronie emitenta
E44: (w dniach roboczych)
C45: 2022-03-31 | D45: wniosek
C46: 2022-04-05 | E46: 3
C47: 2022-04-14 | F47: 7
C48: 2022-04-22 | D48: decyzja | E48: 5
C50: Razem | E50: =SUM(E45:E49) -> 8 | F50: =SUM(F45:F49) -> 7
A55: SUPLEMENTY | C55: =$C$2 -> BEST SA
C56: Suplement nr ……
C58: Data | E58: Czynności po stronie urzędu | F58: Czynności po stronie emitenta
E59: (w dniach roboczych)
C60: 2022-10-05 | D60: wniosek
C61: 2022-10-07 | E61: 2
C64: Razem | E64: =SUM(E60:E63) -> 2 | F64: =SUM(F60:F63) -> 0

Sheet KREDYT INKASO SA (obligac
C2: KREDYT INKASO S.A.
A3: PROSPEKT | B3: zakończone | C3: Prospekt podstawowy
A6: Pismo przychodzące | B6: Pismo wychodzące lub zdarzenie przerywające termin | C6: Data | E6: Czynności po stronie urzędu | F6: Czynności po stronie emitenta
E7: (w dniach roboczych)
A8: wniosek | C8: 2020-12-23 | D8: wniosek
B9: uwagi nr 1 | C9: 2021-01-08 | E9: 9
C10: 2021-01-27 | F10: 13
B11: uwagi nr 2 | C11: 2021-02-10 | E11: 10
C12: 2021-03-03 | F12: 15
B13: uwagi nr 3 | C13: 2021-03-17 | E13: 10
C14: 2021-04-12 | F14: 17
B15: uwagi nr 4 | C15: 2021-04-26 | E15: 10
C16: 2021-05-11 | F16: 10
B17: uwagi nr 5 | C17: 2021-05-24 | E17: 9
C18: 2021-06-14 | F18: 14
B19: uwagi nr 6 | C19: 2021-06-28 | E19: 10
C20: 2021-07-14 | F20: 12
B21: Uwagi nr 7 | C21: 2021-07-22 | E21: 6
C22: 2021-07-30 | F22: 6
B23: uwagi nr 8 | C23: 2021-08-02 | E23: 1
C24: 2021-08-19 | F24: 13
B25: uwagi nr 9 | C25: 2021-08-20 | E25: 1
C26: 2021-08-23 | F26: 1
C27: 2021-08-24 | E27: 1
C28: 2021-08-24 | F28: 0
C29: 2021-08-26 | D29: decyzja
C31: Razem | E31: 67 | F31: 101
A35: SUPLEMENTY | C35: =$C$2 -> KREDYT INKASO S.A.
B36: zakończone | C36: Suplement nr 1
C38: Data | E38: Czynności po stronie urzędu | F38: Czynności po stronie emitenta
E39: (w dniach roboczych)
C40: 2021-09-01 | D40: wniosek
B41: uwai nr 1 | C41: 2021-09-03 | E41: 2
C42: 2021-09-16 | F42: 9
B43: uwagi nr 2 | C43: 2021-09-21 | E43: 3
C44: 2021-10-01 | F44: 8
C45: 2021-10-04 | D45: aktualizacja | F45: 1
C46: 2021-10-05 | D46: decyzja | E46: 1
C48: Razem | E48: 6 | F48: 18
A51: SUPLEMENTY | C51: =$C$2 -> KREDYT INKASO S.A.
B52: zakończone | C52: Suplement nr 2
C54: Data | E54: Czynności po stronie urzędu | F54: Czynności po stronie emitenta
E55: (w dniach roboczych)
C56: 2021-11-29 | D56: wniosek
B57: uwagi nr 1 | C57: 2021-12-03 | E57: 4
C58: 2021-12-10 | F58: 5
C59: 2021-12-15 | E59: 3
C64: Razem | E64: 7 | F64: 5
C67: =$C$2 -> KREDYT INKASO S.A.
B68: zakończone | C68: Suplement nr 3
C70: Data | E70: Czynności po stronie urzędu | F70: Czynności po stronie emitenta
E71: (w dniach roboczych)
C72: 2022-02-24 | D72: wniosek
C73: 2022-03-02 | E73: 4
C74: 2022-03-06 | F74: 2
C75: 2022-03-09 | D75: aktualizacja | F75: 3
C76: 2022-03-10 | E76: 1
C77: 2022-03-13 | F77: 1
C78: 2022-03-15 | D78: decyzja | E78: 2
C80: Razem | E80: 7 | F80: 6
C84: =$C$2 -> KREDYT INKASO S.A.
B85: zakończone | C85: Suplement nr 4
C87: Data | E87: Czynności po stronie urzędu | F87: Czynności po stronie emitenta
E88: (w dniach roboczych)
C89: 2022-03-13 | D89: wniosek
C90: 2022-03-15 | D90: aktualizacja | F90: 2
C91: 2022-03-17 | D91: decyzja | E91: 2
C97: Razem | E97: 2 | F97: 2
C100: =$C$2 -> KREDYT INKASO S.A.
B101: zakończone | C101: Suplement nr 5
C103: Data | E103: Czynności po stronie urzędu | F103: Czynności po stronie emitenta
E104: (w dniach roboczych)
C105: 2022-03-30 | D105: wniosek
C106: 2022-04-01 | D106: decyzja | E106: 2
C113: Razem | E113: 2 | F113: 0
C116: =$C$2 -> KREDYT INKASO S.A.
B117: zakończone | C117: Suplement nr 6
C119: Data | E119: Czynności po stronie urzędu | F119: Czynności po stronie emitenta
E120: (w dniach roboczych)
C121: 2022-07-05 | D121: wniosek
C122: 2022-07-08 | E122: 3
C123: 2022-07-12 | F123: 2
C124: 2022-07-14 | D124: decyzja | E124: 2
C129: Razem | E129: =SUM(E122:E128) -> 5 | F129: =SUM(F122:F127) -> 2

Sheet Vercom S.A.
C2: Vercom S.A.
A3: PROSPEKT | B3: zakończone | C3: Prospekt akcji
A6: Pismo przychodzące | B6: Pismo wychodzące lub zdarzenie przerywające termin | C6: Data | E6: Czynności po stronie urzędu | F6: Czynności po stronie emitenta
E7: (w dniach roboczych)
A8: wniosek | C8: 2020-12-17 | D8: wniosek
B9: uwagi nr 1 | C9: 2021-01-19 | E9: 20
C10: 2021-02-22 | F10: 24
C11: 2021-03-05 | E11: 9
C12: 2021-03-10 | F12: 3
C13: 2021-03-23 | E13: 9
C14: 2021-03-27 | F14: 3
C15: 2021-04-02 | E15: 5
C16: 2021-04-06 | F16: 1
C17: 2021-04-07 | E17: 1
C18: 2021-04-09 | F18: 2
C19: 2021-04-12 | E19: 1
C21: Razem | E21: 45 | F21: 33
A25: SUPLEMENTY | C25: =$C$2 -> Vercom S.A.
C26: Suplement nr 1
C28: Data | E28: Czynności po stronie urzędu | F28: Czynności po stronie emitenta
E29: (w dniach roboczych)
D30: wniosek
C34: Razem | E34: =SUM(E30:E33) -> 0 | F34: =SUM(F30:F33) -> 0

Sheet Dekpol SA obligacje 2020
A2: PROSPEKT | C2: Dekpol S.A.
B3: zakończone | C3: Prospekt podstawowy
A6: Pismo przychodzące | B6: Pismo wychodzące lub zdarzenie przerywające termin | C6: Data | E6: Czynności po stronie urzędu | F6: Czynności po stronie emitenta
E7: (w dniach roboczych)
A8: wniosek | C8: 2020-12-16 | D8: wniosek
B9: uwagi nr 1 | C9: 2020-12-31 | E9: 10
C10: 2021-01-25 | F10: 15
B11: uwagi nr 2 | C11: 2021-02-08 | E11: 10
C12: 2021-03-08 | F12: 20
C13: 2021-03-18 | E13: 8
C14: 2021-04-01 | F14: 10
C15: 2021-04-08 | E15: 4
C16: 2021-04-15 | F16: 5
C17: 2021-04-21 | D17: decyzja | E17: 4
C21: Razem | E21: 36 | F21: 50
A25: SUPLEMENTY | C25: =$C$2 -> Dekpol S.A.
B26: zakończone | C26: Suplement nr 1
C28: Data | E28: Czynności po stronie urzędu | F28: Czynności po stronie emitenta
E29: (w dniach roboczych)
C30: 2021-05-15 | D30: wniosek
C31: 2021-05-19 | D31: decyzja | E31: 3
F32: 0
C33: Razem | E33: 3 | F33: 0
C37: =$C$2 -> Dekpol S.A.
B38: zakończone | C38: Suplement nr 2
C40: Data | E40: Czynności po stronie urzędu | F40: Czynności po stronie emitenta
E41: (w dniach roboczych)
C42: 2021-06-08 | D42: wniosek
C43: 2021-06-14 | D43: decyzja | E43: 4
F44: 0
C45: Razem | E45: 4 | F45: 0
C49: =$C$2 -> Dekpol S.A.
B50: zakończone | C50: Suplement nr 3
C52: Data | E52: Czynności po stronie urzędu | F52: Czynności po stronie emitenta
E53: (w dniach roboczych)
C54: 2021-09-28 | D54: wniosek
C55: 2021-10-01 | E55: 3
F56: 0
C57: Razem | E57: 3 | F57: 0
C61: =$C$2 -> Dekpol S.A.
B62: zakończone | C62: Suplement nr 4
C64: Data | E64: Czynności po stronie urzędu | F64: Czynności po stronie emitenta
E65: (w dniach roboczych)
C66: 2021-11-26 | D66: wniosek
C67: 2021-12-02 | E67: 4
C68: 2021-12-03 | F68: 1
C69: 2021-12-08 | D69: decyzja | E69: 3
C70: Razem | E70: =SUM(E66:E69) -> 7 | F70: =SUM(F66:F69) -> 1
C74: =$C$2 -> Dekpol S.A.
B75: zakończone | C75: Suplement nr 5
C77: Data | E77: Czynności po stronie urzędu | F77: Czynności po stronie emitenta
E78: (w dniach roboczych)
C79: 2022-03-16 | D79: wniosek
C80: 2022-03-17 | F80: 1
C81: 2022-03-18 | E81: 1
C82: Razem | E82: =SUM(E79:E81) -> 1 | F82: =SUM(F79:F81) -> 1

Sheet Pekao Bank Hipoteczny S.A.
A2: PROSPEKT | C2: Pekao Bank Hipoteczny S.A.
B3: zakończone | C3: Prospekt podstawowy publicznych i hipotecznych listów zastawnych
A6: Pismo przychodzące | B6: Pismo wychodzące lub zdarzenie przerywające termin | C6: Data | E6: Czynności po stronie urzędu | F6: Czynności po stronie emitenta
E7: (w dniach roboczych)
A8: wniosek | C8: 2020-11-13 | D8: wniosek
B9: uwagi nr 1 | C9: 2020-11-27 | E9: 10
C10: 2020-12-12 | F10: 10
C11: 2020-12-22 | E11: 7
C12: 2021-01-05 | F12: 8
C13: 2021-01-19 | E13: 9
C14: 2021-01-22 | F14: 3
C15: 2021-01-26 | E15: 2
C16: 2021-01-26 | F16: 0
C17: 2021-02-04 | E17: 7
C18: 2021-02-11 | F18: 5
C19: 2021-02-12 | D19: decyzja | E19: 1
C21: Razem | E21: 36 | F21: 26
A25: SUPLEMENTY | C25: =$C$2 -> Pekao Bank Hipoteczny S.A.
B26: zakończone | C26: Suplement nr 1
C28: Data | E28: Czynności po stronie urzędu | F28: Czynności po stronie emitenta
E29: (w dniach roboczych)
C30: 2021-02-17 | D30: wniosek
C31: 2021-02-22 | E31: 3
F32: 0
C33: Razem | E33: 3 | F33: 0
C37: =$C$2 -> Pekao Bank Hipoteczny S.A.
B38: zakończone | C38: Suplement nr 2
C40: Data | E40: Czynności po stronie urzędu | F40: Czynności po stronie emitenta
E41: (w dniach roboczych)
C42: 2021-02-25 | D42: wniosek
C43: 2021-03-04 | E43: 5
C44: 2021-03-05 | F44: 1
C45: 2021-03-09 | E45: 2
C46: Razem | E46: 7 | F46: 1
C50: =$C$2 -> Pekao Bank Hipoteczny S.A.
B51: zakończone | C51: Suplement nr 3
C53: Data | E53: Czynności po stronie urzędu | F53: Czynności po stronie emitenta
E54: (w dniach roboczych)
C55: 2021-07-30 | D55: wniosek
C56: 2021-08-03 | E56: 2
C57: 2021-08-04 | F57: 1
C58: 2021-08-06 | E58: 2
C59: Razem | E59: 4 | F59: 1
C62: =$C$2 -> Pekao Bank Hipoteczny S.A.
B63: zakończone | C63: Suplement nr 4
C65: Data | E65: Czynności po stronie urzędu | F65: Czynności po stronie emitenta
E66: (w dniach roboczych)
C67: 2021-09-27 | D67: wniosek
C68: 2021-10-01 | E68: 4
C69: 2021-10-04 | F69: 1
C70: 2021-10-05 | E70: 1
C71: Razem | E71: 5 | F71: 1
C76: =$C$2 -> Pekao Bank Hipoteczny S.A.
B77: zakończone | C77: Suplement nr 5
C79: Data | E79: Czynności po stronie urzędu | F79: Czynności po stronie emitenta
E80: (w dniach roboczych)
C81: 2021-11-04 | D81: wniosek
C82: 2021-11-08 | E82: 2
C83: Razem | E83: 2 | F83: 0
C88: =$C$2 -> Pekao Bank Hipoteczny S.A.
B89: zakończone | C89: Suplement nr 6
C91: Data | E91: Czynności po stronie urzędu | F91: Czynności po stronie emitenta
E92: (w dniach roboczych)
C93: 2021-11-15 | D93: wniosek
C94: 2021-11-17 | E94: 2
C95: Razem | E95: 2 | F95: 0
C100: =$C$2 -> Pekao Bank Hipoteczny S.A.
B101: zakończone | C101: Suplement nr 7
C103: Data | E103: Czynności po stronie urzędu | F103: Czynności po stronie emitenta
E104: (w dniach roboczych)
C105: 2021-11-26 | D105: wniosek
C106: 2021-11-29 | E106: 1
C107: Razem | E107: 1 | F107: 0
C112: =$C$2 -> Pekao Bank Hipoteczny S.A.
B113: zakończone | C113: Suplement nr 8
C115: Data | E115: Czynności po stronie urzędu | F115: Czynności po stronie emitenta
E116: (w dniach roboczych)
C117: 2022-01-31 | D117: wniosek
C118: 2022-02-02 | E118: 2
C119: Razem | E119: 2 | F119: 0

Sheet MCI Capital Alternatywna
A2: PROSPEKT | C2: MCI Capital Alternatywna Spółka Inwestycyjna S.A.
B3: zakończone | C3: Prospekt podstawowy
A4: poz. 194
A6: Pismo przychodzące | B6: Pismo wychodzące lub zdarzenie przerywające termin | C6: Data | E6: Czynności po stronie urzędu | F6: Czynności po stronie emitenta
E7: (w dniach roboczych)
A8: wniosek | C8: 2020-10-09 | D8: wniosek
B9: uwagi nr 1 | C9: 2020-10-23 | E9: 10
C10: 2020-11-06 | F10: 10
C11: 2020-11-23 | E11: 10
C12: 2020-12-07 | F12: 10
C13: 2020-12-18 | E13: 9
C14: 2020-12-31 | F14: 8
C15: 2021-01-12 | E15: 6
C16: 2021-01-26 | F16: 10
C17: 2021-02-08 | E17: 9
C18: 2021-02-11 | F18: 3
C19: 2021-02-15 | E19: 2
C20: 2021-03-02 | F20: 11
C21: 2021-03-11 | D21: decyzja | E21: 7
C23: Razem | E23: 53 | F23: 52
A27: SUPLEMENTY | C27: =$C$2 -> MCI Capital Alternatywna Spółka Inwestycyjna S.A.
B28: zakończone | C28: Suplement nr 1
C30: Data | E30: Czynności po stronie urzędu | F30: Czynności po stronie emitenta
E31: (w dniach roboczych)
C32: 2021-06-30 | D32: wniosek
C33: 2021-07-05 | E33: 3
C34: 2021-07-09 | F34: 4
C35: 2021-07-15 | D35: decyzja | E35: 4
C36: Razem | E36: 7 | F36: 4
C40: =$C$2 -> MCI Capital Alternatywna Spółka Inwestycyjna S.A.
B41: zakończone | C41: Suplement nr 2
C43: Data | E43: Czynności po stronie urzędu | F43: Czynności po stronie emitenta
E44: (w dniach roboczych)
C45: 2021-09-23 | D45: wniosek
C46: 2021-09-28 | E46: 3
C47: 2021-10-01 | F47: 3
C48: 2021-10-01 | E48: 0
C49: Razem | E49: 3 | F49: 3
C53: =$C$2 -> MCI Capital Alternatywna Spółka Inwestycyjna S.A.
C54: Suplement nr 3
C56: Data | E56: Czynności po stronie urzędu | F56: Czynności po stronie emitenta
E57: (w dniach roboczych)
D58: wniosek
C61: Razem | E61: =SUM(E58:E60) -> 0 | F61: =SUM(F58:F60) -> 0
C65: =$C$2 -> MCI Capital Alternatywna Spółka Inwestycyjna S.A.
C66: Suplement nr 4
C68: Data | E68: Czynności po stronie urzędu | F68: Czynności po stronie emitenta
E69: (w dniach roboczych)
D70: wniosek
C73: Razem | E73: =SUM(E70:E72) -> 0 | F73: =SUM(F70:F72) -> 0

Sheet PragmaGO (obligacje) 2020
A2: PROSPEKT | C2: PragmaGO SA
B3: zakończone | C3: Prospekt podstawowy
A6: Pismo przychodzące | B6: Pismo wychodzące lub zdarzenie przerywające termin | C6: Data | E6: Czynności po stronie urzędu | F6: Czynności po stronie emitenta
E7: (w dniach roboczych)
A8: wniosek | C8: 2020-09-21 | D8: wniosek
B9: uwagi nr 1 | C9: 2020-10-05 | E9: 10
C10: 2020-10-16 | F10: 9
C11: 2020-10-29 | E11: 9
C12: 2020-11-10 | F12: 8
C13: 2020-11-24 | E13: 9
C14: 2020-12-08 | F14: 10
C15: 2020-12-18 | E15: 8
C16: 2020-12-30 | F16: 7
C17: 2021-01-15 | D17: decyzja | E17: 10
C21: Razem | E21: 46 | F21: 34
A25: SUPLEMENTY | C25: =$C$2 -> PragmaGO SA
B26: zakończone | C26: Suplement nr 1
C28: Data | E28: Czynności po stronie urzędu | F28: Czynności po stronie emitenta
E29: (w dniach roboczych)
C30: 2021-02-09 | D30: wniosek
C31: 2021-02-12 | D31: decyzja | E31: 3
F32: 0
C33: Razem | E33: 3 | F33: 0
C37: =$C$2 -> PragmaGO SA
B38: zakończone | C38: Suplement nr 2
C40: Data | E40: Czynności po stronie urzędu | F40: Czynności po stronie emitenta
E41: (w dniach roboczych)
C42: 2021-04-12 | D42: wniosek
C43: 2021-04-14 | D43: decyzja | E43: 2
F44: 0
C45: Razem | E45: 2 | F45: 0
C49: =$C$2 -> PragmaGO SA
B50: zakończone | C50: Suplement nr 3
C52: Data | E52: Czynności po stronie urzędu | F52: Czynności po stronie emitenta
E53: (w dniach roboczych)
C54: 2021-04-21 | D54: wniosek
C55: 2021-04-23 | D55: decyzja | E55: 2
F56: 0
C57: Razem | E57: 2 | F57: 0
C61: =$C$2 -> PragmaGO SA
B62: zakończone | C62: Suplement nr 4
C64: Data | E64: Czynności po stronie urzędu | F64: Czynności po stronie emitenta
E65: (w dniach roboczych)
C66: 2021-04-21 | D66: wniosek
C67: 2021-04-23 | E67: 2
C68: 2021-04-23 | F68: 0
C69: 2021-04-26 | D69: decyzja | E69: 1
C70: Razem | E70: 3 | F70: 0
C74: =$C$2 -> PragmaGO SA
B75: zakończone | C75: Suplement nr 5
C77: Data | E77: Czynności po stronie urzędu | F77: Czynności po stronie emitenta
E78: (w dniach roboczych)
C79: 2021-05-26 | D79: wniosek
C80: 2021-05-31 | D80: decyzja | E80: 3
C83: Razem | E83: 3 | F83: 0
C88: =$C$2 -> PragmaGO SA
B89: zakończone | C89: Suplement nr 6
C91: Data | E91: Czynności po stronie urzędu | F91: Czynności po stronie emitenta
E92: (w dniach roboczych)
C93: 2021-08-25 | D93: wniosek
C94: 2021-08-31 | D94: decyzja | E94: 4
C97: Razem | E97: 4 | F97: 0
C101: =$C$2 -> PragmaGO SA
B102: zakończone | C102: Suplement nr 7
C104: Data | E104: Czynności po stronie urzędu | F104: Czynności po stronie emitenta
E105: (w dniach roboczych)
C106: 2021-09-09 | D106: wniosek
C107: 2021-09-13 | D107: decyzja | E107: 2
C110: Razem | E110: 2 | F110: 0
C115: =$C$2 -> PragmaGO SA
B116: zakończone | C116: Suplement nr 8
C118: Data | E118: Czynności po stronie urzędu | F118: Czynności po stronie emitenta
E119: (w dniach roboczych)
C120: 2021-09-16 | D120: wniosek
C121: 2021-09-21 | E121: 3
C122: 2021-09-22 | F122: 0
C123: 2021-09-23 | D123: decyzja | E123: 1
C124: Razem | E124: 4 | F124: 0
C129: =$C$2 -> PragmaGO SA
B130: zakończone | C130: Suplement nr 9
C132: Data | E132: Czynności po stronie urzędu | F132: Czynności po stronie emitenta
E133: (w dniach roboczych)
C134: 2021-11-26 | D134: wniosek
C135: 2021-11-30 | D135: decyzja | E135: 2
C138: Razem | E138: 4 | F138: 0

Sheet Captor Therapeutics SA
C2: Captor Therapeutics SA
A3: PROSPEKT | B3: zakończone | C3: Prospekt
A6: Pismo przychodzące | B6: Pismo wychodzące lub zdarzenie przerywające termin | C6: Data | E6: Czynności po stronie urzędu | F6: Czynności po stronie emitenta
E7: (w dniach roboczych)
A8: wniosek | C8: 2020-09-17 | D8: wniosek
B9: uwagi nr 1 | C9: 2020-10-15 | E9: 20
C10: 2020-10-29 | F10: 10
B11: uwagi nr 2 | C11: 2020-11-13 | E11: 10
C12: 2020-12-12 | F12: 20
B13: uwagi nr 3 | C13: 2020-12-23 | E13: 8
C14: 2021-01-15 | F14: 14
B15: uwagi nr 4 | C15: 2021-01-29 | E15: 10
C16: 2021-02-12 | F16: 10
B17: uwagi nr 5 | C17: 2021-02-23 | E17: 7
C18: 2021-03-09 | F18: 10
C19: 2021-03-16 | E19: 5
C20: 2021-03-19 | F20: 3
C21: 2021-03-22 | D21: decyzja | E21: 1
C23: Razem | E23: =SUM(E8:E22) -> 61 | F23: =SUM(F8:F22) -> 67
A27: SUPLEMENTY | C27: =$C$2 -> Captor Therapeutics SA
B28: zakończone | C28: Suplement nr 1
C30: Data | E30: Czynności po stronie urzędu | F30: Czynności po stronie emitenta
E31: (w dniach roboczych)
C32: 2021-05-04 | D32: wniosek
C33: 2021-05-07 | E33: 3
C34: 2021-05-10 | F34: 1
C35: 2021-05-11 | D35: decyzja | E35: 1
C37: Razem | E37: =SUM(E32:E36) -> 4 | F37: =SUM(F32:F36) -> 1
C40: =$C$2 -> Captor Therapeutics SA
B41: zakończone | C41: Suplement nr 2
C43: Data | E43: Czynności po stronie urzędu | F43: Czynności po stronie emitenta
E44: (w dniach roboczych)
C45: 2021-06-07 | D45: wniosek
C46: 2021-06-08 | D46: decyzja | E46: 1
F47: 0
C49: Razem | E49: =SUM(E45:E48) -> 1 | F49: =SUM(F45:F48) -> 0
C52: =$C$2 -> Captor Therapeutics SA
C53: Suplement nr 3
C55: Data | E55: Czynności po stronie urzędu | F55: Czynności po stronie emitenta
E56: (w dniach roboczych)
D57: wniosek
C61: Razem | E61: =SUM(E57:E60) -> 0 | F61: =SUM(F57:F60) -> 0
C64: =$C$2 -> Captor Therapeutics SA
C65: Suplement nr 4
C67: Data | E67: Czynności po stronie urzędu | F67: Czynności po stronie emitenta
E68: (w dniach roboczych)
D69: wniosek
C73: Razem | E73: =SUM(E69:E72) -> 0 | F73: =SUM(F69:F72) -> 0

Sheet Answear.com
A2: PROSPEKT | C2: Answear.com SA (d.Wearco SA)
B3: zakończone | C3: Prospekt
A6: Pismo przychodzące | B6: Pismo wychodzące lub zdarzenie przerywające termin | C6: Data | E6: Czynności po stronie urzędu | F6: Czynności po stronie emitenta
E7: (w dniach roboczych)
A8: wniosek | C8: 2020-09-17 | D8: wniosek
B9: est | C9: 2020-10-15 | E9: 20
C10: 2020-10-29 | F10: 10
C11: 2020-11-13 | E11: 10
C12: 2020-11-18 | F12: 3
C13: 2020-11-30 | E13: 8
C14: 2020-12-03 | F14: 3
C15: 2020-12-07 | E15: 2
C16: 2020-12-08 | F16: 1
C17: 2020-12-08 | D17: decyzja
C21: Razem | E21: =SUM(E8:E20) -> 40 | F21: =SUM(F8:F20) -> 17
E22: =E21/(E21+F21) -> 0.701754386 | F22: =F21/(E21+F21) -> 0.298245614
A25: SUPLEMENTY | C25: =$C$2 -> Answear.com SA (d.Wearco SA)
B26: zakończone | C26: Suplement nr 1
C28: Data | E28: Czynności po stronie urzędu | F28: Czynności po stronie emitenta
E29: (w dniach roboczych)
C30: 2021-01-13 | D30: wniosek
C31: 2021-01-20 | E31: 5
C32: 2021-01-25 | F32: 3
C33: 2021-01-28 | D33: decyzja | E33: 3
C34: Razem | E34: =SUM(E30:E33) -> 8 | F34: =SUM(F30:F33) -> 3

Sheet Dadelo S.A.
A2: PROSPEKT | C2: Dadelo S.A.
B3: zakończone | C3: Prospekt
A6: Pismo przychodzące | B6: Pismo wychodzące lub zdarzenie przerywające termin | C6: Data | E6: Czynności po stronie urzędu | F6: Czynności po stronie emitenta
E7: (w dniach roboczych)
A8: wniosek | C8: 2020-09-10 | D8: wniosek
B9: uwagi nr 1 | C9: 2020-10-08 | E9: 20
C10: 2020-10-22 | F10: 10
B11: uwagi nr 2 | C11: 2020-11-04 | E11: 9
C12: 2020-11-13 | F12: 6
B13: uwagi nr 3 | C13: 2020-11-26 | E13: 9
C14: 2020-11-30 | F14: 2
B15: uwagi nr 4 | C15: 2020-12-01 | E15: 1
C16: 2020-12-02 | F16: 1
C17: 2020-12-03 | D17: decyzja | E17: 1
C21: Razem | E21: =SUM(E8:E20) -> 40 | F21: =SUM(F8:F20) -> 19
E22: =E21/(E21+F21) -> 0.6779661017 | F22: =F21/(E21+F21) -> 0.3220338983
A25: SUPLEMENTY | C25: =$C$2 -> Dadelo S.A.
B26: zakończone | C26: Suplement nr 1
C28: Data | E28: Czynności po stronie urzędu | F28: Czynności po stronie emitenta
E29: (w dniach roboczych)
C30: 2020-12-04 | D30: wniosek
B31: uwagi 1 | C31: 2020-12-08 | E31: 2
C32: 2020-12-09 | F32: 1
C33: 2020-12-09 | D33: decyzja | E33: 0
C35: Razem | E35: =SUM(E31:E34) -> 2 | F35: =SUM(F31:F34) -> 1
C38: =$C$2 -> Dadelo S.A.
B39: zakończone | C39: Suplement nr 2
C41: Data | E41: Czynności po stronie urzędu | F41: Czynności po stronie emitenta
E42: (w dniach roboczych)
C43: 2021-01-14 | D43: wniosek
B44: uwagi 1 | C44: 2021-01-19 | E44: 3
C45: 2021-01-20 | F45: 1
B46: uwagi 1 | C46: 2021-01-20 | E46: 0
C47: 2021-01-25 | F47: 3
C48: 2021-01-27 | D48: decyzja | E48: 2
C50: Razem | E50: =SUM(E43:E49) -> 5 | F50: =SUM(F43:F49) -> 4

Sheet PCF Group SA
A2: PROSPEKT | C2: PCF Group SA
B3: zakończone | C3: Prospekt
A6: Pismo przychodzące | B6: Pismo wychodzące lub zdarzenie przerywające termin | C6: Data | E6: Czynności po stronie urzędu | F6: Czynności po stronie emitenta
E7: (w dniach roboczych)
A8: wniosek | C8: 2020-09-04 | D8: wniosek
B9: uwagi nr 1 | C9: 2020-10-02 | E9: 20
C10: 2020-10-16 | F10: 10
C11: 2020-10-30 | E11: 10
C12: 2020-11-09 | F12: 6
C13: 2020-11-17 | E13: 5
C14: 2020-11-22 | F14: 3
C15: 2020-11-23 | E15: 0
C16: 2020-11-24 | F16: 1
C17: 2020-11-24 | E17: 0
C18: 2020-11-25 | F18: 1
C19: 2020-11-25 | D19: decyzja | E19: 0
C21: Razem | E21: =SUM(E8:E20) -> 35 | F21: =SUM(F8:F20) -> 21
E22: =E21/(E21+F21) -> 0.625 | F22: =F21/(E21+F21) -> 0.375
A25: SUPLEMENTY | C25: =$C$2 -> PCF Group SA
B26: zakończone | C26: Suplement nr 1
C28: Data | E28: Czynności po stronie urzędu | F28: Czynności po stronie emitenta
E29: (w dniach roboczych)
C30: 2021-01-06 | D30: wniosek
C31: 2021-01-11 | D31: decyzja | E31: 2
C32: Razem | E32: =SUM(E29:E31) -> 2 | F32: =SUM(F29:F31) -> 0

Sheet Huuuge, Inc.
A2: PROSPEKT | C2: Huuuge, Inc.
B3: zakończone | C3: Prospekt
A4: poz. 188
A6: Pismo przychodzące | B6: Pismo wychodzące lub zdarzenie przerywające termin | C6: Data | E6: Czynności po stronie urzędu | F6: Czynności po stronie emitenta
E7: (w dniach roboczych)
A8: wniosek | C8: 2020-08-28 | D8: wniosek
B9: uwagi nr 1 | C9: 2020-09-24 | E9: 19
C10: 2020-10-08 | F10: 10
C11: 2020-10-22 | E11: 10
C12: 2020-11-05 | F12: 10
C13: 2020-11-20 | E13: 10
C14: 2020-12-09 | F14: 13
C15: 2020-12-18 | E15: 7
C16: 2021-01-04 | F16: 9
C17: 2021-01-11 | E17: 4
C18: 2021-01-21 | F18: 8
C19: 2021-01-25 | E19: 2
C20: 2021-01-26 | D20: decyzja | F20: 1
C22: Razem | E22: =SUM(E8:E21) -> 52 | F22: =SUM(F8:F21) -> 51
E23: =E22/(E22+F22) -> 0.5048543689 | F23: =F22/(E22+F22) -> 0.4951456311
A26: SUPLEMENTY | C26: =$C$2 -> Huuuge, Inc.
B27: zakończone | C27: Suplement nr 1
C29: Data | E29: Czynności po stronie urzędu | F29: Czynności po stronie emitenta
E30: (w dniach roboczych)
C31: 2021-01-29 | D31: wniosek
C32: 2021-02-01 | E32: 1
C33: 2021-02-01 | F33: 0
C34: 2021-02-02 | D34: decyzja | E34: 1
C36: Razem | E36: =SUM(E31:E35) -> 2 | F36: =SUM(F31:F35) -> 0

Sheet Mo-BRUK SA
A2: PROSPEKT | C2: Mo-BRUK SA
B3: zakończone | C3: Prospekt
A6: Pismo przychodzące | B6: Pismo wychodzące lub zdarzenie przerywające termin | C6: Data | E6: Czynności po stronie urzędu | F6: Czynności po stronie emitenta
E7: (w dniach roboczych)
A8: wniosek | C8: 2020-08-17 | D8: wniosek
B9: uwagi nr 1 | C9: 2020-08-25 | E9: 6
C10: 2020-09-11 | F10: 13
C11: 2020-09-24 | E11: 9
C12: 2020-10-06 | F12: 8
C13: 2020-10-16 | E13: 8
C14: 2020-10-25 | F14: 5
C15: 2020-11-05 | E15: 8
C16: 2020-11-09 | F16: 2
C17: 2020-11-13 | E17: 3
C18: 2020-11-16 | F18: 1
C19: 2020-11-16 | E19: 0
C20: 2020-11-17 | F20: 1
C21: 2020-11-17 | D21: decyzja | E21: 0
C23: Razem | E23: =SUM(E8:E22) -> 34 | F23: =SUM(F8:F22) -> 30
E24: =E23/(E23+F23) -> 0.53125 | F24: =F23/(E23+F23) -> 0.46875

Sheet PKO Leasing SA
A2: PROSPEKT | C2: PKO Leasing SA
B3: umorzone | C3: Prospekt podstawowy obligacji
A6: Pismo przychodzące | B6: Pismo wychodzące lub zdarzenie przerywające termin | C6: Data | E6: Czynności po stronie urzędu | F6: Czynności po stronie emitenta
E7: (w dniach roboczych)
A8: wniosek | C8: 2019-08-12 | D8: wniosek
B9: uwagi nr 1 | C9: 2019-09-09 | E9: 19
C10: 2019-09-20 | F10: 9
C11: 2019-10-04 | E11: 10
C12: 2019-10-16 | F12: 8
C13: 2019-10-30 | E13: 10
C14: 2020-07-16 | F14: 177
C15: 2020-07-29 | E15: 9
C16: 2020-08-10 | F16: 8
C17: 2020-08-24 | E17: 10
C18: 2020-09-07 | F18: 10
C19: 2020-09-14 | E19: 5
C20: 2020-10-05 | D20: wniosek | F20: 15
C21: 2020-10-21 | D21: decyzja o umorzeniu | E21: 12
C23: Razem | E23: 75 | F23: 227

Sheet PCC MCAA
A2: PROSPEKT | C2: PCC MCAA sp. z o.o.
B3: umorzone | C3: Prospekt podstawowy obligacji
A6: Pismo przychodzące | B6: Pismo wychodzące lub zdarzenie przerywające termin | C6: Data | E6: Czynności po stronie urzędu | F6: Czynności po stronie emitenta
E7: (w dniach roboczych)
A8: wniosek | C8: 2020-08-11 | D8: wniosek
B9: uwagi nr 1 | C9: 2020-09-07 | E9: 19
C10: 2020-11-10 | D10: decyzja o umorzeniu | F10: 46
C21: Razem | E21: 19 | F21: 46

Sheet Pure Biologics SA
A2: PROSPEKT | C2: Pure Biologics SA
B3: zakończone | C3: Prospekt
A6: Pismo przychodzące | B6: Pismo wychodzące lub zdarzenie przerywające termin | C6: Data | E6: Czynności po stronie urzędu | F6: Czynności po stronie emitenta
E7: (w dniach roboczych)
A8: wniosek | C8: 2020-08-03 | D8: wniosek
B9: uwagi nr 1 | C9: 2020-08-28 | E9: 19
C10: 2020-09-07 | F10: 6
C11: 2020-09-18 | E11: 9
C12: 2020-09-27 | F12: 5
C13: 2020-10-09 | E13: 10
C14: 2020-10-15 | F14: 4
C15: 2020-10-23 | E15: 6
C16: 2020-10-28 | F16: 3
C17: 2020-11-06 | D17: decyzja | E17: 7
C21: Razem | E21: 51 | F21: 18
A25: SUPLEMENTY | C25: =$C$2 -> Pure Biologics SA
B26: zakończone | C26: Suplement nr 1
C28: Data | E28: Czynności po stronie urzędu | F28: Czynności po stronie emitenta
E29: (w dniach roboczych)
C30: 2020-11-19 | D30: wniosek
C31: 2020-11-20 | D31: decyzja | E31: 1
C34: Razem | E34: 1 | F34: 0

Sheet Canal+ Polska S.A.
A2: PROSPEKT | C2: Canal+ Polska S.A.
B3: zakończone | C3: Prospekt
A6: Pismo przychodzące | B6: Pismo wychodzące lub zdarzenie przerywające termin | C6: Data | E6: Czynności po stronie urzędu | F6: Czynności po stronie emitenta
E7: (w dniach roboczych)
A8: wniosek | C8: 2020-05-15 | D8: wniosek
B9: uwagi nr 1 | C9: 2020-05-29 | E9: 10
C10: 2020-06-05 | F10: 5
C11: 2020-06-22 | E11: 10
C12: 2020-06-26 | F12: 4
C13: 2020-06-29 | E13: 1
C14: 2020-06-30 | F14: 1
C15: 2020-07-03 | E15: 3
C16: 2020-07-06 | F16: 1
C17: 2020-07-08 | E17: 2
C18: 2020-07-09 | F18: 1
C19: 2020-07-10 | E19: 1
C20: 2020-07-11 | F20: 0
C22: Razem | E22: 27 | F22: 12

Sheet Victoria Dom SA
A2: PROSPEKT | C2: Victoria Dom SA
B3: zakończone | C3: Prospekt podstawowy
A4: poz 185
A6: Pismo przychodzące | B6: Pismo wychodzące lub zdarzenie przerywające termin | C6: Data | E6: Czynności po stronie urzędu | F6: Czynności po stronie emitenta
E7: (w dniach roboczych)
A8: wniosek | C8: 2020-07-30 | D8: wniosek
B9: uwagi nr 1 | C9: 2020-08-13 | E9: 10
C10: 2020-10-07 | F10: 39
C11: 2020-10-21 | E11: 10
C12: 2020-11-04 | F12: 10
C13: 2020-11-19 | E13: 10
C14: 2020-12-17 | F14: 20
C15: 2020-12-23 | E15: 4
C16: 2021-01-07 | F16: 8
C17: 2021-01-13 | E17: 4
C18: 2021-01-29 | F18: 12
C19: 2021-02-08 | E19: 6
C20: 2021-02-12 | F20: 4
C21: 2021-02-18 | E21: 4
C22: 2021-02-22 | F22: 2
C23: 2021-03-01 | E23: 5
C24: 2021-03-03 | F24: 2
C25: 2021-03-09 | E25: 4
C26: 2021-03-15 | F26: 4
C27: 2021-03-22 | E27: 5
C28: 2021-03-30 | F28: 6
C29: 2021-04-12 | E29: 8
C30: 2021-04-23 | F30: 9
C31: 2021-04-26 | E31: 1
C32: 2021-05-06 | F32: 7
C33: 2021-05-13 | E33: 5
C34: 2021-06-02 | F34: 14
C35: 2021-06-16 | E35: 9
C36: 2023-03-13 | F36: 442
C37: 2023-03-24 | E37: 9
C38: 2023-03-31 | F38: 5
C39: 2023-04-13 | E39: 8
C40: 2023-04-24 | F40: 7
C41: 2023-05-05 | E41: 7
C42: 2023-05-22 | F42: 11
C43: 2023-06-05 | E43: 10
C44: 2023-06-14 | F44: 6
C45: 2023-06-26 | E45: 8
C46: 2023-06-28 | F46: 2
C47: 2023-07-06 | E47: 6
C48: 2023-07-11 | F48: 3
C49: 2023-07-21 | E49: 8
C50: 2023-08-01 | F50: 7
C51: 2023-08-03 | E51: 2
C52: 2023-08-07 | F52: 2
C53: 2023-08-10 | E53: 3
C54: 2023-09-07 | F54: 19
C55: 2023-09-21 | E55: 10
C56: 2023-10-03 | F56: 8
C57: 2023-10-09 | E57: 4
C58: 2023-10-20 | F58: 9
C59: 2023-10-24 | D59: decyzja | E59: 2
C60: Razem | E60: =SUM(E8:E39) -> 102 | F60: =SUM(F8:F40) -> 591
A64: SUPLEMENTY | C64: =$C$2 -> Victoria Dom SA
B65: zakończone | C65: Suplement nr 1
C67: Data | E67: Czynności po stronie urzędu | F67: Czynności po stronie emitenta
E68: (w dniach roboczych)
C69: 2024-02-19 | D69: wniosek
C70: 2024-02-23 | E70: 4
C71: 2024-02-23 | F71: 0
C72: 2024-02-27 | E72: 2
C73: Razem | E73: =SUM(E69:E72) -> 6 | F73: =SUM(F69:F72) -> 0

Sheet Creepy Jar S.A.
A2: PROSPEKT | C2: Creepy Jar S.A.
B3: zakończone | C3: Prospekt
A6: Pismo przychodzące | B6: Pismo wychodzące lub zdarzenie przerywające termin | C6: Data | E6: Czynności po stronie urzędu | F6: Czynności po stronie emitenta
E7: (w dniach roboczych)
A8: wniosek | C8: 2020-07-23 | D8: wniosek
B9: uwagi nr 1 | C9: 2020-08-07 | E9: 11
C10: 2020-08-12 | F10: 3
C11: 2020-08-25 | E11: 9
C12: 2020-11-30 | F12: 68
C13: 2020-12-01 | E13: 1
C14: 2020-12-02 | F14: 1
C15: 2020-12-16 | E15: 10
C16: 2021-01-08 | F16: 14
C17: 2021-01-21 | E17: 9
C18: 2021-01-27 | F18: 4
C19: 2021-02-09 | E19: 9
C20: 2021-02-19 | F20: 8
C21: 2021-03-04 | E21: 9
C22: 2021-03-11 | F22: 5
C23: 2021-03-17 | D23: decyzja | E23: 4
C25: Razem | E25: 62 | F25: 103
A29: SUPLEMENTY | C29: =$C$2 -> Creepy Jar S.A.
C30: Suplement nr 1
C32: Data | E32: Czynności po stronie urzędu | F32: Czynności po stronie emitenta
E33: (w dniach roboczych)
D34: wniosek
C37: Razem | E37: =SUM(E34:E36) -> 0 | F37: =SUM(F34:F36) -> 0

Sheet MedApp SA
A2: PROSPEKT | C2: MedApp SA
B3: zawieszone | C3: Prospekt
A6: Pismo przychodzące | B6: Pismo wychodzące lub zdarzenie przerywające termin | C6: Data | E6: Czynności po stronie urzędu | F6: Czynności po stronie emitenta
E7: (w dniach roboczych)
A8: wniosek | C8: 2020-07-22 | D8: wniosek
B9: uwagi nr 1 | C9: 2020-08-19 | E9: 20
C10: 2020-09-11 | F10: 17
B11: uwagi nr 2 | C11: 2020-09-24 | E11: 9
C12: 2020-10-11 | F12: 11
B13: uwagi nr 3 | C13: 2020-10-23 | E13: 10
C14: 2020-11-16 | F14: 15
B15: uwagi nr 4 | C15: 2020-11-27 | E15: 9
C16: 2020-12-14 | F16: 11
B17: uwagi nr 5 | C17: 2020-12-28 | E17: 9
C18: 2021-01-13 | F18: 10
B19: uwagi nr 6 | C19: 2021-01-26 | E19: 9
C20: 2021-02-12 | F20: 13
B21: uwagi nr 7 | C21: 2021-02-22 | E21: 6
C22: 2021-03-08 | F22: 10
B23: uwagi nr 8 | C23: 2021-03-19 | E23: 9
C24: 2021-04-26 | F24: 25
B25: uwagi nr 9 | C25: 2021-05-07 | E25: 8
C26: 2021-05-27 | F26: 14
B27: uwagi nr 10 | C27: 2021-06-07 | E27: 6
C28: 2021-06-15 | F28: 6
B29: uwagi nr 11 | C29: 2021-06-28 | E29: 9
C30: 2021-07-07 | F30: 7
B31: uwagi nr 12 | C31: 2021-07-19 | E31: 8
C32: 2021-07-30 | F32: 9
B33: uwagi nr 13 | C33: 2021-08-06 | E33: 5
C34: 2021-08-19 | F34: 9
B35: uwagi nr 14 | C35: 2021-09-01 | E35: 9
C36: 2021-09-10 | F36: 7
B37: uwagi nr 15 | C37: 2021-09-24 | E37: 10
C38: 2021-09-30 | F38: 4
B39: uwagi nr 16 | C39: 2021-10-14 | E39: 10
C40: 2021-10-22 | F40: 6
C41: 2021-11-08 | E41: 10
C42: 2021-11-17 | F42: 6
C43: 2021-12-01 | E43: 10
C44: 2021-12-07 | F44: 4
C45: 2021-12-21 | E45: 10
C46: 2021-12-24 | F46: 3
C47: 2022-01-10 | E47: 10
C48: 2022-01-20 | F48: 8
C49: 2022-02-03 | E49: 10
C50: 2022-02-18 | F50: 11
C51: 2022-03-04 | E51: 10
C56: Razem | E56: =SUM(E8:E55) -> 206 | F56: =SUM(F8:F55) -> 206
A60: SUPLEMENTY | C60: =$C$2 -> MedApp SA
C61: Suplement nr 1
C63: Data | E63: Czynności po stronie urzędu | F63: Czynności po stronie emitenta
E64: (w dniach roboczych)
D65: wniosek
C68: Razem | E68: =SUM(E65:E67) -> 0 | F68: =SUM(F65:F67) -> 0

Sheet Medinice SA
A2: PROSPEKT | C2: Medinice SA
B3: zakończone | C3: Prospekt
A6: Pismo przychodzące | B6: Pismo wychodzące lub zdarzenie przerywające termin | C6: Data | E6: Czynności po stronie urzędu | F6: Czynności po stronie emitenta
E7: (w dniach roboczych)
A8: wniosek | C8: 2020-07-22 | D8: wniosek
B9: uwagi nr 1 | C9: 2020-08-19 | E9: 20
C10: 2020-09-03 | F10: 11
C11: 2020-09-16 | E11: 9
C12: 2020-10-22 | F12: 26
C13: 2020-11-05 | E13: 10
C14: 2020-11-27 | F14: 15
C15: 2020-12-02 | E15: 3
C16: 2020-12-15 | F16: 9
C17: 2020-12-18 | D17: decyzja | E17: 3
C21: Razem | E21: 45 | F21: 61
A25: SUPLEMENTY | C25: =$C$2 -> Medinice SA
C26: Suplement nr 1
C28: Data | E28: Czynności po stronie urzędu | F28: Czynności po stronie emitenta
E29: (w dniach roboczych)
D30: wniosek
C33: Razem | E33: =SUM(E30:E32) -> 0 | F33: =SUM(F30:F32) -> 0

Sheet PKO Bank Hipoteczny SA
A2: PROSPEKT | C2: PKO Bank Hipoteczny SA
B3: zakończone | C3: Prospekt
C6: Data | E6: Czynności po stronie urzędu | F6: Czynności po stronie emitenta
E7: (w dniach roboczych)
C8: 2020-07-03 | D8: wniosek
C9: 2020-07-16 | E9: 9
C10: 2020-07-28 | F10: 8
C11: 2020-08-11 | E11: 10
C12: 2020-08-26 | F12: 11
C13: 2020-09-04 | E13: 7
C14: 2020-09-18 | F14: 10
C15: 2020-09-22 | E15: 2
C16: 2020-10-02 | F16: 8
C17: 2020-10-08 | D17: decyzja | E17: 4
C21: Razem | E21: 32 | F21: 37
A25: SUPLEMENTY | C25: =$C$2 -> PKO Bank Hipoteczny SA
B26: zakończone | C26: Suplement nr 1
C28: Data | E28: Czynności po stronie urzędu | F28: Czynności po stronie emitenta
E29: (w dniach roboczych)
C30: 2021-02-18 | D30: wniosek
C31: 2021-02-24 | E31: 4
C32: 2021-02-26 | F32: 2
C33: 2021-03-01 | D33: decyzja | E33: 1
C34: Razem | E34: 5 | F34: 2

Sheet Polwax SA
A2: PROSPEKT | C2: Polwax SA
B3: zakończone | C3: Prospekt
A6: Pismo przychodzące | B6: Pismo wychodzące lub zdarzenie przerywające termin | C6: Data | E6: Czynności po stronie urzędu | F6: Czynności po stronie emitenta
E7: (w dniach roboczych)
A8: wniosek | C8: 2019-05-20
B9: uwagi nr 1 | C9: 2019-05-30 | E9: 8
A10: odpowiedzi na uwagi 1 | C10: 2019-06-07 | F10: 6
B11: uwagi nr 2 | C11: 2019-06-19 | E11: 8
A12: odpowiedzi na uwagi 2 | C12: 2019-07-11 | F12: 15
B13: uwagi nr 3 | C13: 2019-07-15 | E13: 2
A14: odpowiedzi na uwagi 3 | C14: 2019-08-19 | F14: 24
B15: uwagi nr 5 | C15: 2019-09-02 | E15: 10
A16: odpowiedzi na uwagi 4 | C16: 2019-09-23 | F16: 15
B17: uwagi nr 5 | C17: 2019-10-07 | E17: 10
A18: odpowiedzi na uwagi 5 | C18: 2020-05-19 | F18: 153
B19: uwagi nr 6 | C19: 2020-06-02 | E19: 10
A20: odpowiedzi na uwagi 6 | C20: 2020-06-18 | F20: 11
B21: uwagi nr 7 | C21: 2020-06-30 | E21: 8
C22: 2020-07-16 | F22: 12
C23: 2020-07-27 | E23: 7
C24: 2020-08-07 | F24: 9
C25: 2020-08-13 | E25: 4
C26: 2020-08-17 | F26: 2
C27: 2020-08-25 | D27: decyzja | E27: 6
C30: Razem | E30: 73 | F30: 247

Sheet Inventionmed
A2: PROSPEKT | C2: Inventionmed SA
B3: umorzone | C3: Prospekt
A6: Pismo przychodzące | B6: Pismo wychodzące lub zdarzenie przerywające termin | C6: Data | E6: Czynności po stronie urzędu | F6: Czynności po stronie emitenta
E7: (w dniach roboczych)
A8: wniosek | C8: 2019-05-16 | D8: Wniosek
B9: uwagi nr 1 | C9: 2019-06-10 | E9: 17
C10: 2019-09-09 | F10: 63
C11: 2019-09-25 | E11: 12
C12: 2019-10-14 | F12: 13
C13: 2019-10-28 | E13: 10
C14: 2019-12-02 | F14: 23
C15: 2019-12-16 | E15: 10
C16: 2020-01-22 | F16: 23
C17: 2020-02-05 | E17: 10
C18: 2020-03-04 | F18: 20
C19: 2020-03-13 | E19: 7
C20: 2020-07-08 | D20: wniosek | F20: 80
C21: 2023-07-25 | D21: decyzja o umorzeniu
C22: Razem | E22: 66 | F22: 142

Sheet Polski Bank Komórek Macierzysty
A2: PROSPEKT | C2: Polski Bank Komórek Macierzystych SA
B3: zakończone | C3: Prospekt
A6: Pismo przychodzące | B6: Pismo wychodzące lub zdarzenie przerywające termin | C6: Data | E6: Czynności po stronie urzędu | F6: Czynności po stronie emitenta
E7: (w dniach roboczych)
A8: wniosek | C8: 2020-04-30 | D8: wniosek
B9: uwagi nr 1 | C9: 2020-05-15 | E9: 10
C10: 2020-07-22 | F10: 47
C11: 2020-08-05 | E11: 10
C12: 2020-08-20 | F12: 11
C13: 2020-09-03 | E13: 10
C14: 2020-09-22 | F14: 13
C15: 2020-09-24 | E15: 2
C16: 2020-10-16 | F16: 16
C17: 2020-10-27 | D17: decyzja | E17: 7
C21: Razem | E21: 39 | F21: 87

Sheet Kruk S.A. (obligacje) 2020
A2: PROSPEKT | C2: Kruk S.A.
B3: zakończone | C3: Prospekt podstawowy obligacji
A6: Pismo przychodzące | B6: Pismo wychodzące lub zdarzenie przerywające termin | C6: Data | E6: Czynności po stronie urzędu | F6: Czynności po stronie emitenta
E7: (w dniach roboczych)
A8: wniosek | C8: 2020-04-24 | D8: wniosek
B9: uwagi nr 1 | C9: 2020-05-11 | E9: 10
C10: 2020-05-25 | F10: 10
C11: 2020-06-05 | E11: 9
C12: 2020-06-18 | F12: 8
C13: 2020-07-01 | E13: 9
C14: 2020-07-09 | F14: 6
C15: 2020-07-21 | E15: 8
C16: 2020-07-28 | F16: 5
C17: 2020-08-07 | E17: 8
C18: 2020-08-12 | F18: 3
C19: 2020-08-24 | D19: decyzja | E19: 8
C21: Razem | E21: 52 | F21: 32
A25: SUPLEMENTY | C25: =$C$2 -> Kruk S.A.
B26: zakończone | C26: Suplement nr 1 do prospektu podstawowego obligacji
C28: Data | E28: Czynności po stronie urzędu | F28: Czynności po stronie emitenta
E29: (w dniach roboczych)
C30: 2020-08-31 | D30: wniosek
C31: 2020-09-07 | D31: decyzja | E31: 5
C34: Razem | E34: 5 | F34: 0
C37: =$C$2 -> Kruk S.A.
B38: zakończone | C38: Suplement nr 2
C40: Data | E40: Czynności po stronie urzędu | F40: Czynności po stronie emitenta
E41: (w dniach roboczych)
C42: 2020-11-09 | D42: wniosek
C43: 2020-11-17 | D43: decyzja | E43: 5
C45: Razem | E45: =SUM(E42:E44) -> 5 | F45: =SUM(F42:F44) -> 0
C49: =$C$2 -> Kruk S.A.
B50: zakończone | C50: Suplement nr 3
C52: Data | E52: Czynności po stronie urzędu | F52: Czynności po stronie emitenta
E53: (w dniach roboczych)
C54: 2021-03-29 | D54: wniosek
C55: 2021-04-01 | D55: decyzja | E55: 3
F56: 0
C57: Razem | E57: =SUM(E54:E56) -> 3 | F57: 0
C61: =$C$2 -> Kruk S.A.
B62: zakończone | C62: Suplement nr 4
C64: Data | E64: Czynności po stronie urzędu | F64: Czynności po stronie emitenta
E65: (w dniach roboczych)
C66: 2021-05-24 | D66: wniosek
C67: 2021-05-28 | D67: decyzja | E67: 4
F68: 0
C69: Razem | E69: 4 | F69: 0

Sheet Trakcja
A2: PROSPEKT | C2: Trakcja S.A. (d. Trakcja PRKiI S.A.)
A3: poz 176 | B3: umorzone | C3: Prospekt
A6: Pismo przychodzące | B6: Pismo wychodzące lub zdarzenie przerywające termin | C6: Data | E6: Czynności po stronie urzędu | F6: Czynności po stronie emitenta
E7: (w dniach roboczych)
A8: wniosek | C8: 2020-02-12 | D8: wniosek
B9: uwagi nr 1 | C9: 2020-02-26 | E9: 10
C10: 2020-03-11 | F10: 10
C11: 2020-03-25 | E11: 10
C12: 2020-04-30 | F12: 25
C13: 2020-05-15 | E13: 10
C14: 2020-05-28 | F14: 9
C15: 2020-06-10 | E15: 9
C16: 2020-06-24 | F16: 9
C17: 2020-07-07 | E17: 9
C18: 2020-07-21 | F18: 10
C19: 2020-08-03 | E19: 9
C20: 2020-08-17 | F20: 10
C21: 2020-08-31 | E21: 10
C22: 2020-10-09 | F22: 29
C23: 2020-10-23 | E23: 10
C24: 2020-11-06 | F24: 10
C25: 2020-11-20 | E25: 9
C26: 2020-12-18 | F26: 20
C27: 2020-12-21 | E27: 1
C28: 2024-01-04 | D28: decyzja o umorzeniu
C29: Razem | E29: =SUM(E8:E28) -> 87 | F29: =SUM(F10:F28) -> 132

Sheet Gaming Factory
A2: PROSPEKT | C2: Gaming Factory S.A.
B3: zakończone | C3: Prospekt
A6: Pismo przychodzące | B6: Pismo wychodzące lub zdarzenie przerywające termin | C6: Data | E6: Czynności po stronie urzędu | F6: Czynności po stronie emitenta
E7: (w dniach roboczych)
A8: wniosek | C8: 2020-01-07 | D8: wniosek
B9: uwagi nr 1 | C9: 2020-01-27 | E9: 14
C10: 2020-03-09 | F10: 30
C11: 2020-03-23 | E11: 10
C12: 2020-04-09 | F12: 13
C13: 2020-04-23 | E13: 9
C14: 2020-05-04 | F14: 6
C15: 2020-05-18 | E15: 10
C16: 2020-06-10 | F16: 17
C17: 2020-06-19 | D17: decyzja | E17: 6
C21: Razem | E21: 49 | F21: 66

Sheet Elektrim SA
A2: PROSPEKT | C2: Elektrim SA
B3: umorzone | C3: Prospekt
A6: Pismo przychodzące | B6: Pismo wychodzące lub zdarzenie przerywające termin | C6: Data | E6: Czynności po stronie urzędu | F6: Czynności po stronie emitenta
E7: (w dniach roboczych)
A8: wniosek | C8: 2019-12-19 | D8: wniosek
B9: uwagi nr 1 | C9: 2020-01-08 | E9: 10
C10: 2020-02-03 | F10: 18
C11: 2020-02-14 | E11: 9
C12: 2020-03-20 | F12: 25
C13: 2020-04-03 | E13: 10
C14: 2020-05-08 | F14: 23
C15: 2020-05-22 | E15: 10
C16: 2023-07-21 | D16: decyzja o umorzeniu
C21: Razem | E21: 39 | F21: 66
A25: SUPLEMENTY | C25: =$C$2 -> Elektrim SA
C26: Suplement nr 1
C28: Data | E28: Czynności po stronie urzędu | F28: Czynności po stronie emitenta
E29: (w dniach roboczych)
D30: wniosek
C33: Razem | E33: =SUM(E30:E32) -> 0 | F33: =SUM(F30:F32) -> 0

Sheet Alior Bank S.A. (BPW) 2020
A2: PROSPEKT | C2: Alior Bank S.A.
B3: zakończone | C3: Prospekt podstawowy bankowych papierów wartościowych
A6: Pismo przychodzące | B6: Pismo wychodzące lub zdarzenie przerywające termin | C6: Data | E6: Czynności po stronie urzędu | F6: Czynności po stronie emitenta
E7: (w dniach roboczych)
A8: wniosek | C8: 2019-12-05 | D8: wniosek
B9: uwagi nr 1 | C9: 2019-12-19 | E9: 10
C10: 2020-01-10 | F10: 12
C11: 2020-01-22 | E11: 8
C12: 2020-02-06 | F12: 11
C13: 2020-02-20 | E13: 10
C14: 2020-03-20 | F14: 21
C15: 2020-04-02 | E15: 9
C16: 2020-04-17 | F16: 10
C17: 2020-05-04 | E17: 10
C18: 2020-05-14 | F18: 8
C19: 2020-05-28 | E19: 10
C20: 2020-06-10 | F20: 9
C21: 2020-06-22 | E21: 7
C22: 2020-07-08 | F22: 12
C23: 2020-07-20 | E23: 8
C24: 2020-08-04 | F24: 11
C25: 2020-08-18 | E25: 10
C26: 2020-09-16 | F26: 21
C27: 2020-09-30 | E27: 10
C28: 2020-11-25 | F28: 39
C29: 2020-12-02 | E29: 5
C30: 2020-12-14 | F30: 8
C31: 2020-12-18 | E31: 4
C32: 2020-12-21 | F32: 1
C33: 2020-12-31 | D33: decyzja | E33: 7
C35: Razem | E35: 108 | F35: 163
A39: SUPLEMENTY | C39: =$C$2 -> Alior Bank S.A.
B40: zakończone | C40: Suplement nr 1
C42: Data | E42: Czynności po stronie urzędu | F42: Czynności po stronie emitenta
E43: (w dniach roboczych)
C44: 2021-03-05 | D44: wniosek
C45: 2021-03-09 | E45: 2
C46: 2021-03-11 | F46: 2
C47: 2021-03-12 | D47: decyzja | E47: 1
C48: Razem | E48: 3 | F48: 2
C52: =$C$2 -> Alior Bank S.A.
B53: zakończone | C53: Suplement nr 2
C55: Data | E55: Czynności po stronie urzędu | F55: Czynności po stronie emitenta
E56: (w dniach roboczych)
C57: 2021-04-12 | D57: wniosek
C58: 2021-04-14 | E58: 2
C59: 2021-04-16 | F59: 2
C60: 2021-04-19 | E60: 1
C61: 2021-04-21 | F61: 2
C62: 2021-04-23 | D62: decyzja | E62: 2
C63: Razem | E63: 5 | F63: 4
C65: =$C$2 -> Alior Bank S.A.
B66: zakończone | C66: Suplement nr 3
C68: Data | E68: Czynności po stronie urzędu | F68: Czynności po stronie emitenta
E69: (w dniach roboczych)
C70: 2021-04-30 | D70: wniosek
C71: 2021-05-04 | E71: 1
C72: 2021-05-05 | F72: 1
C73: 2021-05-07 | D73: decyzja | E73: 2
C74: Razem | E74: 3 | F74: 1
C79: =$C$2 -> Alior Bank S.A.
B80: zakończone | C80: Suplement nr 4
C82: Data | E82: Czynności po stronie urzędu | F82: Czynności po stronie emitenta
E83: (w dniach roboczych)
C84: 2021-08-04 | D84: wniosek
C85: 2021-08-06 | D85: decyzja | E85: 2
C86: Razem | E86: 2 | F86: 0
C90: =$C$2 -> Alior Bank S.A.
B91: zakończone | C91: Suplement nr 5
C93: Data | E93: Czynności po stronie urzędu | F93: Czynności po stronie emitenta
E94: (w dniach roboczych)
C95: 2021-10-28 | D95: wniosek
C96: 2021-10-29 | D96: decyzja | E96: 1
C97: Razem | E97: 1 | F97: 0
C102: .

Sheet Ghelamco
A2: PROSPEKT | C2: Ghelamco Invest Sp. z o.o.
B3: zakończone | C3: Prospekt podstawowy obligacji
A6: Pismo przychodzące | B6: Pismo wychodzące lub zdarzenie przerywające termin | C6: Data | E6: Czynności po stronie urzędu | F6: Czynności po stronie emitenta
E7: (w dniach roboczych)
A8: wniosek | C8: 2019-10-18 | D8: wniosek
B9: uwagi nr 1 | C9: 2019-11-04 | E9: 10
C10: 2019-11-12 | F10: 5
C11: 2019-11-26 | E11: 10
C12: 2019-12-03 | F12: 5
C13: 2019-12-17 | E13: 10
C14: 2020-01-29 | F14: 27
C15: 2020-02-12 | E15: 10
C16: 2020-02-21 | F16: 7
C17: 2020-02-27 | D17: decyzja | E17: 4
C21: Razem | E21: 44 | F21: 44
A25: SUPLEMENTY | C25: =C2 -> Ghelamco Invest Sp. z o.o.
B26: zakończone | C26: Suplement nr 1
C28: Data | E28: Czynności po stronie urzędu | F28: Czynności po stronie emitenta
E29: (w dniach roboczych)
C30: 2020-04-10 | D30: wniosek
C31: 2020-04-20 | E31: 5
C32: 2020-04-21 | F32: 1
C33: 2020-04-22 | E33: 1
C34: 2020-04-22 | F34: 0
C35: 2020-04-27 | E35: 3
C36: 2020-05-07 | F36: 7
C37: 2020-05-11 | E37: 2
C38: 2020-05-11 | F38: 0
C39: 2020-05-12 | E39: 1
C40: 2020-05-13 | F40: 1
C41: 2020-05-20 | D41: decyzja | E41: 5
C43: Razem | E43: 17 | F43: 9

Sheet Alior Bank (obligacje) 2020
A2: PROSPEKT | C2: Alior Bank S.A.
B3: zakończone | C3: Prospekt podstawowy obligacji
A6: Pismo przychodzące | B6: Pismo wychodzące lub zdarzenie przerywające termin | C6: Data | E6: Czynności po stronie urzędu | F6: Czynności po stronie emitenta
E7: (w dniach roboczych)
A8: wniosek | C8: 2019-10-04 | D8: wniosek
B9: uwagi nr 1 | C9: 2019-10-18 | E9: 10
C10: 2019-10-31 | F10: 9
C11: 2019-11-18 | E11: 10
C12: 2019-12-02 | F12: 10
C13: 2019-12-16 | E13: 10
C14: 2019-12-20 | F14: 4
C15: 2020-01-09 | E15: 10
C16: 2020-01-15 | F16: 4
C17: 2020-01-29 | E17: 10
C18: 2020-02-05 | F18: 5
C19: 2020-02-13 | E19: 6
C20: 2020-02-18 | F20: 3
C21: 2020-02-21 | E21: 3
C22: 2020-02-25 | F22: 2
C23: 2020-03-03 | E23: 5
C24: 2020-03-18 | F24: 11
C25: 2020-04-01 | E25: 10
C26: 2020-04-09 | F26: 6
C27: 2020-04-17 | E27: 5
C28: 2020-04-23 | F28: 4
C29: 2020-05-04 | D29: decyzja | E29: 6
C31: Razem | E31: 85 | F31: 58
A35: SUPLEMENTY | C35: =$C$2 -> Alior Bank S.A.
B36: zakończone | C36: Suplement nr 1 do prospektu podstawowego obligacji
C38: Data | E38: Czynności po stronie urzędu | F38: Czynności po stronie emitenta
E39: (w dniach roboczych)
C40: 2020-05-08 | D40: wniosek
C41: 2020-05-12 | E41: 2
C42: 2020-05-18 | F42: 4
C43: 2020-05-25 | D43: decyzja | E43: 5
C45: Razem | E45: 7 | F45: 4
C48: =$C$2 -> Alior Bank S.A.
B49: zakończone | C49: Suplement nr 2 do prospektu podstawowego obligacji
C51: Data | E51: Czynności po stronie urzędu | F51: Czynności po stronie emitenta
E52: (w dniach roboczych)
C53: 2020-08-21 | D53: wniosek
C54: 2020-08-24 | E54: 1
C55: 2020-09-16 | F55: 17
C56: 2020-09-21 | D56: decyzja | E56: 3
C57: Razem | E57: 4 | F57: 17
C60: =$C$2 -> Alior Bank S.A.
B61: zakończone | C61: Suplement nr 3
C63: Data | E63: Czynności po stronie urzędu | F63: Czynności po stronie emitenta
E64: (w dniach roboczych)
C65: 2020-11-06 | D65: wniosek
C66: 2020-11-13 | E66: 4
C67: 2020-11-26 | F67: 13
C68: 2020-12-02 | D68: decyzja | E68: 4
C69: Razem | E69: 8 | F69: 13
C73: =$C$2 -> Alior Bank S.A.
B74: zakończone | C74: Suplement nr 4
C76: Data | E76: Czynności po stronie urzędu | F76: Czynności po stronie emitenta
E77: (w dniach roboczych)
C78: 2020-12-23 | D78: wniosek
C79: 2020-12-30 | E79: 4
C80: 2021-01-08 | F80: 5
C81: 2021-01-12 | D81: decyzja | E81: 2
C82: Razem | E82: 6 | F82: 5
C86: =$C$2 -> Alior Bank S.A.
B87: zakończone | C87: Suplement nr 5
C89: Data | E89: Czynności po stronie urzędu | F89: Czynności po stronie emitenta
E90: (w dniach roboczych)
C91: 2021-03-05 | D91: wniosek
C92: 2021-03-09 | E92: 2
C93: 2021-03-11 | F93: 2
C94: 2021-03-12 | D94: decyzja | E94: 1
C95: Razem | E95: 3 | F95: 2
C99: =$C$2 -> Alior Bank S.A.
B100: zakończone | C100: Suplement nr 6
C102: Data | E102: Czynności po stronie urzędu | F102: Czynności po stronie emitenta
E103: (w dniach roboczych)
C104: 2021-04-12 | D104: wniosek
C105: 2021-04-14 | E105: 2
C106: 2021-04-16 | F106: 2
C107: 2021-04-21 | D107: decyzja | E107: 3
C108: Razem | E108: 5 | F108: 2

Sheet Games Operators S.A.
A2: PROSPEKT | C2: Games Operators S.A.
B3: zakończone | C3: Prospekt akcji
A6: Pismo przychodzące | B6: Pismo wychodzące lub zdarzenie przerywające termin | C6: Data | E6: Czynności po stronie urzędu | F6: Czynności po stronie emitenta
E7: (w dniach roboczych)
A8: wniosek | C8: 2019-08-02 | D8: wniosek
B9: uwagi nr 1 | C9: 2019-09-02 | E9: 20
C10: 2019-09-17 | F10: 11
C11: 2019-10-01 | E11: 10
C12: 2019-10-15 | F12: 10
C13: 2019-10-29 | E13: 10
C14: 2019-11-22 | F14: 16
C15: 2019-12-06 | E15: 10
C16: 2019-12-19 | F16: 9
C17: 2020-01-08 | E17: 10
C18: 2020-01-21 | F18: 9
C19: 2020-02-04 | E19: 10
C20: 2020-02-11 | F20: 5
C21: 2020-02-14 | E21: 3
C22: 2020-02-18 | F22: 2
C23: 2020-02-20 | E23: 2
C24: 2020-02-26 | F24: 4
C25: 2020-02-28 | D25: decyzja | E25: 2
C27: Razem | E27: 77 | F27: 66

Sheet Ipopema Ekologii i Innowacji
A1: Spis treści
C2: Ipopema Ekologii i Innowacji
A3: PROSPEKT | B3: zakończone | C3: Prospekt
A5: 410.26.2022
C6: Data | E6: Czynności po stronie urzędu | F6: Czynności po stronie emitenta
E7: (w dniach roboczych)
C8: 2022-05-31 | D8: wniosek
C9: 2022-06-13 | E9: 9
C10: 2022-06-25 | F10: 8
C11: 2022-07-08 | E11: 10
C12: 2022-07-25 | F12: 11
C13: 2022-08-03 | E13: 7
C14: 2022-08-17 | F14: 9
C15: 2022-08-24 | D15: decyzja | E15: 5
C21: Razem | E21: =SUM(E8:E20) -> 31 | F21: =SUM(F8:F20) -> 28
A26: SUPLEMENTY | C26: =$C$2 -> Ipopema Ekologii i Innowacji
B27: zakończone | C27: Suplement nr 1
C29: Data | E29: Czynności po stronie urzędu | F29: Czynności po stronie emitenta
E30: (w dniach roboczych)
C31: 2022-10-05 | D31: wniosek
C32: 2022-10-11 | E32: 4
C33: 2022-10-13 | F33: 2
C34: 2022-10-17 | E34: 2
C36: Razem | E36: =SUM(E31:E35) -> 6 | F36: =SUM(F31:F35) -> 2
C39: Ipopema Ekologii i Innowacji FIZ
A40: Suplement nr 2 | B40: zakończone | C40: Suplement nr 2
C43: Data | E43: Czynności po stronie urzędu | F43: Czynności po stronie emitenta
E44: (w dniach roboczych)
C45: 2022-04-07 | D45: wniosek
C46: 2022-04-12 | D46: aktualizacja | F46: 2
C47: 2023-04-17 | D47: decyzja | E47: 3
C49: Razem | E49: =SUM(E45:E48) -> 3 | F49: =SUM(F45:F48) -> 2
C51: Ipopema Ekologii i Innowacji FIZ
A52: Suplement nr 3 | B52: zakończone | C52: Suplement
C55: Data | E55: Czynności po stronie urzędu | F55: Czynności po stronie emitenta
E56: (w dniach roboczych)
C57: 2022-04-27 | D57: wniosek
C58: 2022-05-05 | E58: 4
C59: 2023-05-08 | F59: 1
C60: 2023-05-11 | E60: 3
C61: 2023-05-11 | F61: 0
C62: 2023-05-16 | E62: 3
C63: Razem | E63: =SUM(E57:E62) -> 10 | F63: =SUM(F57:F62) -> 1

Sheet Brand 24 SA
A2: PROSPEKT | C2: Brand 24 SA
B3: zakończone | C3: Prospekt
A6: Pismo przychodzące | B6: Pismo wychodzące lub zdarzenie przerywające termin | C6: Data | E6: Czynności po stronie urzędu | F6: Czynności po stronie emitenta
E7: (w dniach roboczych)
A8: wniosek | C8: 2019-04-11
B9: uwagi nr 1 | C9: 2019-05-10 | E9: 18
A10: odpowiedź na uwagi 1 | C10: 2019-06-12 | F10: 23
B11: uwagi nr 2 | C11: 2019-07-04 | E11: 15
A12: odpowiedź na uwagi 2 | C12: 2019-07-16 | F12: 8
B13: uwagi nr 3 | C13: 2019-07-31 | E13: 11
A14: odpowiedź na uwagi 3 | C14: 2019-08-14 | F14: 10
B15: uwagi nr 4 | C15: 2019-08-29 | E15: 10
A16: odpowiedź na uwagi 4 | C16: 2019-09-16 | F16: 12
B17: uwagi nr 5 | C17: 2019-09-30 | E17: 10
A18: odpowiedź na uwagi 5 | C18: 2019-11-04 | F18: 24
B19: uwagi nr 6 | C19: 2019-11-19 | E19: 10
A20: odpowiedź na uwagi 6 | C20: 2020-02-27 | F20: 68
B21: uwagi nr 7 | C21: 2020-03-12 | E21: 10
A22: odpowiedź na uwagi 7 | C22: 2020-10-09 | F22: 148
B23: uwagi 8 | C23: 2020-10-22 | E23: 9
A24: odpowiedź na uwagi 8 | C24: 2020-11-18 | F24: 18
B25: uwagi nr 9 | C25: 2020-12-01 | E25: 9
A26: odpowiedź na uwagi 9 | C26: 2020-12-14 | F26: 9
B27: uwagi nr 10 | C27: 2020-12-29 | E27: 10
A28: odpowiedź na uwagi 10 | C28: 2021-01-13 | F28: 9
B29: uwagi nr 11 | C29: 2021-01-25 | E29: 8
A30: odpowiedź na uwagi 11 | C30: 2021-01-31 | F30: 4
B31: uwagi nr 12 | C31: 2021-02-11 | E31: 9
A32: odpowiedzi na uwagi 12 | C32: 2021-02-19 | F32: 6
B33: uwagi nr 13 | C33: 2021-03-04 | E33: 9
A34: odpowiedzi na uwagi 13 | C34: 2021-03-05 | F34: 1
B35: uwagi nr 14 | C35: 2021-03-10 | E35: 3
A36: odpowiedzi na uwagi 14 | C36: 2021-03-10 | F36: 0
C37: 2021-03-17 | D37: decyzja | E37: 5
C41: Razem | E41: 146 | F41: 340
A45: SUPLEMENTY | C45: =$C$2 -> Brand 24 SA
B46: w toku | C46: Suplement nr 1
C48: Data | E48: Czynności po stronie urzędu | F48: Czynności po stronie emitenta
E49: (w dniach roboczych)
C50: 2021-03-29 | D50: wniosek
B51: uwagi nr 1 | C51: 2021-04-02 | E51: 4
C52: 2021-04-08 | F52: 3
C53: 2021-04-13 | E53: 3
C54: 2021-04-15 | F54: 2
C55: 2021-04-19 | E55: 2
F56: 0
C57: Razem | E57: 9 | F57: 5

Sheet WZÓR
A1: Spis treści
C2: Nazwa SA
A3: PROSPEKT | C3: Prospekt
C6: Data | E6: Czynności po stronie urzędu | F6: Czynności po stronie emitenta
E7: (w dniach roboczych)
D8: wniosek
C21: Razem | E21: =SUM(E8:E20) -> 0 | F21: =SUM(F8:F20) -> 0
A25: SUPLEMENTY | C25: =$C$2 -> Nazwa SA
B26: zakończone | C26: Suplement nr ……
C28: Data | E28: Czynności po stronie urzędu | F28: Czynności po stronie emitenta
E29: (w dniach roboczych)
D30: wniosek
C34: Razem | E34: =SUM(E30:E33) -> 0 | F34: =SUM(F30:F33) -> 0

Sheet Wolne (hidden)
A1: Nowy Rok | B1: 2018-01-01 | C1: =B1 -> 2018-01-01
A2: Święto Objawienia Pańskiego | B2: 2018-01-06 | C2: 2018-01-06
A3: Poniedziałek Wielkanocny | B3: 2018-04-02 | C3: 2018-04-02
A4: Święto Pracy na działce | B4: 2018-05-01 | C4: 2018-05-01
A5: Święto Konstytucji 3 Maja | B5: 2018-05-03 | C5: 2018-05-03
A6: Uroczystość Najświętszego Ciała i Krwi Chrystusa | B6: 2018-05-31 | C6: 2018-05-31
A7: Święto Wojska Polskiego | B7: 2018-08-15 | C7: 2018-08-15
A8: Uroczystość Wszystkich Świętych | B8: 2018-11-01 | C8: 2018-11-01
A9: Święto Odzyskania Niepodległości | B9: 2018-11-11 | C9: 2018-11-11
A10: Święto Odzyskania Niepodległości - dodatkowy | B10: 2018-11-12 | C10: 2018-11-12
A11: Święto Bożego Narodzenia | B11: 2018-12-25 | C11: 2018-12-25
A12: Święto Bożego Narodzenia | B12: 2018-12-26 | C12: 2018-12-26
A13: Nowy Rok | B13: 2019-01-01 | C13: 2019-01-01
A14: Święto Objawienia Pańskiego | B14: 2019-01-06 | C14: 2019-01-06
A15: Poniedziałek Wielkanocny | B15: 2019-04-22 | C15: =B15 -> 2019-04-22
A16: Święto Pracy na działce | B16: 2019-05-01 | C16: 2019-05-01
A17: Święto Konstytucji 3 Maja | B17: 2019-05-03 | C17: 2019-05-03
A18: Uroczystość Najświętszego Ciała i Krwi Chrystusa | B18: 2019-06-20 | C18: 2019-06-20
A19: Święto Wojska Polskiego | B19: 2019-08-15 | C19: 2019-08-15
A20: Uroczystość Wszystkich Świętych | B20: 2019-11-01 | C20: 2019-11-01
A21: Święto Odzyskania Niepodległości | B21: 2019-11-11 | C21: 2019-11-11
A22: Święto Bożego Narodzenia | B22: 2019-12-25 | C22: 2019-12-25
A23: Święto Bożego Narodzenia | B23: 2019-12-26 | C23: 2019-12-26
A24: Nowy Rok | B24: 2020-01-01 | C24: =B24 -> 2020-01-01
A25: Święto Objawienia Pańskiego | B25: 2020-01-06 | C25: 2020-01-06
A26: Poniedziałek Wielkanocny | B26: 2020-04-13 | C26: 2020-04-13
A27: Święto Pracy na działce | B27: 2020-05-01 | C27: 2020-05-01
A28: Święto Konstytucji 3 Maja | B28: 2020-05-03 | C28: 2020-05-03
A29: Uroczystość Najświętszego Ciała i Krwi Chrystusa | B29: 2020-06-11 | C29: 2020-06-11
A30: Święto Wojska Polskiego | B30: 2020-08-15 | C30: 2020-08-15
A31: Uroczystość Wszystkich Świętych | B31: 2020-11-01 | C31: 2020-11-01
A32: Święto Odzyskania Niepodległości | B32: 2020-11-11 | C32: 2020-11-11
A33: Święto Bożego Narodzenia | B33: 2020-12-25 | C33: 2020-12-25
A34: Święto Bożego Narodzenia | B34: 2020-12-26 | C34: 2020-12-26
A35: Nowy Rok | B35: 2021-01-01 | C35: 2021-01-01
A36: Święto Objawienia Pańskiego | B36: 2021-01-06 | C36: 2021-01-06
A37: Poniedziałek Wielkanocny | B37: 2021-04-05 | C37: 2021-04-05
A38: Święto Pracy na działce | B38: 2021-05-01 | C38: 2021-05-01
A39: Święto Konstytucji 3 Maja | B39: 2021-05-03 | C39: 2021-05-03
A40: Uroczystość Najświętszego Ciała i Krwi Chrystusa | B40: 2021-06-03 | C40: 2021-06-03
A41: Święto Wojska Polskiego | B41: 2021-08-15 | C41: 2021-08-15
A42: Uroczystość Wszystkich Świętych | B42: 2021-11-01 | C42: 2021-11-01
A43: Święto Odzyskania Niepodległości | B43: 2021-11-11 | C43: 2021-11-11
A44: Święto Bożego Narodzenia | B44: 2021-12-25 | C44: 2021-12-25
A45: Święto Bożego Narodzenia | B45: 2021-12-26 | C45: 2021-12-26
A46: Nowy Rok | B46: 2022-01-01 | C46: =B46 -> 2022-01-01
A47: Święto Objawienia Pańskiego | B47: 2022-01-06 | C47: 2022-01-06
A48: Poniedziałek Wielkanocny | B48: 2022-04-18 | C48: 2022-04-18
A49: Święto Pracy na działce | B49: 2022-05-01 | C49: 2022-05-01
A50: Święto Konstytucji 3 Maja | B50: 2022-05-03 | C50: 2022-05-03
A51: Uroczystość Najświętszego Ciała i Krwi Chrystusa | B51: 2022-06-16 | C51: 2022-06-16
A52: Święto Wojska Polskiego | B52: 2022-08-15 | C52: 2022-08-15
A53: Uroczystość Wszystkich Świętych | B53: 2022-11-01 | C53: 2022-11-01
A54: Święto Odzyskania Niepodległości | B54: 2022-11-11 | C54: 2022-11-11
A55: Święto Bożego Narodzenia | B55: 2022-12-25 | C55: 2022-12-25
A56: Święto Bożego Narodzenia | B56: 2022-12-26 | C56: 2022-12-26
A57: Nowy Rok | B57: 2023-01-01 | C57: =B57 -> 2023-01-01
A58: Święto Objawienia Pańskiego | B58: 2023-01-06 | C58: 2023-01-06
A59: Poniedziałek Wielkanocny | B59: 2023-04-10 | C59: 2023-04-10
A60: Święto Pracy na działce | B60: 2023-05-01 | C60: 2023-05-01
A61: Święto Konstytucji 3 Maja | B61: 2023-05-03 | C61: 2023-05-03
A62: Uroczystość Najświętszego Ciała i Krwi Chrystusa | B62: 2023-06-08 | C62: 2023-06-08
A63: Święto Wojska Polskiego | B63: 2023-08-15 | C63: 2023-08-15
A64: Uroczystość Wszystkich Świętych | B64: 2023-11-01 | C64: 2023-11-01
A65: Święto Odzyskania Niepodległości | B65: 2023-11-11 | C65: 2023-11-11
A66: Święto Bożego Narodzenia | B66: 2023-12-25 | C66: 2023-12-25
A67: Święto Bożego Narodzenia | B67: 2023-12-26 | C67: 2023-12-26
A68: Nowy Rok | B68: 2024-01-01 | C68: =B68 -> 2024-01-01
A69: Święto Objawienia Pańskiego | B69: 2024-01-06 | C69: 2024-01-06
A70: Poniedziałek Wielkanocny | B70: 2024-04-01 | C70: 2024-04-01
A71: Święto Pracy na działce | B71: 2024-05-01 | C71: 2024-05-01
A72: Święto Konstytucji 3 Maja | B72: 2024-05-03 | C72: 2024-05-03
A73: Uroczystość Najświętszego Ciała i Krwi Chrystusa | B73: 2024-05-30 | C73: 2024-05-30
A74: Święto Wojska Polskiego | B74: 2024-08-15 | C74: 2024-08-15
A75: Uroczystość Wszystkich Świętych | B75: 2024-11-01 | C75: 2024-11-01
A76: Święto Odzyskania Niepodległości | B76: 2024-11-11 | C76: 2024-11-11
A77: Święto Bożego Narodzenia | B77: 2024-12-25 | C77: 2024-12-25
A78: Święto Bożego Narodzenia | B78: 2024-12-26 | C78: 2024-12-26

Sheet test (hidden)
A2: PROSPEKT | C2: Nazwa SA
C3: Prospekt
A6: Pismo przychodzące | B6: Pismo wychodzące lub zdarzenie przerywające termin | C6: Data | E6: Czynności po stronie urzędu | F6: Czynności po stronie emitenta
E7: (w dniach roboczych)
A8: wniosek
B9: uwagi nr 1
C21: Razem | E21: =SUM(E8:E20) -> 0 | F21: =SUM(F8:F20) -> 0
A25: SUPLEMENTY | C25: =$C$2 -> Nazwa SA
C26: Suplement nr 1
C28: Data | E28: Czynności po stronie urzędu | F28: Czynności po stronie emitenta
E29: (w dniach roboczych)
D30: wniosek
D32: decyzja

Sheet Zdarzenia (hidden)
A1: 0
A2: wniosek
A3: decyzja
A4: decyzja o umorzeniu
A5: aktualizacja
A12: Stan
A14: w toku
A15: zawieszone
A16: zakończone
A17: umorzone
A49: Status | B49: NrEZD | C49: DniKNF | D49: DniEmitent
A50: zakończone | B50: 410.1.2024 | C50: 33 | D50: 26 | F50: Polskie Towarzystwo Wspierania Przedsiębiorczości SA
A51: zakończone | B51: 410.5.2023 | C51: 23 | D51: 9 | F51: Cavatina Holding S.A.
A52: zakończone | B52: 410.26.2023 | C52: 52 | D52: 123 | F52: Pekao Bank Hipoteczny S.A.
A53: zakończone | B53: 410.41.2023 | C53: 30 | D53: 56 | F53: Millennium Bank Hipoteczny S.A.
A54: zakończone | B54: 410.42.2023 | C54: 48 | D54: 25 | F54: Marvipol Development SA
A55: zakończone | C55: 49 | D55: 24 | F55: WOODPECKER.CO SA
A56: zakończone | B56: 410.20.2022 | C56: 193 | D56: 254 | F56: JR Holding ASI SA
A57: zakończone | B57: 410.35.2023 | C57: 34 | D57: 24 | F57: Bloober Team
A58: zakończone | B58: 410.15.2023 | C58: 57 | D58: 91 | F58: Neptis SA
A59: zakończone | B59: 410.22.2023 | C59: 48 | D59: 57 | F59: Render Cube
A60: zakończone | B60: 410.32.2023 | C60: 32 | D60: 30 | F60: Pure Biologics
A61: zakończone | B61: 410.33.2023 | C61: 24 | D61: 24 | F61: Murapol S.A.
A62: zakończone | B62: 410.36.2023 | C62: 6 | D62: 4 | F62: Beta ETF Nasdaq-100 PLN-Hedged FIZ (2023)
A63: zakończone | B63: 410.37.2023 | C63: 7 | D63: 3 | F63: Beta ETF S&P 500 PLN-Hedged
A64: zakończone | B64: 410.27.2023 | C64: 25 | D64: 25 | F64: Eques Aktywnego Inwestowania FIZ 2023
A65: zakończone | B65: 410.28.2023 | C65: 25 | D65: 25 | F65: Eques Akcji Sektora Prywatnego FIZ 2023
A66: zakończone | B66: 410.34.2023 | C66: 13 | D66: 15 | F66: Eques Akumulacji Majątku FIZ 2023
A67: zakończone | B67: 410.30.2023 | C67: 11 | D67: 11 | F67: Beta ETF WIG20TR
A68: zakończone | B68: 410.25.2023 | C68: 20 | D68: 13 | F68: Ipopema Benefit 3 FIZ
A69: zakończone | B69: 410.31.2022 | C69: 14 | D69: 16 | F69: Beta ETF TBSP PFIZ 2023
A70: zakończone | B70: 410.29.2023 | C70: 9 | D70: 11 | F70: Beta ETF sWIG80TR
A71: zakończone | B71: 410.20.2023 | C71: 33 | D71: 37 | F71: Ghelamco Invest sp. z o.o.
A72: zakończone | B72: 410.24.2023 | C72: 19 | D72: 12 | F72: PragmaGO - obligacje niezabezpieczone (2023)
A73: zakończone | B73: 410.8.2023 | C73: 51 | D73: 61 | F73: PragmaGO SA - obligacje zabezpieczone (2023)
A74: zakończone | B74: 410.10.2023 | C74: 72 | D74: 26 | F74: Starward Industries
A75: zakończone | B75: 410.13.2023 | C75: 42 | D75: 50 | F75: Polenergia SA (2023)
A76: zakończone | B76: 410.38.2022 | C76: 98 | D76: 131 | F76: XPlus SA
A77: zakończone | B77: 410.14.2022 | C77: 32 | D77: 26 | F77: Ronson Development SE
A78: zakończone | B78: 410.21.2023 | C78: 16 | D78: 10 | F78: PCC Exol S.A.
A79: zakończone | B79: 410.11.2023 | C79: 28 | D79: 30 | F79: PCC Rokita S.A. (2023)
A80: zakończone | B80: 410.18.2023 | C80: 23 | D80: 11 | F80: Kruk (2023)
A81: zakończone | B81: 410.17.2023 | C81: 13 | D81: 17 | F81: Beta ETF WIG20lev Portfelowy FIZ
A82: zakończone | B82: 410.16.2023 | C82: 13 | D82: 17 | F82: Beta ETF WIG20short Portfelowy FIZ
C83: 27 | D83: 16 | E83: PROSPEKT | F83: Prospekt podstawowy
A84: zakończone | B84: 410.6.2023 | C84: 10 | D84: 63 | F84: FDK Rentier FIZ
A85: zakończone | B85: 410.12.2023 | C85: 9 | D85: 19 | F85: Beta ETF mWIG40TR FIZ
A86: zakończone | B86: 410.1.2023 | C86: 37 | D86: 26 | F86: Dekpol SA
A87: zakończone | B87: 410.3.2023 | C87: 50 | D87: 46 | F87: Drago Entertainment
A88: zakończone | B88: 410.5.2023 | C88: 26 | D88: 13 | F88: Cavatina Holding SA
A89: zakończone | B89: 410.36.2022 | C89: 74 | D89: 83 | F89: Urteste S.A.
A90: zakończone | B90: 410.39.2022 | C90: 71 | D90: 66 | F90: Columbus Energy SA
A91: zakończone | B91: 410.4.2023 | C91: 9 | D91: 9 | F91: Beta ETF WIGtech FIZ
A92: zakończone | B92: 410.47.2022 | C92: 59 | D92: 41 | F92: Kredyt Inkaso SA
A93: zakończone | B93: 410.44.2022 | C93: 54 | D93: 38 | F93: LESS S.A.
A94: zakończone | B94: 410.29.2022 | C94: 47 | D94: 78 | F94: PASSUS SA
A95: zakończone | B95: 410.49.2022 | C95: 22 | D95: 16 | F95: Ryvu Therapeutics
A96: zakończone | B96: 410.45.2022 | C96: 31 | D96: 25 | F96: EQUES Akumulacji Majątku FIZ
A97: zakończone | B97: 410.37.2022 | C97: 43 | D97: 24 | F97: Cloud Technologies SA
A98: zakończone | B98: 410.51.2022 | C98: 14 | D98: 6 | F98: Beta ETF S&P 500 PLN-Hedged PFIZ
A99: zakończone | B99: 410.50.2022 | C99: 14 | D99: 6 | F99: Beta ETF Nasdaq-100 PLN-Hedged Portfelowy FIZ
A100: zakończone | B100: 410.28.2022 | C100: 59 | D100: 41 | F100: BEST SA
A101: zakończone | B101: 410.34.2022 | C101: 46 | D101: 26 | F101: DEVELIA SA
A102: zakończone | B102: 410.32.2022 | C102: 36 | D102: 46 | F102: Rafako SA
A103: zakończone | B103: 410.17.2022 | C103: 66 | D103: 57 | F103: Tenderhut S.A.
A104: zakończone | B104: 410.40.2022 | C104: 23 | D104: 14 | F104: Beta ETF WIG20TR
A105: zakończone | B105: 410.42.2022 | C105: 26 | D105: 12 | F105: Beta ETF TBSP PFIZ
A106: zakończone | B106: 410.41.2022 | C106: 25 | D106: 13 | F106: Beta ETF uWIG80TR
A107: zakończone | B107: 410.35.2022 | C107: 93 | D107: 92 | F107: GI GROUP POLAND S.A.
A108: zakończone | B108: 410.33.2022 | C108: 23 | D108: 14 | F108: Alior Bank S.A.
A109: zakończone | B109: 410.27.2022 | C109: 21 | D109: 30 | F109: Marvipol Development SA
A110: zakończone | B110: 410.21.2022 | C110: 38 | D110: 32 | F110: Kruk S.A.
A111: zakończone | B111: 410.15.2022 | C111: 43 | D111: 39 | F111: EQUES Aktywnego Inwestowania FIZ
A112: zakończone | B112: 410.24.2022 | C112: 29 | D112: 26 | F112: EQUES Akcji Sektora Prywatnego FIZ
A113: zakończone | B113: 410.14.2022 | C113: 39 | D113: 35 | F113: Caspar Asset Management S.A.
A114: zakończone | B114: 410.25.2022 | C114: 15 | D114: 11 | F114: Beta ETF WIG20short Portfelowy FIZ
A115: zakończone | B115: 410.23.2022 | C115: 13 | D115: 11 | F115: Beta ETF WIG20lev
A116: zakończone | B116: 410.18.2022 | C116: 14 | D116: 13 | F116: Beta ETF mWIG40TR Portfelowy FIZ (2022)
A117: zakończone | B117: 410.19.2022 | C117: 88 | D117: 66 | F117: Movie Games
A118: zakończone | B118: 410.8.2022 | C118: 51 | D118: 44 | F118: Alior Bank S.A.
A119: zakończone | B119: 410.11.2022 | C119: 37 | D119: 26 | F119: PCC Exol S.A.
A120: umorzone | B120: 410.13.2022 | C120: 37 | D120: 30 | F120: Komex SA
A121: zakończone | B121: 410.12.2022 | C121: 58 | D121: 249 | F121: Dr Irena Eris S.A.
A122: zakończone | B122: 410.10.2022 | C122: 57 | D122: 29 | F122: Bioceltix
A123: zakończone | B123: 410.9.2022 | C123: 115 | D123: 122 | F123: DB Energy S.A.
A124: zakończone | B124: 410.7.2022 | C124: 37 | D124: 59 | F124: Ipopema Benefit 3 FIZ
A125: zakończone | B125: 410.30.2022 | C125: 11 | D125: 7 | F125: PragmaGO SA - prospekt obligacji niezabezpieczonych
A126: zakończone | B126: 410.4.2022-2 | C126: 52 | D126: 50 | F126: PragmaGO SA - prospekt obligacji zabezpieczonych
A127: zakończone | B127: 410.6.2022 | C127: 11 | D127: 5 | F127: Beta ETF WIGtech Portfelowy FIZ
A128: zawieszone | B128: 410.5.2022 | C128: 47 | D128: 36 | F128: ExpertSender SA
A129: zakończone | B129: 410.2.2022 | C129: 40 | D129: 50 | F129: Fundusz Długu Korporacyjnego Rentier FIZ
A130: zakończone | B130: 410.1.2022 | C130: 69 | D130: 162 | F130: T-Bull SA
A131: zawieszone | B131: 410.53.2021 | C131: 75 | D131: 43 | F131: Event Horizon SA
A132: zakończone | B132: 410.56.2021 | C132: 128 | D132: 122 | F132: Hub.Tech SA
A133: zakończone | B133: 410.55.2021 | C133: 50 | D133: 33 | F133: Creotech Instruments S.A.
A134: zakończone | B134: 410.54.2021 | C134: 79 | D134: 77 | F134: SimFabric S.A.
A135: zakończone | B135: 410.49.2021 | C135: 61 | D135: 50 | F135: Millennium Bank Hipoteczny S.A.
A136: zakończone | B136: 410.47.2021 | C136: 58 | D136: 60 | F136: 3LP
A137: zakończone | B137: 410.51.2021 | C137: 101 | D137: 194 | F137: Scope Fluidics SA
A138: zakończone | B138: 410.48.2021 | C138: 121 | D138: 184 | F138: Genomtec SA
A139: zawieszone | B139: 410.50.2021 | C139: 40 | D139: 36 | F139: EXCELLENCE SA
A140: zawieszone | B140: 410.49.2021 | C140: 10 | D140: 0 | F140: PGF Polska Grupa Fotowoltaiczna
A141: zakończone | B141: 410.45.2021 | C141: 114 | D141: 79 | F141: Novavis Group
A142: zakończone | B142: 410.46.2021 | C142: 124 | D142: 190 | F142: Pointpack SA
A143: zakończone | B143: 410.37.2021 | C143: 44 | D143: 71 | F143: Skotan SA
A144: zakończone | B144: 410.43.2021 | C144: 16 | D144: 12 | F144: BETA ETF S&P 500 PLN-Hedged Portfelowy FIZ (2021)
A145: zakończone | B145: 410.42.2021 | C145: 15 | D145: 13 | F145: Beta ETF Nasdaq-100 PLN-Hedged Portfelowy FIZ (2021)
A146: zakończone | B146: 410.24.2021 | C146: 46 | D146: 35 | F146: Polenergia SA
A147: zawieszone | B147: 410.36.2021 | C147: 20 | D147: 0 | F147: Oferteo
A148: zakończone | B148: 410.31.2021 | C148: 35 | D148: 13 | F148: Grupa Pracuj S.A.
A149: zakończone | B149: 410.38.2021 | C149: 38 | D149: 38 | F149: Cavatina Holding (obligacje)
A150: zakończone | B150: 410.34.2021 | C150: 17 | D150: 11 | F150: Beta ETF WIG20TR Portfelowy FIZ
A151: zakończone | B151: 410.35.2021 | C151: 38 | D151: 16 | F151: STS Holding S.A.
A152: zakończone | C152: 31 | D152: 29 | F152: Echo Investment S.A.
A153: zakończone | B153: 410.32.2021 | C153: 48 | D153: 37 | F153: BioMaxima S.A.
A154: zawieszone | B154: 410.28.2021 | C154: 76 | D154: 59 | F154: Transition Technologies MS SA
A155: zakończone | B155: 410.20.2021 | C155: 49 | D155: 20 | F155: Bio Planet SA
A156: zawieszone | B156: 410.29.2021 | C156: 97 | D156: 125 | F156: DESA S.A.
A157: zakończone | B157: 410.22.2021 | C157: 86 | D157: 46 | F157: Vortex Energy S.A.
A158: zakończone | B158: 410.26.2021 | C158: 55 | D158: 33 | F158: 3R Games SA
A159: zakończone | B159: 410.23.2021 | C159: 43 | D159: 35 | F159: Murapol S.A.
A160: zakończone | B160: 410.18.2021 | C160: 64 | D160: 46 | F160: SpyroSoft S.A.
A161: w toku | B161: 410.21.2021 | C161: 123 | D161: 284 | F161: ALL IN! GAMES SA
A162: zawieszone | B162: 410.19.2021 | C162: 59 | D162: 72 | F162: Metalkas S.A.
A163: zakończone | B163: 410.17.2021 | C163: 44 | D163: 28 | F163: Poltreg S.A.
A164: zakończone | B164: 410.16.2021 | C164: 42 | D164: 60 | F164: Marvipol Development SA
A165: umorzone | B165: 410.15.2021 | C165: 152 | D165: 235 | F165: KG Efekt SA (2021)
A166: zawieszone | B166: 410.14.2021 | C166: 58 | D166: 107 | F166: Santander Bank Polska S.A.
A167: zakończone | B167: 410.12.2021 | C167: 15 | D167: 25 | F167: Beta ETF WIG20lev Portfelowy FIZ
A168: zakończone | B168: 410.13.2021 | C168: 15 | D168: 25 | F168: Beta ETF WIG20short Portfelowy FIZ
A169: zakończone | B169: 410.11.2021 | C169: 41 | D169: 43 | F169: Kruk S.A. (prospekt podstawowy obligacji)
A170: zakończone | B170: 410.10.2021 | C170: 19 | D170: 19 | F170: Beta ETF mWIG40TR Portfelowy FIZ
A171: zakończone | B171: 410.8.2021 | C171: 32 | D171: 14 | F171: ONDE SA
A172: zakończone | B172: 410.9.2021 | C172: 0 | D172: 0 | F172: Ipopema Medycyny i Innowacji FIZ
A173: zakończone | B173: 410.7.2021 | C173: 51 | D173: 18 | F173: Cavatina Holding SA
A174: umorzone | B174: 410.6.2021 | C174: 33 | D174: 250 | F174: Canal+ Polska SA
A175: zakończone | B175: 410.4.2021 | C175: 46 | D175: 22 | F175: Shoper S.A.
A176: zakończone | B176: 410.3.2021 | C176: 54 | D176: 93 | F176: Big Cheese Studio S.A.
A177: zakończone | B177: 410.5.2021 | C177: 45 | D177: 36 | F177: Celon Pharma S.A.
A178: zawieszone | B178: 410.2.2021 | C178: 65 | D178: 61 | F178: Emitel S.A.
A179: zakończone | B179: 410.1.2021 | C179: 46 | D179: 61 | F179: BEST SA
A180: zakończone | C180: 67 | D180: 101 | F180: KREDYT INKASO S.A.
A181: zakończone | C181: 45 | D181: 33 | F181: Vercom S.A.
A182: zakończone | C182: 36 | D182: 50 | E182: PROSPEKT | F182: Dekpol S.A.
A183: zakończone | C183: 36 | D183: 26 | E183: PROSPEKT | F183: Pekao Bank Hipoteczny S.A.
A184: zakończone | C184: 53 | D184: 52 | E184: PROSPEKT | F184: MCI Capital Alternatywna Spółka Inwestycyjna S.A.
A185: zakończone | C185: 46 | D185: 34 | E185: PROSPEKT | F185: PragmaGO SA
A186: zakończone | C186: 61 | D186: 67 | F186: Captor Therapeutics SA
A187: zakończone | C187: 40 | D187: 17 | E187: PROSPEKT | F187: Answear.com SA (d.Wearco SA)
A188: zakończone | C188: 40 | D188: 19 | E188: PROSPEKT | F188: Dadelo S.A.
A189: zakończone | C189: 35 | D189: 21 | E189: PROSPEKT | F189: PCF Group SA
A190: zakończone | C190: 52 | D190: 51 | E190: PROSPEKT | F190: Huuuge, Inc.
A191: zakończone | C191: 34 | D191: 30 | E191: PROSPEKT | F191: Mo-BRUK SA
A192: umorzone | C192: 75 | D192: 227 | E192: PROSPEKT | F192: PKO Leasing SA
A193: umorzone | C193: 19 | D193: 46 | E193: PROSPEKT | F193: PCC MCAA sp. z o.o.
A194: zakończone | C194: 51 | D194: 18 | E194: PROSPEKT | F194: Pure Biologics SA
A195: zakończone | C195: 27 | D195: 12 | E195: PROSPEKT | F195: Canal+ Polska S.A.
A196: zakończone | C196: 102 | D196: 591 | E196: PROSPEKT | F196: Victoria Dom SA
A197: zakończone | C197: 62 | D197: 103 | E197: PROSPEKT | F197: Creepy Jar S.A.
A198: zawieszone | C198: 206 | D198: 206 | E198: PROSPEKT | F198: MedApp SA
A199: zakończone | C199: 45 | D199: 61 | E199: PROSPEKT | F199: Medinice SA
A200: zakończone | C200: 32 | D200: 37 | E200: PROSPEKT | F200: PKO Bank Hipoteczny SA
A201: zakończone | C201: 73 | D201: 247 | E201: PROSPEKT | F201: Polwax SA
A202: umorzone | C202: 66 | D202: 142 | E202: PROSPEKT | F202: Inventionmed SA
A203: zakończone | C203: 39 | D203: 87 | E203: PROSPEKT | F203: Polski Bank Komórek Macierzystych SA
A204: zakończone | C204: 52 | D204: 32 | E204: PROSPEKT | F204: Kruk S.A.
A205: umorzone | C205: 87 | D205: 132 | E205: PROSPEKT | F205: Trakcja S.A. (d. Trakcja PRKiI S.A.)
A206: zakończone | C206: 49 | D206: 66 | E206: PROSPEKT | F206: Gaming Factory S.A.
A207: umorzone | C207: 39 | D207: 66 | E207: PROSPEKT | F207: Elektrim SA
A208: zakończone | C208: 108 | D208: 163 | E208: PROSPEKT | F208: Alior Bank S.A.
A209: zakończone | C209: 44 | D209: 44 | E209: PROSPEKT | F209: Ghelamco Invest Sp. z o.o.
A210: zakończone | C210: 85 | D210: 58 | E210: PROSPEKT | F210: Alior Bank S.A.
A211: zakończone | C211: 77 | D211: 66 | E211: PROSPEKT | F211: Games Operators S.A.
A212: zakończone | B212: 410.26.2022 | C212: 31 | D212: 28 | F212: Ipopema Ekologii i Innowacji
A213: zakończone | C213: 146 | D213: 340 | E213: PROSPEKT | F213: Brand 24 SA
